Workbook

Sheet Лист1
B1: 30 | C1: 36 | D1: 40 | E1: 41 | F1: 48 | G1: 50 | H1: 54 | I1: 70 | J1: 71 | K1: 72 | L1: 75 | M1: 84 | N1: 90 | O1: 96 | P1: 100 | Q1: 105 | R1: 110 | S1: 113 | T1: 120 | U1: 125 | V1: 127
A2: 30
A3: 36 | B3: =A2*A3 -> 1080 | X3: Искомый результат | AA3: 0.324
A4: 40 | B4: =A2*A4 -> 1200 | C4: =A3*A4 -> 1440
A5: 41 | B5: =A2*A5 -> 1230 | C5: =A3*A5 -> 1476 | D5: =A4*A5 -> 1640 | X5: Результат поиска
A6: 48 | B6: =A2*A6 -> 1440 | C6: =A3*A6 -> 1728 | D6: =A4*A6 -> 1920 | E6: =A5*A6 -> 1968 | X6: Результат поиска
A7: 50 | B7: =A2*A7 -> 1500 | C7: =A3*A7 -> 1800 | D7: =A4*A7 -> 2000 | E7: =A5*A7 -> 2050 | F7: =A6*A7 -> 2400 | X7: Результат поиска
A8: 54 | B8: =A2*A8 -> 1620 | C8: =A3*A8 -> 1944 | D8: =A4*A8 -> 2160 | E8: =A5*A8 -> 2214 | F8: =A6*A8 -> 2592 | G8: =A7*A8 -> 2700 | X8: Результат поиска
A9: 70 | B9: =A2*A9 -> 2100 | C9: =A3*A9 -> 2520 | D9: =A4*A9 -> 2800 | E9: =A5*A9 -> 2870 | F9: =A6*A9 -> 3360 | G9: =A7*A9 -> 3500 | H9: =A8*A9 -> 3780 | X9: Результат поиска
A10: 71 | B10: =A2*A10 -> 2130 | C10: =A3*A10 -> 2556 | D10: =A4*A10 -> 2840 | E10: =A5*A10 -> 2911 | F10: =A6*A10 -> 3408 | G10: =A7*A10 -> 3550 | H10: =A8*A10 -> 3834 | I10: =A9*A10 -> 4970 | X10: Результат поиска
A11: 72 | B11: =A2*A11 -> 2160 | C11: =A3*A11 -> 2592 | D11: =A4*A11 -> 2880 | E11: =A5*A11 -> 2952 | F11: =A6*A11 -> 3456 | G11: =A7*A11 -> 3600 | H11: =A8*A11 -> 3888 | I11: =A9*A11 -> 5040 | J11: =A10*A11 -> 5112 | X11: Результат поиска
A12: 75 | B12: =A2*A12 -> 2250 | C12: =A3*A12 -> 2700 | D12: =A4*A12 -> 3000 | E12: =A5*A12 -> 3075 | F12: =A6*A12 -> 3600 | G12: =A7*A12 -> 3750 | H12: =A8*A12 -> 4050 | I12: =A9*A12 -> 5250 | J12: =A10*A12 -> 5325 | K12: =A11*A12 -> 5400 | X12: Результат поиска
A13: 84 | B13: =A2*A13 -> 2520 | C13: =A3*A13 -> 3024 | D13: =A4*A13 -> 3360 | E13: =A5*A13 -> 3444 | F13: =A6*A13 -> 4032 | G13: =A7*A13 -> 4200 | H13: =A8*A13 -> 4536 | I13: =A9*A13 -> 5880 | J13: =A10*A13 -> 5964 | K13: =A11*A13 -> 6048 | L13: =A12*A13 -> 6300
A14: 90 | B14: =A2*A14 -> 2700 | C14: =A3*A14 -> 3240 | D14: =A4*A14 -> 3600 | E14: =A5*A14 -> 3690 | F14: =A6*A14 -> 4320 | G14: =A7*A14 -> 4500 | H14: =A8*A14 -> 4860 | I14: =A9*A14 -> 6300 | J14: =A10*A14 -> 6390 | K14: =A11*A14 -> 6480 | L14: =A12*A14 -> 6750 | M14: =A13*A14 -> 7560
A15: 96 | B15: =A2*A15 -> 2880 | C15: =A3*A15 -> 3456 | D15: =A4*A15 -> 3840 | E15: =A5*A15 -> 3936 | F15: =A6*A15 -> 4608 | G15: =A7*A15 -> 4800 | H15: =A8*A15 -> 5184 | I15: =A9*A15 -> 6720 | J15: =A10*A15 -> 6816 | K15: =A11*A15 -> 6912 | L15: =A12*A15 -> 7200 | M15: =A13*A15 -> 8064 | N15: =A14*A15 -> 8640
A16: 100 | B16: =A2*A16 -> 3000 | C16: =A3*A16 -> 3600 | D16: =A4*A16 -> 4000 | E16: =A5*A16 -> 4100 | F16: =A6*A16 -> 4800 | G16: =A7*A16 -> 5000 | H16: =A8*A16 -> 5400 | I16: =A9*A16 -> 7000 | J16: =A10*A16 -> 7100 | K16: =A11*A16 -> 7200 | L16: =A12*A16 -> 7500 | M16: =A13*A16 -> 8400 | N16: =A14*A16 -> 9000 | O16: =A15*A16 -> 9600
A17: 105 | B17: =A2*A17 -> 3150 | C17: =A3*A17 -> 3780 | D17: =A4*A17 -> 4200 | E17: =A5*A17 -> 4305 | F17: =A6*A17 -> 5040 | G17: =A7*A17 -> 5250 | H17: =A8*A17 -> 5670 | I17: =A9*A17 -> 7350 | J17: =A10*A17 -> 7455 | K17: =A11*A17 -> 7560 | L17: =A12*A17 -> 7875 | M17: =A13*A17 -> 8820 | N17: =A14*A17 -> 9450 | O17: =A15*A17 -> 10080 | P17: =A16*A17 -> 10500 | AA17: =IF(COUNTIF(AB$17:AB17,AB17)=1,COUNT(AA$16:AA16)+1) -> 1 | AB17: =IFERROR(SMALL($B$24:$U$43,COUNTIF($B$24:$U$43,0)+ROW(AA1)),"") -> 5000 | AC17: =IFERROR(VLOOKUP(ROW(AC1),AA$17:AB$216,2,0),"") -> 5000 | AD17: =IFERROR(AC17*$AA$3,"") -> 1620 | AE17: =IF($AD17="","",IFERROR(SMALL(IF($AD17=$B$2:$V$22,ROW($B$2:$V$22)+COLUMN($B$2:$V$22)/100),COLUMN(A1)),"")) -> 8.02 | AF17: =IF($AD17="","",IFERROR(SMALL(IF($AD17=$B$2:$V$22,ROW($B$2:$V$22)+COLUMN($B$2:$V$22)/100),COLUMN(B1)),"")) ->  | AG17: =IF($AD17="","",IFERROR(SMALL(IF($AD17=$B$2:$V$22,ROW($B$2:$V$22)+COLUMN($B$2:$V$22)/100),COLUMN(C1)),"")) ->  | AH17: =IF($AD17="","",IFERROR(SMALL(IF($AD17=$B$2:$V$22,ROW($B$2:$V$22)+COLUMN($B$2:$V$22)/100),COLUMN(D1)),"")) ->  | AI17: =IF($AD17="","",IFERROR(SMALL(IF($AD17=$B$2:$V$22,ROW($B$2:$V$22)+COLUMN($B$2:$V$22)/100),COLUMN(E1)),"")) ->  | AJ17: =IF($AD17="","",IFERROR(SMALL(IF($AD17=$B$2:$V$22,ROW($B$2:$V$22)+COLUMN($B$2:$V$22)/100),COLUMN(F1)),"")) ->  | AK17: =IF($AD17="","",IFERROR(SMALL(IF($AD17=$B$2:$V$22,ROW($B$2:$V$22)+COLUMN($B$2:$V$22)/100),COLUMN(G1)),"")) ->  | AL17: =INDEX($A$1:$A$22,INT(AE17)) -> 54 | AM17: =INDEX($A$1:$A$22,INT(AF17)) ->  | AS17: =INDEX($A$1:$U$1,MOD(AE17,1)*100) -> 30 | AT17: =INDEX($A$1:$U$1,MOD(AF17,1)*100) ->  | AZ17: =IF($AC17="","",IFERROR(SMALL(IF($AC17=$B$2:$V$22,ROW($B$2:$V$22)+COLUMN($B$2:$V$22)/100),COLUMN(A1)),"")) -> 16.07 | BA17: =IF($AC17="","",IFERROR(SMALL(IF($AC17=$B$2:$V$22,ROW($B$2:$V$22)+COLUMN($B$2:$V$22)/100),COLUMN(B1)),"")) -> 21.04 | BB17: =IF($AC17="","",IFERROR(SMALL(IF($AC17=$B$2:$V$22,ROW($B$2:$V$22)+COLUMN($B$2:$V$22)/100),COLUMN(C1)),"")) ->  | BC17: =IF($AC17="","",IFERROR(SMALL(IF($AC17=$B$2:$V$22,ROW($B$2:$V$22)+COLUMN($B$2:$V$22)/100),COLUMN(D1)),"")) ->  | BD17: =IF($AC17="","",IFERROR(SMALL(IF($AC17=$B$2:$V$22,ROW($B$2:$V$22)+COLUMN($B$2:$V$22)/100),COLUMN(E1)),"")) ->  | BE17: =IF($AC17="","",IFERROR(SMALL(IF($AC17=$B$2:$V$22,ROW($B$2:$V$22)+COLUMN($B$2:$V$22)/100),COLUMN(F1)),"")) ->  | BF17: =IF($AC17="","",IFERROR(SMALL(IF($AC17=$B$2:$V$22,ROW($B$2:$V$22)+COLUMN($B$2:$V$22)/100),COLUMN(G1)),"")) ->  | BG17: =INDEX($A$1:$A$22,INT(AZ17)) -> 100 | BH17: =INDEX($A$1:$A$22,INT(BA17)) -> 125 | BN17: =INDEX($A$1:$U$1,MOD(AZ17,1)*100) -> 50 | BO17: =INDEX($A$1:$U$1,MOD(BA17,1)*100) -> 40 | BU17: =(AL17*AS17)/(BG17*BN17) -> 0.324 | BV17: =(AM17*AT17)/(BH17*BO17) -> 
A18: 110 | B18: =A2*A18 -> 3300 | C18: =A3*A18 -> 3960 | D18: =A4*A18 -> 4400 | E18: =A5*A18 -> 4510 | F18: =A6*A18 -> 5280 | G18: =A7*A18 -> 5500 | H18: =A8*A18 -> 5940 | I18: =A9*A18 -> 7700 | J18: =A10*A18 -> 7810 | K18: =A11*A18 -> 7920 | L18: =A12*A18 -> 8250 | M18: =A13*A18 -> 9240 | N18: =A14*A18 -> 9900 | O18: =A15*A18 -> 10560 | P18: =A16*A18 -> 11000 | Q18: =A17*A18 -> 11550 | AA18: =IF(COUNTIF(AB$17:AB18,AB18)=1,COUNT(AA$16:AA17)+1) -> 2 | AB18: =IFERROR(SMALL($B$24:$U$43,COUNTIF($B$24:$U$43,0)+ROW(AA2)),"") -> 6000 | AC18: =IFERROR(VLOOKUP(ROW(AC2),AA$17:AB$216,2,0),"") -> 6000 | AD18: =IFERROR(AC18*$AA$3,"") -> 1944 | AE18: =IF($AD18="","",IFERROR(SMALL(IF($AD18=$B$2:$V$22,ROW($B$2:$V$22)+COLUMN($B$2:$V$22)/100),COLUMN(A2)),"")) -> 8.03 | AF18: =IF($AD18="","",IFERROR(SMALL(IF($AD18=$B$2:$V$22,ROW($B$2:$V$22)+COLUMN($B$2:$V$22)/100),COLUMN(B2)),"")) ->  | AG18: =IF($AD18="","",IFERROR(SMALL(IF($AD18=$B$2:$V$22,ROW($B$2:$V$22)+COLUMN($B$2:$V$22)/100),COLUMN(C2)),"")) ->  | AH18: =IF($AD18="","",IFERROR(SMALL(IF($AD18=$B$2:$V$22,ROW($B$2:$V$22)+COLUMN($B$2:$V$22)/100),COLUMN(D2)),"")) ->  | AI18: =IF($AD18="","",IFERROR(SMALL(IF($AD18=$B$2:$V$22,ROW($B$2:$V$22)+COLUMN($B$2:$V$22)/100),COLUMN(E2)),"")) ->  | AJ18: =IF($AD18="","",IFERROR(SMALL(IF($AD18=$B$2:$V$22,ROW($B$2:$V$22)+COLUMN($B$2:$V$22)/100),COLUMN(F2)),"")) ->  | AK18: =IF($AD18="","",IFERROR(SMALL(IF($AD18=$B$2:$V$22,ROW($B$2:$V$22)+COLUMN($B$2:$V$22)/100),COLUMN(G2)),"")) ->  | AL18: =INDEX($A$1:$A$22,INT(AE18)) -> 54 | AM18: =INDEX($A$1:$A$22,INT(AF18)) ->  | AN18: =INDEX($A$1:$A$22,INT(AG18)) ->  | AO18: =INDEX($A$1:$A$22,INT(AH18)) ->  | AP18: =INDEX($A$1:$A$22,INT(AI18)) ->  | AQ18: =INDEX($A$1:$A$22,INT(AJ18)) ->  | AR18: =INDEX($A$1:$A$22,INT(AK18)) ->  | AS18: =INDEX($A$1:$U$1,MOD(AE18,1)*100) -> 36 | AT18: =INDEX($A$1:$U$1,MOD(AF18,1)*100) ->  | AU18: =INDEX($A$1:$U$1,MOD(AG18,1)*100) ->  | AV18: =INDEX($A$1:$U$1,MOD(AH18,1)*100) ->  | AW18: =INDEX($A$1:$U$1,MOD(AI18,1)*100) ->  | AX18: =INDEX($A$1:$U$1,MOD(AJ18,1)*100) ->  | AY18: =INDEX($A$1:$U$1,MOD(AK18,1)*100) ->  | AZ18: =IF($AC18="","",IFERROR(SMALL(IF($AC18=$B$2:$V$22,ROW($B$2:$V$22)+COLUMN($B$2:$V$22)/100),COLUMN(A2)),"")) -> 20.07 | BA18: =IF($AC18="","",IFERROR(SMALL(IF($AC18=$B$2:$V$22,ROW($B$2:$V$22)+COLUMN($B$2:$V$22)/100),COLUMN(B2)),"")) -> 21.06 | BB18: =IF($AC18="","",IFERROR(SMALL(IF($AC18=$B$2:$V$22,ROW($B$2:$V$22)+COLUMN($B$2:$V$22)/100),COLUMN(C2)),"")) ->  | BC18: =IF($AC18="","",IFERROR(SMALL(IF($AC18=$B$2:$V$22,ROW($B$2:$V$22)+COLUMN($B$2:$V$22)/100),COLUMN(D2)),"")) ->  | BD18: =IF($AC18="","",IFERROR(SMALL(IF($AC18=$B$2:$V$22,ROW($B$2:$V$22)+COLUMN($B$2:$V$22)/100),COLUMN(E2)),"")) ->  | BE18: =IF($AC18="","",IFERROR(SMALL(IF($AC18=$B$2:$V$22,ROW($B$2:$V$22)+COLUMN($B$2:$V$22)/100),COLUMN(F2)),"")) ->  | BF18: =IF($AC18="","",IFERROR(SMALL(IF($AC18=$B$2:$V$22,ROW($B$2:$V$22)+COLUMN($B$2:$V$22)/100),COLUMN(G2)),"")) ->  | BG18: =INDEX($A$1:$A$22,INT(AZ18)) -> 120 | BH18: =INDEX($A$1:$A$22,INT(BA18)) -> 125 | BI18: =INDEX($A$1:$A$22,INT(BB18)) ->  | BJ18: =INDEX($A$1:$A$22,INT(BC18)) ->  | BK18: =INDEX($A$1:$A$22,INT(BD18)) ->  | BL18: =INDEX($A$1:$A$22,INT(BE18)) ->  | BM18: =INDEX($A$1:$A$22,INT(BF18)) ->  | BN18: =INDEX($A$1:$U$1,MOD(AZ18,1)*100) -> 50 | BO18: =INDEX($A$1:$U$1,MOD(BA18,1)*100) -> 48 | BP18: =INDEX($A$1:$U$1,MOD(BB18,1)*100) ->  | BQ18: =INDEX($A$1:$U$1,MOD(BC18,1)*100) ->  | BR18: =INDEX($A$1:$U$1,MOD(BD18,1)*100) ->  | BS18: =INDEX($A$1:$U$1,MOD(BE18,1)*100) ->  | BT18: =INDEX($A$1:$U$1,MOD(BF18,1)*100) ->  | BU18: =(AL18*AS18)/(BG18*BN18) -> 0.324 | BV18: =(AM18*AT18)/(BH18*BO18) ->  | BW18: =(AN18*AU18)/(BI18*BP18) ->  | BX18: =(AO18*AV18)/(BJ18*BQ18) ->  | BY18: =(AP18*AW18)/(BK18*BR18) ->  | BZ18: =(AQ18*AX18)/(BL18*BS18) ->  | CA18: =(AR18*AY18)/(BM18*BT18) -> 
A19: 113 | B19: =A2*A19 -> 3390 | C19: =A3*A19 -> 4068 | D19: =A4*A19 -> 4520 | E19: =A5*A19 -> 4633 | F19: =A6*A19 -> 5424 | G19: =A7*A19 -> 5650 | H19: =A8*A19 -> 6102 | I19: =A9*A19 -> 7910 | J19: =A10*A19 -> 8023 | K19: =A11*A19 -> 8136 | L19: =A12*A19 -> 8475 | M19: =A13*A19 -> 9492 | N19: =A14*A19 -> 10170 | O19: =A15*A19 -> 10848 | P19: =A16*A19 -> 11300 | Q19: =A17*A19 -> 11865 | R19: =A18*A19 -> 12430 | AA19: =IF(COUNTIF(AB$17:AB19,AB19)=1,COUNT(AA$16:AA18)+1) -> 3 | AB19: 12000 | AC19: =IFERROR(VLOOKUP(ROW(AC3),AA$17:AB$216,2,0),"") -> 12000 | AD19: 3888 | AE19: =IF($AD19="","",IFERROR(SMALL(IF($AD19=$B$2:$V$22,ROW($B$2:$V$22)+COLUMN($B$2:$V$22)/100),COLUMN(A3)),"")) -> 11.08 | AF19: =IF($AD19="","",IFERROR(SMALL(IF($AD19=$B$2:$V$22,ROW($B$2:$V$22)+COLUMN($B$2:$V$22)/100),COLUMN(B3)),"")) ->  | AG19: =IF($AD19="","",IFERROR(SMALL(IF($AD19=$B$2:$V$22,ROW($B$2:$V$22)+COLUMN($B$2:$V$22)/100),COLUMN(C3)),"")) ->  | AH19: =IF($AD19="","",IFERROR(SMALL(IF($AD19=$B$2:$V$22,ROW($B$2:$V$22)+COLUMN($B$2:$V$22)/100),COLUMN(D3)),"")) ->  | AI19: =IF($AD19="","",IFERROR(SMALL(IF($AD19=$B$2:$V$22,ROW($B$2:$V$22)+COLUMN($B$2:$V$22)/100),COLUMN(E3)),"")) ->  | AJ19: =IF($AD19="","",IFERROR(SMALL(IF($AD19=$B$2:$V$22,ROW($B$2:$V$22)+COLUMN($B$2:$V$22)/100),COLUMN(F3)),"")) ->  | AK19: =IF($AD19="","",IFERROR(SMALL(IF($AD19=$B$2:$V$22,ROW($B$2:$V$22)+COLUMN($B$2:$V$22)/100),COLUMN(G3)),"")) ->  | AL19: 72 | AS19: 54 | AZ19: =IF($AC19="","",IFERROR(SMALL(IF($AC19=$B$2:$V$22,ROW($B$2:$V$22)+COLUMN($B$2:$V$22)/100),COLUMN(A3)),"")) -> 20.16 | BA19: =IF($AC19="","",IFERROR(SMALL(IF($AC19=$B$2:$V$22,ROW($B$2:$V$22)+COLUMN($B$2:$V$22)/100),COLUMN(B3)),"")) -> 21.15 | BB19: =IF($AC19="","",IFERROR(SMALL(IF($AC19=$B$2:$V$22,ROW($B$2:$V$22)+COLUMN($B$2:$V$22)/100),COLUMN(C3)),"")) ->  | BC19: =IF($AC19="","",IFERROR(SMALL(IF($AC19=$B$2:$V$22,ROW($B$2:$V$22)+COLUMN($B$2:$V$22)/100),COLUMN(D3)),"")) ->  | BD19: =IF($AC19="","",IFERROR(SMALL(IF($AC19=$B$2:$V$22,ROW($B$2:$V$22)+COLUMN($B$2:$V$22)/100),COLUMN(E3)),"")) ->  | BE19: =IF($AC19="","",IFERROR(SMALL(IF($AC19=$B$2:$V$22,ROW($B$2:$V$22)+COLUMN($B$2:$V$22)/100),COLUMN(F3)),"")) ->  | BF19: =IF($AC19="","",IFERROR(SMALL(IF($AC19=$B$2:$V$22,ROW($B$2:$V$22)+COLUMN($B$2:$V$22)/100),COLUMN(G3)),"")) ->  | BG19: 120 | BH19: 125 | BN19: 100 | BO19: 96 | BU19: 0.324
A20: 120 | B20: =A2*A20 -> 3600 | C20: =A3*A20 -> 4320 | D20: =A4*A20 -> 4800 | E20: =A5*A20 -> 4920 | F20: =A6*A20 -> 5760 | G20: =A7*A20 -> 6000 | H20: =A8*A20 -> 6480 | I20: =A9*A20 -> 8400 | J20: =A10*A20 -> 8520 | K20: =A11*A20 -> 8640 | L20: =A12*A20 -> 9000 | M20: =A13*A20 -> 10080 | N20: =A14*A20 -> 10800 | O20: =A15*A20 -> 11520 | P20: =A16*A20 -> 12000 | Q20: =A17*A20 -> 12600 | R20: =A18*A20 -> 13200 | S20: =A19*A20 -> 13560 | AA20: =IF(COUNTIF(AB$17:AB20,AB20)=1,COUNT(AA$16:AA19)+1) -> 4 | AB20: 12500 | AC20: 12500 | AD20: 4050 | AE20: =IF($AD20="","",IFERROR(SMALL(IF($AD20=$B$2:$V$22,ROW($B$2:$V$22)+COLUMN($B$2:$V$22)/100),COLUMN(A4)),"")) -> 12.08 | AF20: =IF($AD20="","",IFERROR(SMALL(IF($AD20=$B$2:$V$22,ROW($B$2:$V$22)+COLUMN($B$2:$V$22)/100),COLUMN(B4)),"")) ->  | AG20: =IF($AD20="","",IFERROR(SMALL(IF($AD20=$B$2:$V$22,ROW($B$2:$V$22)+COLUMN($B$2:$V$22)/100),COLUMN(C4)),"")) ->  | AH20: =IF($AD20="","",IFERROR(SMALL(IF($AD20=$B$2:$V$22,ROW($B$2:$V$22)+COLUMN($B$2:$V$22)/100),COLUMN(D4)),"")) ->  | AI20: =IF($AD20="","",IFERROR(SMALL(IF($AD20=$B$2:$V$22,ROW($B$2:$V$22)+COLUMN($B$2:$V$22)/100),COLUMN(E4)),"")) ->  | AJ20: =IF($AD20="","",IFERROR(SMALL(IF($AD20=$B$2:$V$22,ROW($B$2:$V$22)+COLUMN($B$2:$V$22)/100),COLUMN(F4)),"")) ->  | AK20: =IF($AD20="","",IFERROR(SMALL(IF($AD20=$B$2:$V$22,ROW($B$2:$V$22)+COLUMN($B$2:$V$22)/100),COLUMN(G4)),"")) ->  | AL20: 75 | AS20: 54 | AZ20: =IF($AC20="","",IFERROR(SMALL(IF($AC20=$B$2:$V$22,ROW($B$2:$V$22)+COLUMN($B$2:$V$22)/100),COLUMN(A4)),"")) -> 21.16 | BA20: =IF($AC20="","",IFERROR(SMALL(IF($AC20=$B$2:$V$22,ROW($B$2:$V$22)+COLUMN($B$2:$V$22)/100),COLUMN(B4)),"")) ->  | BB20: =IF($AC20="","",IFERROR(SMALL(IF($AC20=$B$2:$V$22,ROW($B$2:$V$22)+COLUMN($B$2:$V$22)/100),COLUMN(C4)),"")) ->  | BC20: =IF($AC20="","",IFERROR(SMALL(IF($AC20=$B$2:$V$22,ROW($B$2:$V$22)+COLUMN($B$2:$V$22)/100),COLUMN(D4)),"")) ->  | BD20: =IF($AC20="","",IFERROR(SMALL(IF($AC20=$B$2:$V$22,ROW($B$2:$V$22)+COLUMN($B$2:$V$22)/100),COLUMN(E4)),"")) ->  | BE20: =IF($AC20="","",IFERROR(SMALL(IF($AC20=$B$2:$V$22,ROW($B$2:$V$22)+COLUMN($B$2:$V$22)/100),COLUMN(F4)),"")) ->  | BF20: =IF($AC20="","",IFERROR(SMALL(IF($AC20=$B$2:$V$22,ROW($B$2:$V$22)+COLUMN($B$2:$V$22)/100),COLUMN(G4)),"")) ->  | BG20: 125 | BN20: 100 | BU20: 0.324
A21: 125 | B21: =A2*A21 -> 3750 | C21: =A3*A21 -> 4500 | D21: =A4*A21 -> 5000 | E21: =A5*A21 -> 5125 | F21: =A6*A21 -> 6000 | G21: =A7*A21 -> 6250 | H21: =A8*A21 -> 6750 | I21: =A9*A21 -> 8750 | J21: =A10*A21 -> 8875 | K21: =A11*A21 -> 9000 | L21: =A12*A21 -> 9375 | M21: =A13*A21 -> 10500 | N21: =A14*A21 -> 11250 | O21: =A15*A21 -> 12000 | P21: =A16*A21 -> 12500 | Q21: =A17*A21 -> 13125 | R21: =A18*A21 -> 13750 | S21: =A19*A21 -> 14125 | T21: =A20*A21 -> 15000 | AA21: =IF(COUNTIF(AB$17:AB21,AB21)=1,COUNT(AA$16:AA20)+1) -> 5 | AB21: 15000 | AC21: 15000 | AD21: 4860 | AE21: =IF($AD21="","",IFERROR(SMALL(IF($AD21=$B$2:$V$22,ROW($B$2:$V$22)+COLUMN($B$2:$V$22)/100),COLUMN(A5)),"")) -> 14.08 | AF21: =IF($AD21="","",IFERROR(SMALL(IF($AD21=$B$2:$V$22,ROW($B$2:$V$22)+COLUMN($B$2:$V$22)/100),COLUMN(B5)),"")) ->  | AG21: =IF($AD21="","",IFERROR(SMALL(IF($AD21=$B$2:$V$22,ROW($B$2:$V$22)+COLUMN($B$2:$V$22)/100),COLUMN(C5)),"")) ->  | AH21: =IF($AD21="","",IFERROR(SMALL(IF($AD21=$B$2:$V$22,ROW($B$2:$V$22)+COLUMN($B$2:$V$22)/100),COLUMN(D5)),"")) ->  | AI21: =IF($AD21="","",IFERROR(SMALL(IF($AD21=$B$2:$V$22,ROW($B$2:$V$22)+COLUMN($B$2:$V$22)/100),COLUMN(E5)),"")) ->  | AJ21: =IF($AD21="","",IFERROR(SMALL(IF($AD21=$B$2:$V$22,ROW($B$2:$V$22)+COLUMN($B$2:$V$22)/100),COLUMN(F5)),"")) ->  | AK21: =IF($AD21="","",IFERROR(SMALL(IF($AD21=$B$2:$V$22,ROW($B$2:$V$22)+COLUMN($B$2:$V$22)/100),COLUMN(G5)),"")) ->  | AL21: 90 | AS21: 54 | AZ21: =IF($AC21="","",IFERROR(SMALL(IF($AC21=$B$2:$V$22,ROW($B$2:$V$22)+COLUMN($B$2:$V$22)/100),COLUMN(A5)),"")) -> 21.2 | BA21: =IF($AC21="","",IFERROR(SMALL(IF($AC21=$B$2:$V$22,ROW($B$2:$V$22)+COLUMN($B$2:$V$22)/100),COLUMN(B5)),"")) ->  | BB21: =IF($AC21="","",IFERROR(SMALL(IF($AC21=$B$2:$V$22,ROW($B$2:$V$22)+COLUMN($B$2:$V$22)/100),COLUMN(C5)),"")) ->  | BC21: =IF($AC21="","",IFERROR(SMALL(IF($AC21=$B$2:$V$22,ROW($B$2:$V$22)+COLUMN($B$2:$V$22)/100),COLUMN(D5)),"")) ->  | BD21: =IF($AC21="","",IFERROR(SMALL(IF($AC21=$B$2:$V$22,ROW($B$2:$V$22)+COLUMN($B$2:$V$22)/100),COLUMN(E5)),"")) ->  | BE21: =IF($AC21="","",IFERROR(SMALL(IF($AC21=$B$2:$V$22,ROW($B$2:$V$22)+COLUMN($B$2:$V$22)/100),COLUMN(F5)),"")) ->  | BF21: =IF($AC21="","",IFERROR(SMALL(IF($AC21=$B$2:$V$22,ROW($B$2:$V$22)+COLUMN($B$2:$V$22)/100),COLUMN(G5)),"")) ->  | BG21: 125 | BN21: 120 | BU21: 0.324
A22: 127 | B22: =A2*A22 -> 3810 | C22: =A3*A22 -> 4572 | D22: =A4*A22 -> 5080 | E22: =A5*A22 -> 5207 | F22: =A6*A22 -> 6096 | G22: =A7*A22 -> 6350 | H22: =A8*A22 -> 6858 | I22: =A9*A22 -> 8890 | J22: =A10*A22 -> 9017 | K22: =A11*A22 -> 9144 | L22: =A12*A22 -> 9525 | M22: =A13*A22 -> 10668 | N22: =A14*A22 -> 11430 | O22: =A15*A22 -> 12192 | P22: =A16*A22 -> 12700 | Q22: =A17*A22 -> 13335 | R22: =A18*A22 -> 13970 | S22: =A19*A22 -> 14351 | T22: =A20*A22 -> 15240 | U22: =A21*A22 -> 15875 | AA22: =IF(COUNTIF(AB$17:AB22,AB22)=1,COUNT(AA$16:AA21)+1) -> 6 | AE22: =IF($AD22="","",IFERROR(SMALL(IF($AD22=$B$2:$V$22,ROW($B$2:$V$22)+COLUMN($B$2:$V$22)/100),COLUMN(A6)),"")) ->  | AF22: =IF($AD22="","",IFERROR(SMALL(IF($AD22=$B$2:$V$22,ROW($B$2:$V$22)+COLUMN($B$2:$V$22)/100),COLUMN(B6)),"")) ->  | AG22: =IF($AD22="","",IFERROR(SMALL(IF($AD22=$B$2:$V$22,ROW($B$2:$V$22)+COLUMN($B$2:$V$22)/100),COLUMN(C6)),"")) ->  | AH22: =IF($AD22="","",IFERROR(SMALL(IF($AD22=$B$2:$V$22,ROW($B$2:$V$22)+COLUMN($B$2:$V$22)/100),COLUMN(D6)),"")) ->  | AI22: =IF($AD22="","",IFERROR(SMALL(IF($AD22=$B$2:$V$22,ROW($B$2:$V$22)+COLUMN($B$2:$V$22)/100),COLUMN(E6)),"")) ->  | AJ22: =IF($AD22="","",IFERROR(SMALL(IF($AD22=$B$2:$V$22,ROW($B$2:$V$22)+COLUMN($B$2:$V$22)/100),COLUMN(F6)),"")) ->  | AK22: =IF($AD22="","",IFERROR(SMALL(IF($AD22=$B$2:$V$22,ROW($B$2:$V$22)+COLUMN($B$2:$V$22)/100),COLUMN(G6)),"")) ->  | AZ22: =IF($AC22="","",IFERROR(SMALL(IF($AC22=$B$2:$V$22,ROW($B$2:$V$22)+COLUMN($B$2:$V$22)/100),COLUMN(A6)),"")) ->  | BA22: =IF($AC22="","",IFERROR(SMALL(IF($AC22=$B$2:$V$22,ROW($B$2:$V$22)+COLUMN($B$2:$V$22)/100),COLUMN(B6)),"")) ->  | BB22: =IF($AC22="","",IFERROR(SMALL(IF($AC22=$B$2:$V$22,ROW($B$2:$V$22)+COLUMN($B$2:$V$22)/100),COLUMN(C6)),"")) ->  | BC22: =IF($AC22="","",IFERROR(SMALL(IF($AC22=$B$2:$V$22,ROW($B$2:$V$22)+COLUMN($B$2:$V$22)/100),COLUMN(D6)),"")) ->  | BD22: =IF($AC22="","",IFERROR(SMALL(IF($AC22=$B$2:$V$22,ROW($B$2:$V$22)+COLUMN($B$2:$V$22)/100),COLUMN(E6)),"")) ->  | BE22: =IF($AC22="","",IFERROR(SMALL(IF($AC22=$B$2:$V$22,ROW($B$2:$V$22)+COLUMN($B$2:$V$22)/100),COLUMN(F6)),"")) ->  | BF22: =IF($AC22="","",IFERROR(SMALL(IF($AC22=$B$2:$V$22,ROW($B$2:$V$22)+COLUMN($B$2:$V$22)/100),COLUMN(G6)),"")) -> 
AA23: =IF(COUNTIF(AB$17:AB23,AB23)=1,COUNT(AA$16:AA22)+1) -> FALSE | AE23: =IF($AD23="","",IFERROR(SMALL(IF($AD23=$B$2:$V$22,ROW($B$2:$V$22)+COLUMN($B$2:$V$22)/100),COLUMN(A7)),"")) ->  | AF23: =IF($AD23="","",IFERROR(SMALL(IF($AD23=$B$2:$V$22,ROW($B$2:$V$22)+COLUMN($B$2:$V$22)/100),COLUMN(B7)),"")) ->  | AG23: =IF($AD23="","",IFERROR(SMALL(IF($AD23=$B$2:$V$22,ROW($B$2:$V$22)+COLUMN($B$2:$V$22)/100),COLUMN(C7)),"")) ->  | AH23: =IF($AD23="","",IFERROR(SMALL(IF($AD23=$B$2:$V$22,ROW($B$2:$V$22)+COLUMN($B$2:$V$22)/100),COLUMN(D7)),"")) ->  | AI23: =IF($AD23="","",IFERROR(SMALL(IF($AD23=$B$2:$V$22,ROW($B$2:$V$22)+COLUMN($B$2:$V$22)/100),COLUMN(E7)),"")) ->  | AJ23: =IF($AD23="","",IFERROR(SMALL(IF($AD23=$B$2:$V$22,ROW($B$2:$V$22)+COLUMN($B$2:$V$22)/100),COLUMN(F7)),"")) ->  | AK23: =IF($AD23="","",IFERROR(SMALL(IF($AD23=$B$2:$V$22,ROW($B$2:$V$22)+COLUMN($B$2:$V$22)/100),COLUMN(G7)),"")) ->  | AZ23: =IF($AC23="","",IFERROR(SMALL(IF($AC23=$B$2:$V$22,ROW($B$2:$V$22)+COLUMN($B$2:$V$22)/100),COLUMN(A7)),"")) ->  | BA23: =IF($AC23="","",IFERROR(SMALL(IF($AC23=$B$2:$V$22,ROW($B$2:$V$22)+COLUMN($B$2:$V$22)/100),COLUMN(B7)),"")) ->  | BB23: =IF($AC23="","",IFERROR(SMALL(IF($AC23=$B$2:$V$22,ROW($B$2:$V$22)+COLUMN($B$2:$V$22)/100),COLUMN(C7)),"")) ->  | BC23: =IF($AC23="","",IFERROR(SMALL(IF($AC23=$B$2:$V$22,ROW($B$2:$V$22)+COLUMN($B$2:$V$22)/100),COLUMN(D7)),"")) ->  | BD23: =IF($AC23="","",IFERROR(SMALL(IF($AC23=$B$2:$V$22,ROW($B$2:$V$22)+COLUMN($B$2:$V$22)/100),COLUMN(E7)),"")) ->  | BE23: =IF($AC23="","",IFERROR(SMALL(IF($AC23=$B$2:$V$22,ROW($B$2:$V$22)+COLUMN($B$2:$V$22)/100),COLUMN(F7)),"")) ->  | BF23: =IF($AC23="","",IFERROR(SMALL(IF($AC23=$B$2:$V$22,ROW($B$2:$V$22)+COLUMN($B$2:$V$22)/100),COLUMN(G7)),"")) -> 
B24: =MIN(IF(B3/$AA$3=$B$3:$V$22,$B$3:$V$22)) -> 0 | C24: =MIN(IF(C3/$AA$3=$B$3:$V$22,$B$3:$V$22)) -> 0 | D24: =MIN(IF(D3/$AA$3=$B$3:$V$22,$B$3:$V$22)) -> 0 | E24: =MIN(IF(E3/$AA$3=$B$3:$V$22,$B$3:$V$22)) -> 0 | F24: =MIN(IF(F3/$AA$3=$B$3:$V$22,$B$3:$V$22)) -> 0 | G24: =MIN(IF(G3/$AA$3=$B$3:$V$22,$B$3:$V$22)) -> 0 | H24: =MIN(IF(H3/$AA$3=$B$3:$V$22,$B$3:$V$22)) -> 0 | I24: =MIN(IF(I3/$AA$3=$B$3:$V$22,$B$3:$V$22)) -> 0 | J24: =MIN(IF(J3/$AA$3=$B$3:$V$22,$B$3:$V$22)) -> 0 | K24: =MIN(IF(K3/$AA$3=$B$3:$V$22,$B$3:$V$22)) -> 0 | L24: =MIN(IF(L3/$AA$3=$B$3:$V$22,$B$3:$V$22)) -> 0 | M24: =MIN(IF(M3/$AA$3=$B$3:$V$22,$B$3:$V$22)) -> 0 | N24: =MIN(IF(N3/$AA$3=$B$3:$V$22,$B$3:$V$22)) -> 0 | O24: =MIN(IF(O3/$AA$3=$B$3:$V$22,$B$3:$V$22)) -> 0 | P24: =MIN(IF(P3/$AA$3=$B$3:$V$22,$B$3:$V$22)) -> 0 | Q24: =MIN(IF(Q3/$AA$3=$B$3:$V$22,$B$3:$V$22)) -> 0 | R24: =MIN(IF(R3/$AA$3=$B$3:$V$22,$B$3:$V$22)) -> 0 | S24: =MIN(IF(S3/$AA$3=$B$3:$V$22,$B$3:$V$22)) -> 0 | T24: =MIN(IF(T3/$AA$3=$B$3:$V$22,$B$3:$V$22)) -> 0 | U24: =MIN(IF(U3/$AA$3=$B$3:$V$22,$B$3:$V$22)) -> 0 | AA24: =IF(COUNTIF(AB$17:AB24,AB24)=1,COUNT(AA$16:AA23)+1) -> FALSE | AE24: =IF($AD24="","",IFERROR(SMALL(IF($AD24=$B$2:$V$22,ROW($B$2:$V$22)+COLUMN($B$2:$V$22)/100),COLUMN(A8)),"")) ->  | AF24: =IF($AD24="","",IFERROR(SMALL(IF($AD24=$B$2:$V$22,ROW($B$2:$V$22)+COLUMN($B$2:$V$22)/100),COLUMN(B8)),"")) ->  | AG24: =IF($AD24="","",IFERROR(SMALL(IF($AD24=$B$2:$V$22,ROW($B$2:$V$22)+COLUMN($B$2:$V$22)/100),COLUMN(C8)),"")) ->  | AH24: =IF($AD24="","",IFERROR(SMALL(IF($AD24=$B$2:$V$22,ROW($B$2:$V$22)+COLUMN($B$2:$V$22)/100),COLUMN(D8)),"")) ->  | AI24: =IF($AD24="","",IFERROR(SMALL(IF($AD24=$B$2:$V$22,ROW($B$2:$V$22)+COLUMN($B$2:$V$22)/100),COLUMN(E8)),"")) ->  | AJ24: =IF($AD24="","",IFERROR(SMALL(IF($AD24=$B$2:$V$22,ROW($B$2:$V$22)+COLUMN($B$2:$V$22)/100),COLUMN(F8)),"")) ->  | AK24: =IF($AD24="","",IFERROR(SMALL(IF($AD24=$B$2:$V$22,ROW($B$2:$V$22)+COLUMN($B$2:$V$22)/100),COLUMN(G8)),"")) ->  | AZ24: =IF($AC24="","",IFERROR(SMALL(IF($AC24=$B$2:$V$22,ROW($B$2:$V$22)+COLUMN($B$2:$V$22)/100),COLUMN(A8)),"")) ->  | BA24: =IF($AC24="","",IFERROR(SMALL(IF($AC24=$B$2:$V$22,ROW($B$2:$V$22)+COLUMN($B$2:$V$22)/100),COLUMN(B8)),"")) ->  | BB24: =IF($AC24="","",IFERROR(SMALL(IF($AC24=$B$2:$V$22,ROW($B$2:$V$22)+COLUMN($B$2:$V$22)/100),COLUMN(C8)),"")) ->  | BC24: =IF($AC24="","",IFERROR(SMALL(IF($AC24=$B$2:$V$22,ROW($B$2:$V$22)+COLUMN($B$2:$V$22)/100),COLUMN(D8)),"")) ->  | BD24: =IF($AC24="","",IFERROR(SMALL(IF($AC24=$B$2:$V$22,ROW($B$2:$V$22)+COLUMN($B$2:$V$22)/100),COLUMN(E8)),"")) ->  | BE24: =IF($AC24="","",IFERROR(SMALL(IF($AC24=$B$2:$V$22,ROW($B$2:$V$22)+COLUMN($B$2:$V$22)/100),COLUMN(F8)),"")) ->  | BF24: =IF($AC24="","",IFERROR(SMALL(IF($AC24=$B$2:$V$22,ROW($B$2:$V$22)+COLUMN($B$2:$V$22)/100),COLUMN(G8)),"")) -> 
B25: =MIN(IF(B4/$AA$3=$B$3:$V$22,$B$3:$V$22)) -> 0 | C25: =MIN(IF(C4/$AA$3=$B$3:$V$22,$B$3:$V$22)) -> 0 | D25: =MIN(IF(D4/$AA$3=$B$3:$V$22,$B$3:$V$22)) -> 0 | E25: =MIN(IF(E4/$AA$3=$B$3:$V$22,$B$3:$V$22)) -> 0 | F25: =MIN(IF(F4/$AA$3=$B$3:$V$22,$B$3:$V$22)) -> 0 | G25: =MIN(IF(G4/$AA$3=$B$3:$V$22,$B$3:$V$22)) -> 0 | H25: =MIN(IF(H4/$AA$3=$B$3:$V$22,$B$3:$V$22)) -> 0 | I25: =MIN(IF(I4/$AA$3=$B$3:$V$22,$B$3:$V$22)) -> 0 | J25: =MIN(IF(J4/$AA$3=$B$3:$V$22,$B$3:$V$22)) -> 0 | K25: =MIN(IF(K4/$AA$3=$B$3:$V$22,$B$3:$V$22)) -> 0 | L25: =MIN(IF(L4/$AA$3=$B$3:$V$22,$B$3:$V$22)) -> 0 | M25: =MIN(IF(M4/$AA$3=$B$3:$V$22,$B$3:$V$22)) -> 0 | N25: =MIN(IF(N4/$AA$3=$B$3:$V$22,$B$3:$V$22)) -> 0 | O25: =MIN(IF(O4/$AA$3=$B$3:$V$22,$B$3:$V$22)) -> 0 | P25: =MIN(IF(P4/$AA$3=$B$3:$V$22,$B$3:$V$22)) -> 0 | Q25: =MIN(IF(Q4/$AA$3=$B$3:$V$22,$B$3:$V$22)) -> 0 | R25: =MIN(IF(R4/$AA$3=$B$3:$V$22,$B$3:$V$22)) -> 0 | S25: =MIN(IF(S4/$AA$3=$B$3:$V$22,$B$3:$V$22)) -> 0 | T25: =MIN(IF(T4/$AA$3=$B$3:$V$22,$B$3:$V$22)) -> 0 | U25: =MIN(IF(U4/$AA$3=$B$3:$V$22,$B$3:$V$22)) -> 0 | AA25: =IF(COUNTIF(AB$17:AB25,AB25)=1,COUNT(AA$16:AA24)+1) -> FALSE | AE25: =IF($AD25="","",IFERROR(SMALL(IF($AD25=$B$2:$V$22,ROW($B$2:$V$22)+COLUMN($B$2:$V$22)/100),COLUMN(A9)),"")) ->  | AF25: =IF($AD25="","",IFERROR(SMALL(IF($AD25=$B$2:$V$22,ROW($B$2:$V$22)+COLUMN($B$2:$V$22)/100),COLUMN(B9)),"")) ->  | AG25: =IF($AD25="","",IFERROR(SMALL(IF($AD25=$B$2:$V$22,ROW($B$2:$V$22)+COLUMN($B$2:$V$22)/100),COLUMN(C9)),"")) ->  | AH25: =IF($AD25="","",IFERROR(SMALL(IF($AD25=$B$2:$V$22,ROW($B$2:$V$22)+COLUMN($B$2:$V$22)/100),COLUMN(D9)),"")) ->  | AI25: =IF($AD25="","",IFERROR(SMALL(IF($AD25=$B$2:$V$22,ROW($B$2:$V$22)+COLUMN($B$2:$V$22)/100),COLUMN(E9)),"")) ->  | AJ25: =IF($AD25="","",IFERROR(SMALL(IF($AD25=$B$2:$V$22,ROW($B$2:$V$22)+COLUMN($B$2:$V$22)/100),COLUMN(F9)),"")) ->  | AK25: =IF($AD25="","",IFERROR(SMALL(IF($AD25=$B$2:$V$22,ROW($B$2:$V$22)+COLUMN($B$2:$V$22)/100),COLUMN(G9)),"")) ->  | AZ25: =IF($AC25="","",IFERROR(SMALL(IF($AC25=$B$2:$V$22,ROW($B$2:$V$22)+COLUMN($B$2:$V$22)/100),COLUMN(A9)),"")) ->  | BA25: =IF($AC25="","",IFERROR(SMALL(IF($AC25=$B$2:$V$22,ROW($B$2:$V$22)+COLUMN($B$2:$V$22)/100),COLUMN(B9)),"")) ->  | BB25: =IF($AC25="","",IFERROR(SMALL(IF($AC25=$B$2:$V$22,ROW($B$2:$V$22)+COLUMN($B$2:$V$22)/100),COLUMN(C9)),"")) ->  | BC25: =IF($AC25="","",IFERROR(SMALL(IF($AC25=$B$2:$V$22,ROW($B$2:$V$22)+COLUMN($B$2:$V$22)/100),COLUMN(D9)),"")) ->  | BD25: =IF($AC25="","",IFERROR(SMALL(IF($AC25=$B$2:$V$22,ROW($B$2:$V$22)+COLUMN($B$2:$V$22)/100),COLUMN(E9)),"")) ->  | BE25: =IF($AC25="","",IFERROR(SMALL(IF($AC25=$B$2:$V$22,ROW($B$2:$V$22)+COLUMN($B$2:$V$22)/100),COLUMN(F9)),"")) ->  | BF25: =IF($AC25="","",IFERROR(SMALL(IF($AC25=$B$2:$V$22,ROW($B$2:$V$22)+COLUMN($B$2:$V$22)/100),COLUMN(G9)),"")) -> 
B26: =MIN(IF(B5/$AA$3=$B$3:$V$22,$B$3:$V$22)) -> 0 | C26: =MIN(IF(C5/$AA$3=$B$3:$V$22,$B$3:$V$22)) -> 0 | D26: =MIN(IF(D5/$AA$3=$B$3:$V$22,$B$3:$V$22)) -> 0 | E26: =MIN(IF(E5/$AA$3=$B$3:$V$22,$B$3:$V$22)) -> 0 | F26: =MIN(IF(F5/$AA$3=$B$3:$V$22,$B$3:$V$22)) -> 0 | G26: =MIN(IF(G5/$AA$3=$B$3:$V$22,$B$3:$V$22)) -> 0 | H26: =MIN(IF(H5/$AA$3=$B$3:$V$22,$B$3:$V$22)) -> 0 | I26: =MIN(IF(I5/$AA$3=$B$3:$V$22,$B$3:$V$22)) -> 0 | J26: =MIN(IF(J5/$AA$3=$B$3:$V$22,$B$3:$V$22)) -> 0 | K26: =MIN(IF(K5/$AA$3=$B$3:$V$22,$B$3:$V$22)) -> 0 | L26: =MIN(IF(L5/$AA$3=$B$3:$V$22,$B$3:$V$22)) -> 0 | M26: =MIN(IF(M5/$AA$3=$B$3:$V$22,$B$3:$V$22)) -> 0 | N26: =MIN(IF(N5/$AA$3=$B$3:$V$22,$B$3:$V$22)) -> 0 | O26: =MIN(IF(O5/$AA$3=$B$3:$V$22,$B$3:$V$22)) -> 0 | P26: =MIN(IF(P5/$AA$3=$B$3:$V$22,$B$3:$V$22)) -> 0 | Q26: =MIN(IF(Q5/$AA$3=$B$3:$V$22,$B$3:$V$22)) -> 0 | R26: =MIN(IF(R5/$AA$3=$B$3:$V$22,$B$3:$V$22)) -> 0 | S26: =MIN(IF(S5/$AA$3=$B$3:$V$22,$B$3:$V$22)) -> 0 | T26: =MIN(IF(T5/$AA$3=$B$3:$V$22,$B$3:$V$22)) -> 0 | U26: =MIN(IF(U5/$AA$3=$B$3:$V$22,$B$3:$V$22)) -> 0 | AA26: =IF(COUNTIF(AB$17:AB26,AB26)=1,COUNT(AA$16:AA25)+1) -> FALSE | AE26: =IF($AD26="","",IFERROR(SMALL(IF($AD26=$B$2:$V$22,ROW($B$2:$V$22)+COLUMN($B$2:$V$22)/100),COLUMN(A10)),"")) ->  | AF26: =IF($AD26="","",IFERROR(SMALL(IF($AD26=$B$2:$V$22,ROW($B$2:$V$22)+COLUMN($B$2:$V$22)/100),COLUMN(B10)),"")) ->  | AG26: =IF($AD26="","",IFERROR(SMALL(IF($AD26=$B$2:$V$22,ROW($B$2:$V$22)+COLUMN($B$2:$V$22)/100),COLUMN(C10)),"")) ->  | AH26: =IF($AD26="","",IFERROR(SMALL(IF($AD26=$B$2:$V$22,ROW($B$2:$V$22)+COLUMN($B$2:$V$22)/100),COLUMN(D10)),"")) ->  | AI26: =IF($AD26="","",IFERROR(SMALL(IF($AD26=$B$2:$V$22,ROW($B$2:$V$22)+COLUMN($B$2:$V$22)/100),COLUMN(E10)),"")) ->  | AJ26: =IF($AD26="","",IFERROR(SMALL(IF($AD26=$B$2:$V$22,ROW($B$2:$V$22)+COLUMN($B$2:$V$22)/100),COLUMN(F10)),"")) ->  | AK26: =IF($AD26="","",IFERROR(SMALL(IF($AD26=$B$2:$V$22,ROW($B$2:$V$22)+COLUMN($B$2:$V$22)/100),COLUMN(G10)),"")) ->  | AZ26: =IF($AC26="","",IFERROR(SMALL(IF($AC26=$B$2:$V$22,ROW($B$2:$V$22)+COLUMN($B$2:$V$22)/100),COLUMN(A10)),"")) ->  | BA26: =IF($AC26="","",IFERROR(SMALL(IF($AC26=$B$2:$V$22,ROW($B$2:$V$22)+COLUMN($B$2:$V$22)/100),COLUMN(B10)),"")) ->  | BB26: =IF($AC26="","",IFERROR(SMALL(IF($AC26=$B$2:$V$22,ROW($B$2:$V$22)+COLUMN($B$2:$V$22)/100),COLUMN(C10)),"")) ->  | BC26: =IF($AC26="","",IFERROR(SMALL(IF($AC26=$B$2:$V$22,ROW($B$2:$V$22)+COLUMN($B$2:$V$22)/100),COLUMN(D10)),"")) ->  | BD26: =IF($AC26="","",IFERROR(SMALL(IF($AC26=$B$2:$V$22,ROW($B$2:$V$22)+COLUMN($B$2:$V$22)/100),COLUMN(E10)),"")) ->  | BE26: =IF($AC26="","",IFERROR(SMALL(IF($AC26=$B$2:$V$22,ROW($B$2:$V$22)+COLUMN($B$2:$V$22)/100),COLUMN(F10)),"")) ->  | BF26: =IF($AC26="","",IFERROR(SMALL(IF($AC26=$B$2:$V$22,ROW($B$2:$V$22)+COLUMN($B$2:$V$22)/100),COLUMN(G10)),"")) -> 
B27: =MIN(IF(B6/$AA$3=$B$3:$V$22,$B$3:$V$22)) -> 0 | C27: =MIN(IF(C6/$AA$3=$B$3:$V$22,$B$3:$V$22)) -> 0 | D27: =MIN(IF(D6/$AA$3=$B$3:$V$22,$B$3:$V$22)) -> 0 | E27: =MIN(IF(E6/$AA$3=$B$3:$V$22,$B$3:$V$22)) -> 0 | F27: =MIN(IF(F6/$AA$3=$B$3:$V$22,$B$3:$V$22)) -> 0 | G27: =MIN(IF(G6/$AA$3=$B$3:$V$22,$B$3:$V$22)) -> 0 | H27: =MIN(IF(H6/$AA$3=$B$3:$V$22,$B$3:$V$22)) -> 0 | I27: =MIN(IF(I6/$AA$3=$B$3:$V$22,$B$3:$V$22)) -> 0 | J27: =MIN(IF(J6/$AA$3=$B$3:$V$22,$B$3:$V$22)) -> 0 | K27: =MIN(IF(K6/$AA$3=$B$3:$V$22,$B$3:$V$22)) -> 0 | L27: =MIN(IF(L6/$AA$3=$B$3:$V$22,$B$3:$V$22)) -> 0 | M27: =MIN(IF(M6/$AA$3=$B$3:$V$22,$B$3:$V$22)) -> 0 | N27: =MIN(IF(N6/$AA$3=$B$3:$V$22,$B$3:$V$22)) -> 0 | O27: =MIN(IF(O6/$AA$3=$B$3:$V$22,$B$3:$V$22)) -> 0 | P27: =MIN(IF(P6/$AA$3=$B$3:$V$22,$B$3:$V$22)) -> 0 | Q27: =MIN(IF(Q6/$AA$3=$B$3:$V$22,$B$3:$V$22)) -> 0 | R27: =MIN(IF(R6/$AA$3=$B$3:$V$22,$B$3:$V$22)) -> 0 | S27: =MIN(IF(S6/$AA$3=$B$3:$V$22,$B$3:$V$22)) -> 0 | T27: =MIN(IF(T6/$AA$3=$B$3:$V$22,$B$3:$V$22)) -> 0 | U27: =MIN(IF(U6/$AA$3=$B$3:$V$22,$B$3:$V$22)) -> 0 | AA27: =IF(COUNTIF(AB$17:AB27,AB27)=1,COUNT(AA$16:AA26)+1) -> FALSE | AE27: =IF($AD27="","",IFERROR(SMALL(IF($AD27=$B$2:$V$22,ROW($B$2:$V$22)+COLUMN($B$2:$V$22)/100),COLUMN(A11)),"")) ->  | AF27: =IF($AD27="","",IFERROR(SMALL(IF($AD27=$B$2:$V$22,ROW($B$2:$V$22)+COLUMN($B$2:$V$22)/100),COLUMN(B11)),"")) ->  | AG27: =IF($AD27="","",IFERROR(SMALL(IF($AD27=$B$2:$V$22,ROW($B$2:$V$22)+COLUMN($B$2:$V$22)/100),COLUMN(C11)),"")) ->  | AH27: =IF($AD27="","",IFERROR(SMALL(IF($AD27=$B$2:$V$22,ROW($B$2:$V$22)+COLUMN($B$2:$V$22)/100),COLUMN(D11)),"")) ->  | AI27: =IF($AD27="","",IFERROR(SMALL(IF($AD27=$B$2:$V$22,ROW($B$2:$V$22)+COLUMN($B$2:$V$22)/100),COLUMN(E11)),"")) ->  | AJ27: =IF($AD27="","",IFERROR(SMALL(IF($AD27=$B$2:$V$22,ROW($B$2:$V$22)+COLUMN($B$2:$V$22)/100),COLUMN(F11)),"")) ->  | AK27: =IF($AD27="","",IFERROR(SMALL(IF($AD27=$B$2:$V$22,ROW($B$2:$V$22)+COLUMN($B$2:$V$22)/100),COLUMN(G11)),"")) ->  | AZ27: =IF($AC27="","",IFERROR(SMALL(IF($AC27=$B$2:$V$22,ROW($B$2:$V$22)+COLUMN($B$2:$V$22)/100),COLUMN(A11)),"")) ->  | BA27: =IF($AC27="","",IFERROR(SMALL(IF($AC27=$B$2:$V$22,ROW($B$2:$V$22)+COLUMN($B$2:$V$22)/100),COLUMN(B11)),"")) ->  | BB27: =IF($AC27="","",IFERROR(SMALL(IF($AC27=$B$2:$V$22,ROW($B$2:$V$22)+COLUMN($B$2:$V$22)/100),COLUMN(C11)),"")) ->  | BC27: =IF($AC27="","",IFERROR(SMALL(IF($AC27=$B$2:$V$22,ROW($B$2:$V$22)+COLUMN($B$2:$V$22)/100),COLUMN(D11)),"")) ->  | BD27: =IF($AC27="","",IFERROR(SMALL(IF($AC27=$B$2:$V$22,ROW($B$2:$V$22)+COLUMN($B$2:$V$22)/100),COLUMN(E11)),"")) ->  | BE27: =IF($AC27="","",IFERROR(SMALL(IF($AC27=$B$2:$V$22,ROW($B$2:$V$22)+COLUMN($B$2:$V$22)/100),COLUMN(F11)),"")) ->  | BF27: =IF($AC27="","",IFERROR(SMALL(IF($AC27=$B$2:$V$22,ROW($B$2:$V$22)+COLUMN($B$2:$V$22)/100),COLUMN(G11)),"")) -> 
B28: =MIN(IF(B7/$AA$3=$B$3:$V$22,$B$3:$V$22)) -> 0 | C28: =MIN(IF(C7/$AA$3=$B$3:$V$22,$B$3:$V$22)) -> 0 | D28: =MIN(IF(D7/$AA$3=$B$3:$V$22,$B$3:$V$22)) -> 0 | E28: =MIN(IF(E7/$AA$3=$B$3:$V$22,$B$3:$V$22)) -> 0 | F28: =MIN(IF(F7/$AA$3=$B$3:$V$22,$B$3:$V$22)) -> 0 | G28: =MIN(IF(G7/$AA$3=$B$3:$V$22,$B$3:$V$22)) -> 0 | H28: =MIN(IF(H7/$AA$3=$B$3:$V$22,$B$3:$V$22)) -> 0 | I28: =MIN(IF(I7/$AA$3=$B$3:$V$22,$B$3:$V$22)) -> 0 | J28: =MIN(IF(J7/$AA$3=$B$3:$V$22,$B$3:$V$22)) -> 0 | K28: =MIN(IF(K7/$AA$3=$B$3:$V$22,$B$3:$V$22)) -> 0 | L28: =MIN(IF(L7/$AA$3=$B$3:$V$22,$B$3:$V$22)) -> 0 | M28: =MIN(IF(M7/$AA$3=$B$3:$V$22,$B$3:$V$22)) -> 0 | N28: =MIN(IF(N7/$AA$3=$B$3:$V$22,$B$3:$V$22)) -> 0 | O28: =MIN(IF(O7/$AA$3=$B$3:$V$22,$B$3:$V$22)) -> 0 | P28: =MIN(IF(P7/$AA$3=$B$3:$V$22,$B$3:$V$22)) -> 0 | Q28: =MIN(IF(Q7/$AA$3=$B$3:$V$22,$B$3:$V$22)) -> 0 | R28: =MIN(IF(R7/$AA$3=$B$3:$V$22,$B$3:$V$22)) -> 0 | S28: =MIN(IF(S7/$AA$3=$B$3:$V$22,$B$3:$V$22)) -> 0 | T28: =MIN(IF(T7/$AA$3=$B$3:$V$22,$B$3:$V$22)) -> 0 | U28: =MIN(IF(U7/$AA$3=$B$3:$V$22,$B$3:$V$22)) -> 0 | AA28: =IF(COUNTIF(AB$17:AB28,AB28)=1,COUNT(AA$16:AA27)+1) -> FALSE | AE28: =IF($AD28="","",IFERROR(SMALL(IF($AD28=$B$2:$V$22,ROW($B$2:$V$22)+COLUMN($B$2:$V$22)/100),COLUMN(A12)),"")) ->  | AF28: =IF($AD28="","",IFERROR(SMALL(IF($AD28=$B$2:$V$22,ROW($B$2:$V$22)+COLUMN($B$2:$V$22)/100),COLUMN(B12)),"")) ->  | AG28: =IF($AD28="","",IFERROR(SMALL(IF($AD28=$B$2:$V$22,ROW($B$2:$V$22)+COLUMN($B$2:$V$22)/100),COLUMN(C12)),"")) ->  | AH28: =IF($AD28="","",IFERROR(SMALL(IF($AD28=$B$2:$V$22,ROW($B$2:$V$22)+COLUMN($B$2:$V$22)/100),COLUMN(D12)),"")) ->  | AI28: =IF($AD28="","",IFERROR(SMALL(IF($AD28=$B$2:$V$22,ROW($B$2:$V$22)+COLUMN($B$2:$V$22)/100),COLUMN(E12)),"")) ->  | AJ28: =IF($AD28="","",IFERROR(SMALL(IF($AD28=$B$2:$V$22,ROW($B$2:$V$22)+COLUMN($B$2:$V$22)/100),COLUMN(F12)),"")) ->  | AK28: =IF($AD28="","",IFERROR(SMALL(IF($AD28=$B$2:$V$22,ROW($B$2:$V$22)+COLUMN($B$2:$V$22)/100),COLUMN(G12)),"")) ->  | AZ28: =IF($AC28="","",IFERROR(SMALL(IF($AC28=$B$2:$V$22,ROW($B$2:$V$22)+COLUMN($B$2:$V$22)/100),COLUMN(A12)),"")) ->  | BA28: =IF($AC28="","",IFERROR(SMALL(IF($AC28=$B$2:$V$22,ROW($B$2:$V$22)+COLUMN($B$2:$V$22)/100),COLUMN(B12)),"")) ->  | BB28: =IF($AC28="","",IFERROR(SMALL(IF($AC28=$B$2:$V$22,ROW($B$2:$V$22)+COLUMN($B$2:$V$22)/100),COLUMN(C12)),"")) ->  | BC28: =IF($AC28="","",IFERROR(SMALL(IF($AC28=$B$2:$V$22,ROW($B$2:$V$22)+COLUMN($B$2:$V$22)/100),COLUMN(D12)),"")) ->  | BD28: =IF($AC28="","",IFERROR(SMALL(IF($AC28=$B$2:$V$22,ROW($B$2:$V$22)+COLUMN($B$2:$V$22)/100),COLUMN(E12)),"")) ->  | BE28: =IF($AC28="","",IFERROR(SMALL(IF($AC28=$B$2:$V$22,ROW($B$2:$V$22)+COLUMN($B$2:$V$22)/100),COLUMN(F12)),"")) ->  | BF28: =IF($AC28="","",IFERROR(SMALL(IF($AC28=$B$2:$V$22,ROW($B$2:$V$22)+COLUMN($B$2:$V$22)/100),COLUMN(G12)),"")) -> 
B29: =MIN(IF(B8/$AA$3=$B$3:$V$22,$B$3:$V$22)) -> 5000 | C29: =MIN(IF(C8/$AA$3=$B$3:$V$22,$B$3:$V$22)) -> 6000 | D29: =MIN(IF(D8/$AA$3=$B$3:$V$22,$B$3:$V$22)) -> 0 | E29: =MIN(IF(E8/$AA$3=$B$3:$V$22,$B$3:$V$22)) -> 0 | F29: =MIN(IF(F8/$AA$3=$B$3:$V$22,$B$3:$V$22)) -> 0 | G29: =MIN(IF(G8/$AA$3=$B$3:$V$22,$B$3:$V$22)) -> 0 | H29: =MIN(IF(H8/$AA$3=$B$3:$V$22,$B$3:$V$22)) -> 0 | I29: =MIN(IF(I8/$AA$3=$B$3:$V$22,$B$3:$V$22)) -> 0 | J29: =MIN(IF(J8/$AA$3=$B$3:$V$22,$B$3:$V$22)) -> 0 | K29: =MIN(IF(K8/$AA$3=$B$3:$V$22,$B$3:$V$22)) -> 0 | L29: =MIN(IF(L8/$AA$3=$B$3:$V$22,$B$3:$V$22)) -> 0 | M29: =MIN(IF(M8/$AA$3=$B$3:$V$22,$B$3:$V$22)) -> 0 | N29: =MIN(IF(N8/$AA$3=$B$3:$V$22,$B$3:$V$22)) -> 0 | O29: =MIN(IF(O8/$AA$3=$B$3:$V$22,$B$3:$V$22)) -> 0 | P29: =MIN(IF(P8/$AA$3=$B$3:$V$22,$B$3:$V$22)) -> 0 | Q29: =MIN(IF(Q8/$AA$3=$B$3:$V$22,$B$3:$V$22)) -> 0 | R29: =MIN(IF(R8/$AA$3=$B$3:$V$22,$B$3:$V$22)) -> 0 | S29: =MIN(IF(S8/$AA$3=$B$3:$V$22,$B$3:$V$22)) -> 0 | T29: =MIN(IF(T8/$AA$3=$B$3:$V$22,$B$3:$V$22)) -> 0 | U29: =MIN(IF(U8/$AA$3=$B$3:$V$22,$B$3:$V$22)) -> 0 | AA29: =IF(COUNTIF(AB$17:AB29,AB29)=1,COUNT(AA$16:AA28)+1) -> FALSE | AE29: =IF($AD29="","",IFERROR(SMALL(IF($AD29=$B$2:$V$22,ROW($B$2:$V$22)+COLUMN($B$2:$V$22)/100),COLUMN(A13)),"")) ->  | AF29: =IF($AD29="","",IFERROR(SMALL(IF($AD29=$B$2:$V$22,ROW($B$2:$V$22)+COLUMN($B$2:$V$22)/100),COLUMN(B13)),"")) ->  | AG29: =IF($AD29="","",IFERROR(SMALL(IF($AD29=$B$2:$V$22,ROW($B$2:$V$22)+COLUMN($B$2:$V$22)/100),COLUMN(C13)),"")) ->  | AH29: =IF($AD29="","",IFERROR(SMALL(IF($AD29=$B$2:$V$22,ROW($B$2:$V$22)+COLUMN($B$2:$V$22)/100),COLUMN(D13)),"")) ->  | AI29: =IF($AD29="","",IFERROR(SMALL(IF($AD29=$B$2:$V$22,ROW($B$2:$V$22)+COLUMN($B$2:$V$22)/100),COLUMN(E13)),"")) ->  | AJ29: =IF($AD29="","",IFERROR(SMALL(IF($AD29=$B$2:$V$22,ROW($B$2:$V$22)+COLUMN($B$2:$V$22)/100),COLUMN(F13)),"")) ->  | AK29: =IF($AD29="","",IFERROR(SMALL(IF($AD29=$B$2:$V$22,ROW($B$2:$V$22)+COLUMN($B$2:$V$22)/100),COLUMN(G13)),"")) ->  | AZ29: =IF($AC29="","",IFERROR(SMALL(IF($AC29=$B$2:$V$22,ROW($B$2:$V$22)+COLUMN($B$2:$V$22)/100),COLUMN(A13)),"")) ->  | BA29: =IF($AC29="","",IFERROR(SMALL(IF($AC29=$B$2:$V$22,ROW($B$2:$V$22)+COLUMN($B$2:$V$22)/100),COLUMN(B13)),"")) ->  | BB29: =IF($AC29="","",IFERROR(SMALL(IF($AC29=$B$2:$V$22,ROW($B$2:$V$22)+COLUMN($B$2:$V$22)/100),COLUMN(C13)),"")) ->  | BC29: =IF($AC29="","",IFERROR(SMALL(IF($AC29=$B$2:$V$22,ROW($B$2:$V$22)+COLUMN($B$2:$V$22)/100),COLUMN(D13)),"")) ->  | BD29: =IF($AC29="","",IFERROR(SMALL(IF($AC29=$B$2:$V$22,ROW($B$2:$V$22)+COLUMN($B$2:$V$22)/100),COLUMN(E13)),"")) ->  | BE29: =IF($AC29="","",IFERROR(SMALL(IF($AC29=$B$2:$V$22,ROW($B$2:$V$22)+COLUMN($B$2:$V$22)/100),COLUMN(F13)),"")) ->  | BF29: =IF($AC29="","",IFERROR(SMALL(IF($AC29=$B$2:$V$22,ROW($B$2:$V$22)+COLUMN($B$2:$V$22)/100),COLUMN(G13)),"")) -> 
B30: =MIN(IF(B9/$AA$3=$B$3:$V$22,$B$3:$V$22)) -> 0 | C30: =MIN(IF(C9/$AA$3=$B$3:$V$22,$B$3:$V$22)) -> 0 | D30: =MIN(IF(D9/$AA$3=$B$3:$V$22,$B$3:$V$22)) -> 0 | E30: =MIN(IF(E9/$AA$3=$B$3:$V$22,$B$3:$V$22)) -> 0 | F30: =MIN(IF(F9/$AA$3=$B$3:$V$22,$B$3:$V$22)) -> 0 | G30: =MIN(IF(G9/$AA$3=$B$3:$V$22,$B$3:$V$22)) -> 0 | H30: =MIN(IF(H9/$AA$3=$B$3:$V$22,$B$3:$V$22)) -> 0 | I30: =MIN(IF(I9/$AA$3=$B$3:$V$22,$B$3:$V$22)) -> 0 | J30: =MIN(IF(J9/$AA$3=$B$3:$V$22,$B$3:$V$22)) -> 0 | K30: =MIN(IF(K9/$AA$3=$B$3:$V$22,$B$3:$V$22)) -> 0 | L30: =MIN(IF(L9/$AA$3=$B$3:$V$22,$B$3:$V$22)) -> 0 | M30: =MIN(IF(M9/$AA$3=$B$3:$V$22,$B$3:$V$22)) -> 0 | N30: =MIN(IF(N9/$AA$3=$B$3:$V$22,$B$3:$V$22)) -> 0 | O30: =MIN(IF(O9/$AA$3=$B$3:$V$22,$B$3:$V$22)) -> 0 | P30: =MIN(IF(P9/$AA$3=$B$3:$V$22,$B$3:$V$22)) -> 0 | Q30: =MIN(IF(Q9/$AA$3=$B$3:$V$22,$B$3:$V$22)) -> 0 | R30: =MIN(IF(R9/$AA$3=$B$3:$V$22,$B$3:$V$22)) -> 0 | S30: =MIN(IF(S9/$AA$3=$B$3:$V$22,$B$3:$V$22)) -> 0 | T30: =MIN(IF(T9/$AA$3=$B$3:$V$22,$B$3:$V$22)) -> 0 | U30: =MIN(IF(U9/$AA$3=$B$3:$V$22,$B$3:$V$22)) -> 0 | AA30: =IF(COUNTIF(AB$17:AB30,AB30)=1,COUNT(AA$16:AA29)+1) -> FALSE | AE30: =IF($AD30="","",IFERROR(SMALL(IF($AD30=$B$2:$V$22,ROW($B$2:$V$22)+COLUMN($B$2:$V$22)/100),COLUMN(A14)),"")) ->  | AF30: =IF($AD30="","",IFERROR(SMALL(IF($AD30=$B$2:$V$22,ROW($B$2:$V$22)+COLUMN($B$2:$V$22)/100),COLUMN(B14)),"")) ->  | AG30: =IF($AD30="","",IFERROR(SMALL(IF($AD30=$B$2:$V$22,ROW($B$2:$V$22)+COLUMN($B$2:$V$22)/100),COLUMN(C14)),"")) ->  | AH30: =IF($AD30="","",IFERROR(SMALL(IF($AD30=$B$2:$V$22,ROW($B$2:$V$22)+COLUMN($B$2:$V$22)/100),COLUMN(D14)),"")) ->  | AI30: =IF($AD30="","",IFERROR(SMALL(IF($AD30=$B$2:$V$22,ROW($B$2:$V$22)+COLUMN($B$2:$V$22)/100),COLUMN(E14)),"")) ->  | AJ30: =IF($AD30="","",IFERROR(SMALL(IF($AD30=$B$2:$V$22,ROW($B$2:$V$22)+COLUMN($B$2:$V$22)/100),COLUMN(F14)),"")) ->  | AK30: =IF($AD30="","",IFERROR(SMALL(IF($AD30=$B$2:$V$22,ROW($B$2:$V$22)+COLUMN($B$2:$V$22)/100),COLUMN(G14)),"")) ->  | AZ30: =IF($AC30="","",IFERROR(SMALL(IF($AC30=$B$2:$V$22,ROW($B$2:$V$22)+COLUMN($B$2:$V$22)/100),COLUMN(A14)),"")) ->  | BA30: =IF($AC30="","",IFERROR(SMALL(IF($AC30=$B$2:$V$22,ROW($B$2:$V$22)+COLUMN($B$2:$V$22)/100),COLUMN(B14)),"")) ->  | BB30: =IF($AC30="","",IFERROR(SMALL(IF($AC30=$B$2:$V$22,ROW($B$2:$V$22)+COLUMN($B$2:$V$22)/100),COLUMN(C14)),"")) ->  | BC30: =IF($AC30="","",IFERROR(SMALL(IF($AC30=$B$2:$V$22,ROW($B$2:$V$22)+COLUMN($B$2:$V$22)/100),COLUMN(D14)),"")) ->  | BD30: =IF($AC30="","",IFERROR(SMALL(IF($AC30=$B$2:$V$22,ROW($B$2:$V$22)+COLUMN($B$2:$V$22)/100),COLUMN(E14)),"")) ->  | BE30: =IF($AC30="","",IFERROR(SMALL(IF($AC30=$B$2:$V$22,ROW($B$2:$V$22)+COLUMN($B$2:$V$22)/100),COLUMN(F14)),"")) ->  | BF30: =IF($AC30="","",IFERROR(SMALL(IF($AC30=$B$2:$V$22,ROW($B$2:$V$22)+COLUMN($B$2:$V$22)/100),COLUMN(G14)),"")) -> 
B31: =MIN(IF(B10/$AA$3=$B$3:$V$22,$B$3:$V$22)) -> 0 | C31: =MIN(IF(C10/$AA$3=$B$3:$V$22,$B$3:$V$22)) -> 0 | D31: =MIN(IF(D10/$AA$3=$B$3:$V$22,$B$3:$V$22)) -> 0 | E31: =MIN(IF(E10/$AA$3=$B$3:$V$22,$B$3:$V$22)) -> 0 | F31: =MIN(IF(F10/$AA$3=$B$3:$V$22,$B$3:$V$22)) -> 0 | G31: =MIN(IF(G10/$AA$3=$B$3:$V$22,$B$3:$V$22)) -> 0 | H31: =MIN(IF(H10/$AA$3=$B$3:$V$22,$B$3:$V$22)) -> 0 | I31: =MIN(IF(I10/$AA$3=$B$3:$V$22,$B$3:$V$22)) -> 0 | J31: =MIN(IF(J10/$AA$3=$B$3:$V$22,$B$3:$V$22)) -> 0 | K31: =MIN(IF(K10/$AA$3=$B$3:$V$22,$B$3:$V$22)) -> 0 | L31: =MIN(IF(L10/$AA$3=$B$3:$V$22,$B$3:$V$22)) -> 0 | M31: =MIN(IF(M10/$AA$3=$B$3:$V$22,$B$3:$V$22)) -> 0 | N31: =MIN(IF(N10/$AA$3=$B$3:$V$22,$B$3:$V$22)) -> 0 | O31: =MIN(IF(O10/$AA$3=$B$3:$V$22,$B$3:$V$22)) -> 0 | P31: =MIN(IF(P10/$AA$3=$B$3:$V$22,$B$3:$V$22)) -> 0 | Q31: =MIN(IF(Q10/$AA$3=$B$3:$V$22,$B$3:$V$22)) -> 0 | R31: =MIN(IF(R10/$AA$3=$B$3:$V$22,$B$3:$V$22)) -> 0 | S31: =MIN(IF(S10/$AA$3=$B$3:$V$22,$B$3:$V$22)) -> 0 | T31: =MIN(IF(T10/$AA$3=$B$3:$V$22,$B$3:$V$22)) -> 0 | U31: =MIN(IF(U10/$AA$3=$B$3:$V$22,$B$3:$V$22)) -> 0 | AA31: =IF(COUNTIF(AB$17:AB31,AB31)=1,COUNT(AA$16:AA30)+1) -> FALSE | AE31: =IF($AD31="","",IFERROR(SMALL(IF($AD31=$B$2:$V$22,ROW($B$2:$V$22)+COLUMN($B$2:$V$22)/100),COLUMN(A15)),"")) ->  | AF31: =IF($AD31="","",IFERROR(SMALL(IF($AD31=$B$2:$V$22,ROW($B$2:$V$22)+COLUMN($B$2:$V$22)/100),COLUMN(B15)),"")) ->  | AG31: =IF($AD31="","",IFERROR(SMALL(IF($AD31=$B$2:$V$22,ROW($B$2:$V$22)+COLUMN($B$2:$V$22)/100),COLUMN(C15)),"")) ->  | AH31: =IF($AD31="","",IFERROR(SMALL(IF($AD31=$B$2:$V$22,ROW($B$2:$V$22)+COLUMN($B$2:$V$22)/100),COLUMN(D15)),"")) ->  | AI31: =IF($AD31="","",IFERROR(SMALL(IF($AD31=$B$2:$V$22,ROW($B$2:$V$22)+COLUMN($B$2:$V$22)/100),COLUMN(E15)),"")) ->  | AJ31: =IF($AD31="","",IFERROR(SMALL(IF($AD31=$B$2:$V$22,ROW($B$2:$V$22)+COLUMN($B$2:$V$22)/100),COLUMN(F15)),"")) ->  | AK31: =IF($AD31="","",IFERROR(SMALL(IF($AD31=$B$2:$V$22,ROW($B$2:$V$22)+COLUMN($B$2:$V$22)/100),COLUMN(G15)),"")) ->  | AZ31: =IF($AC31="","",IFERROR(SMALL(IF($AC31=$B$2:$V$22,ROW($B$2:$V$22)+COLUMN($B$2:$V$22)/100),COLUMN(A15)),"")) ->  | BA31: =IF($AC31="","",IFERROR(SMALL(IF($AC31=$B$2:$V$22,ROW($B$2:$V$22)+COLUMN($B$2:$V$22)/100),COLUMN(B15)),"")) ->  | BB31: =IF($AC31="","",IFERROR(SMALL(IF($AC31=$B$2:$V$22,ROW($B$2:$V$22)+COLUMN($B$2:$V$22)/100),COLUMN(C15)),"")) ->  | BC31: =IF($AC31="","",IFERROR(SMALL(IF($AC31=$B$2:$V$22,ROW($B$2:$V$22)+COLUMN($B$2:$V$22)/100),COLUMN(D15)),"")) ->  | BD31: =IF($AC31="","",IFERROR(SMALL(IF($AC31=$B$2:$V$22,ROW($B$2:$V$22)+COLUMN($B$2:$V$22)/100),COLUMN(E15)),"")) ->  | BE31: =IF($AC31="","",IFERROR(SMALL(IF($AC31=$B$2:$V$22,ROW($B$2:$V$22)+COLUMN($B$2:$V$22)/100),COLUMN(F15)),"")) ->  | BF31: =IF($AC31="","",IFERROR(SMALL(IF($AC31=$B$2:$V$22,ROW($B$2:$V$22)+COLUMN($B$2:$V$22)/100),COLUMN(G15)),"")) -> 
B32: =MIN(IF(B11/$AA$3=$B$3:$V$22,$B$3:$V$22)) -> 0 | C32: =MIN(IF(C11/$AA$3=$B$3:$V$22,$B$3:$V$22)) -> 0 | D32: =MIN(IF(D11/$AA$3=$B$3:$V$22,$B$3:$V$22)) -> 0 | E32: =MIN(IF(E11/$AA$3=$B$3:$V$22,$B$3:$V$22)) -> 0 | F32: =MIN(IF(F11/$AA$3=$B$3:$V$22,$B$3:$V$22)) -> 0 | G32: =MIN(IF(G11/$AA$3=$B$3:$V$22,$B$3:$V$22)) -> 0 | H32: =MIN(IF(H11/$AA$3=$B$3:$V$22,$B$3:$V$22)) -> 12000 | I32: =MIN(IF(I11/$AA$3=$B$3:$V$22,$B$3:$V$22)) -> 0 | J32: =MIN(IF(J11/$AA$3=$B$3:$V$22,$B$3:$V$22)) -> 0 | K32: =MIN(IF(K11/$AA$3=$B$3:$V$22,$B$3:$V$22)) -> 0 | L32: =MIN(IF(L11/$AA$3=$B$3:$V$22,$B$3:$V$22)) -> 0 | M32: =MIN(IF(M11/$AA$3=$B$3:$V$22,$B$3:$V$22)) -> 0 | N32: =MIN(IF(N11/$AA$3=$B$3:$V$22,$B$3:$V$22)) -> 0 | O32: =MIN(IF(O11/$AA$3=$B$3:$V$22,$B$3:$V$22)) -> 0 | P32: =MIN(IF(P11/$AA$3=$B$3:$V$22,$B$3:$V$22)) -> 0 | Q32: =MIN(IF(Q11/$AA$3=$B$3:$V$22,$B$3:$V$22)) -> 0 | R32: =MIN(IF(R11/$AA$3=$B$3:$V$22,$B$3:$V$22)) -> 0 | S32: =MIN(IF(S11/$AA$3=$B$3:$V$22,$B$3:$V$22)) -> 0 | T32: =MIN(IF(T11/$AA$3=$B$3:$V$22,$B$3:$V$22)) -> 0 | U32: =MIN(IF(U11/$AA$3=$B$3:$V$22,$B$3:$V$22)) -> 0 | AA32: =IF(COUNTIF(AB$17:AB32,AB32)=1,COUNT(AA$16:AA31)+1) -> FALSE | AB32: =IFERROR(SMALL($B$24:$U$43,COUNTIF($B$24:$U$43,0)+ROW(AB16)),"") ->  | AE32: =IF($AD32="","",IFERROR(SMALL(IF($AD32=$B$2:$V$22,ROW($B$2:$V$22)+COLUMN($B$2:$V$22)/100),COLUMN(A16)),"")) ->  | AF32: =IF($AD32="","",IFERROR(SMALL(IF($AD32=$B$2:$V$22,ROW($B$2:$V$22)+COLUMN($B$2:$V$22)/100),COLUMN(B16)),"")) ->  | AG32: =IF($AD32="","",IFERROR(SMALL(IF($AD32=$B$2:$V$22,ROW($B$2:$V$22)+COLUMN($B$2:$V$22)/100),COLUMN(C16)),"")) ->  | AH32: =IF($AD32="","",IFERROR(SMALL(IF($AD32=$B$2:$V$22,ROW($B$2:$V$22)+COLUMN($B$2:$V$22)/100),COLUMN(D16)),"")) ->  | AI32: =IF($AD32="","",IFERROR(SMALL(IF($AD32=$B$2:$V$22,ROW($B$2:$V$22)+COLUMN($B$2:$V$22)/100),COLUMN(E16)),"")) ->  | AJ32: =IF($AD32="","",IFERROR(SMALL(IF($AD32=$B$2:$V$22,ROW($B$2:$V$22)+COLUMN($B$2:$V$22)/100),COLUMN(F16)),"")) ->  | AK32: =IF($AD32="","",IFERROR(SMALL(IF($AD32=$B$2:$V$22,ROW($B$2:$V$22)+COLUMN($B$2:$V$22)/100),COLUMN(G16)),"")) ->  | AZ32: =IF($AC32="","",IFERROR(SMALL(IF($AC32=$B$2:$V$22,ROW($B$2:$V$22)+COLUMN($B$2:$V$22)/100),COLUMN(A16)),"")) ->  | BA32: =IF($AC32="","",IFERROR(SMALL(IF($AC32=$B$2:$V$22,ROW($B$2:$V$22)+COLUMN($B$2:$V$22)/100),COLUMN(B16)),"")) ->  | BB32: =IF($AC32="","",IFERROR(SMALL(IF($AC32=$B$2:$V$22,ROW($B$2:$V$22)+COLUMN($B$2:$V$22)/100),COLUMN(C16)),"")) ->  | BC32: =IF($AC32="","",IFERROR(SMALL(IF($AC32=$B$2:$V$22,ROW($B$2:$V$22)+COLUMN($B$2:$V$22)/100),COLUMN(D16)),"")) ->  | BD32: =IF($AC32="","",IFERROR(SMALL(IF($AC32=$B$2:$V$22,ROW($B$2:$V$22)+COLUMN($B$2:$V$22)/100),COLUMN(E16)),"")) ->  | BE32: =IF($AC32="","",IFERROR(SMALL(IF($AC32=$B$2:$V$22,ROW($B$2:$V$22)+COLUMN($B$2:$V$22)/100),COLUMN(F16)),"")) ->  | BF32: =IF($AC32="","",IFERROR(SMALL(IF($AC32=$B$2:$V$22,ROW($B$2:$V$22)+COLUMN($B$2:$V$22)/100),COLUMN(G16)),"")) -> 
B33: =MIN(IF(B12/$AA$3=$B$3:$V$22,$B$3:$V$22)) -> 0 | C33: =MIN(IF(C12/$AA$3=$B$3:$V$22,$B$3:$V$22)) -> 0 | D33: =MIN(IF(D12/$AA$3=$B$3:$V$22,$B$3:$V$22)) -> 0 | E33: =MIN(IF(E12/$AA$3=$B$3:$V$22,$B$3:$V$22)) -> 0 | F33: =MIN(IF(F12/$AA$3=$B$3:$V$22,$B$3:$V$22)) -> 0 | G33: =MIN(IF(G12/$AA$3=$B$3:$V$22,$B$3:$V$22)) -> 0 | H33: =MIN(IF(H12/$AA$3=$B$3:$V$22,$B$3:$V$22)) -> 12500 | I33: =MIN(IF(I12/$AA$3=$B$3:$V$22,$B$3:$V$22)) -> 0 | J33: =MIN(IF(J12/$AA$3=$B$3:$V$22,$B$3:$V$22)) -> 0 | K33: =MIN(IF(K12/$AA$3=$B$3:$V$22,$B$3:$V$22)) -> 0 | L33: =MIN(IF(L12/$AA$3=$B$3:$V$22,$B$3:$V$22)) -> 0 | M33: =MIN(IF(M12/$AA$3=$B$3:$V$22,$B$3:$V$22)) -> 0 | N33: =MIN(IF(N12/$AA$3=$B$3:$V$22,$B$3:$V$22)) -> 0 | O33: =MIN(IF(O12/$AA$3=$B$3:$V$22,$B$3:$V$22)) -> 0 | P33: =MIN(IF(P12/$AA$3=$B$3:$V$22,$B$3:$V$22)) -> 0 | Q33: =MIN(IF(Q12/$AA$3=$B$3:$V$22,$B$3:$V$22)) -> 0 | R33: =MIN(IF(R12/$AA$3=$B$3:$V$22,$B$3:$V$22)) -> 0 | S33: =MIN(IF(S12/$AA$3=$B$3:$V$22,$B$3:$V$22)) -> 0 | T33: =MIN(IF(T12/$AA$3=$B$3:$V$22,$B$3:$V$22)) -> 0 | U33: =MIN(IF(U12/$AA$3=$B$3:$V$22,$B$3:$V$22)) -> 0 | AA33: =IF(COUNTIF(AB$17:AB33,AB33)=1,COUNT(AA$16:AA32)+1) -> FALSE | AE33: =IF($AD33="","",IFERROR(SMALL(IF($AD33=$B$2:$V$22,ROW($B$2:$V$22)+COLUMN($B$2:$V$22)/100),COLUMN(A17)),"")) ->  | AF33: =IF($AD33="","",IFERROR(SMALL(IF($AD33=$B$2:$V$22,ROW($B$2:$V$22)+COLUMN($B$2:$V$22)/100),COLUMN(B17)),"")) ->  | AG33: =IF($AD33="","",IFERROR(SMALL(IF($AD33=$B$2:$V$22,ROW($B$2:$V$22)+COLUMN($B$2:$V$22)/100),COLUMN(C17)),"")) ->  | AH33: =IF($AD33="","",IFERROR(SMALL(IF($AD33=$B$2:$V$22,ROW($B$2:$V$22)+COLUMN($B$2:$V$22)/100),COLUMN(D17)),"")) ->  | AI33: =IF($AD33="","",IFERROR(SMALL(IF($AD33=$B$2:$V$22,ROW($B$2:$V$22)+COLUMN($B$2:$V$22)/100),COLUMN(E17)),"")) ->  | AJ33: =IF($AD33="","",IFERROR(SMALL(IF($AD33=$B$2:$V$22,ROW($B$2:$V$22)+COLUMN($B$2:$V$22)/100),COLUMN(F17)),"")) ->  | AK33: =IF($AD33="","",IFERROR(SMALL(IF($AD33=$B$2:$V$22,ROW($B$2:$V$22)+COLUMN($B$2:$V$22)/100),COLUMN(G17)),"")) ->  | AZ33: =IF($AC33="","",IFERROR(SMALL(IF($AC33=$B$2:$V$22,ROW($B$2:$V$22)+COLUMN($B$2:$V$22)/100),COLUMN(A17)),"")) ->  | BA33: =IF($AC33="","",IFERROR(SMALL(IF($AC33=$B$2:$V$22,ROW($B$2:$V$22)+COLUMN($B$2:$V$22)/100),COLUMN(B17)),"")) ->  | BB33: =IF($AC33="","",IFERROR(SMALL(IF($AC33=$B$2:$V$22,ROW($B$2:$V$22)+COLUMN($B$2:$V$22)/100),COLUMN(C17)),"")) ->  | BC33: =IF($AC33="","",IFERROR(SMALL(IF($AC33=$B$2:$V$22,ROW($B$2:$V$22)+COLUMN($B$2:$V$22)/100),COLUMN(D17)),"")) ->  | BD33: =IF($AC33="","",IFERROR(SMALL(IF($AC33=$B$2:$V$22,ROW($B$2:$V$22)+COLUMN($B$2:$V$22)/100),COLUMN(E17)),"")) ->  | BE33: =IF($AC33="","",IFERROR(SMALL(IF($AC33=$B$2:$V$22,ROW($B$2:$V$22)+COLUMN($B$2:$V$22)/100),COLUMN(F17)),"")) ->  | BF33: =IF($AC33="","",IFERROR(SMALL(IF($AC33=$B$2:$V$22,ROW($B$2:$V$22)+COLUMN($B$2:$V$22)/100),COLUMN(G17)),"")) -> 
B34: =MIN(IF(B13/$AA$3=$B$3:$V$22,$B$3:$V$22)) -> 0 | C34: =MIN(IF(C13/$AA$3=$B$3:$V$22,$B$3:$V$22)) -> 0 | D34: =MIN(IF(D13/$AA$3=$B$3:$V$22,$B$3:$V$22)) -> 0 | E34: =MIN(IF(E13/$AA$3=$B$3:$V$22,$B$3:$V$22)) -> 0 | F34: =MIN(IF(F13/$AA$3=$B$3:$V$22,$B$3:$V$22)) -> 0 | G34: =MIN(IF(G13/$AA$3=$B$3:$V$22,$B$3:$V$22)) -> 0 | H34: =MIN(IF(H13/$AA$3=$B$3:$V$22,$B$3:$V$22)) -> 0 | I34: =MIN(IF(I13/$AA$3=$B$3:$V$22,$B$3:$V$22)) -> 0 | J34: =MIN(IF(J13/$AA$3=$B$3:$V$22,$B$3:$V$22)) -> 0 | K34: =MIN(IF(K13/$AA$3=$B$3:$V$22,$B$3:$V$22)) -> 0 | L34: =MIN(IF(L13/$AA$3=$B$3:$V$22,$B$3:$V$22)) -> 0 | M34: =MIN(IF(M13/$AA$3=$B$3:$V$22,$B$3:$V$22)) -> 0 | N34: =MIN(IF(N13/$AA$3=$B$3:$V$22,$B$3:$V$22)) -> 0 | O34: =MIN(IF(O13/$AA$3=$B$3:$V$22,$B$3:$V$22)) -> 0 | P34: =MIN(IF(P13/$AA$3=$B$3:$V$22,$B$3:$V$22)) -> 0 | Q34: =MIN(IF(Q13/$AA$3=$B$3:$V$22,$B$3:$V$22)) -> 0 | R34: =MIN(IF(R13/$AA$3=$B$3:$V$22,$B$3:$V$22)) -> 0 | S34: =MIN(IF(S13/$AA$3=$B$3:$V$22,$B$3:$V$22)) -> 0 | T34: =MIN(IF(T13/$AA$3=$B$3:$V$22,$B$3:$V$22)) -> 0 | U34: =MIN(IF(U13/$AA$3=$B$3:$V$22,$B$3:$V$22)) -> 0 | AA34: =IF(COUNTIF(AB$17:AB34,AB34)=1,COUNT(AA$16:AA33)+1) -> FALSE | AE34: =IF($AD34="","",IFERROR(SMALL(IF($AD34=$B$2:$V$22,ROW($B$2:$V$22)+COLUMN($B$2:$V$22)/100),COLUMN(A18)),"")) ->  | AF34: =IF($AD34="","",IFERROR(SMALL(IF($AD34=$B$2:$V$22,ROW($B$2:$V$22)+COLUMN($B$2:$V$22)/100),COLUMN(B18)),"")) ->  | AG34: =IF($AD34="","",IFERROR(SMALL(IF($AD34=$B$2:$V$22,ROW($B$2:$V$22)+COLUMN($B$2:$V$22)/100),COLUMN(C18)),"")) ->  | AH34: =IF($AD34="","",IFERROR(SMALL(IF($AD34=$B$2:$V$22,ROW($B$2:$V$22)+COLUMN($B$2:$V$22)/100),COLUMN(D18)),"")) ->  | AI34: =IF($AD34="","",IFERROR(SMALL(IF($AD34=$B$2:$V$22,ROW($B$2:$V$22)+COLUMN($B$2:$V$22)/100),COLUMN(E18)),"")) ->  | AJ34: =IF($AD34="","",IFERROR(SMALL(IF($AD34=$B$2:$V$22,ROW($B$2:$V$22)+COLUMN($B$2:$V$22)/100),COLUMN(F18)),"")) ->  | AK34: =IF($AD34="","",IFERROR(SMALL(IF($AD34=$B$2:$V$22,ROW($B$2:$V$22)+COLUMN($B$2:$V$22)/100),COLUMN(G18)),"")) -> 
B35: =MIN(IF(B14/$AA$3=$B$3:$V$22,$B$3:$V$22)) -> 0 | C35: =MIN(IF(C14/$AA$3=$B$3:$V$22,$B$3:$V$22)) -> 0 | D35: =MIN(IF(D14/$AA$3=$B$3:$V$22,$B$3:$V$22)) -> 0 | E35: =MIN(IF(E14/$AA$3=$B$3:$V$22,$B$3:$V$22)) -> 0 | F35: =MIN(IF(F14/$AA$3=$B$3:$V$22,$B$3:$V$22)) -> 0 | G35: =MIN(IF(G14/$AA$3=$B$3:$V$22,$B$3:$V$22)) -> 0 | H35: =MIN(IF(H14/$AA$3=$B$3:$V$22,$B$3:$V$22)) -> 15000 | I35: =MIN(IF(I14/$AA$3=$B$3:$V$22,$B$3:$V$22)) -> 0 | J35: =MIN(IF(J14/$AA$3=$B$3:$V$22,$B$3:$V$22)) -> 0 | K35: =MIN(IF(K14/$AA$3=$B$3:$V$22,$B$3:$V$22)) -> 0 | L35: =MIN(IF(L14/$AA$3=$B$3:$V$22,$B$3:$V$22)) -> 0 | M35: =MIN(IF(M14/$AA$3=$B$3:$V$22,$B$3:$V$22)) -> 0 | N35: =MIN(IF(N14/$AA$3=$B$3:$V$22,$B$3:$V$22)) -> 0 | O35: =MIN(IF(O14/$AA$3=$B$3:$V$22,$B$3:$V$22)) -> 0 | P35: =MIN(IF(P14/$AA$3=$B$3:$V$22,$B$3:$V$22)) -> 0 | Q35: =MIN(IF(Q14/$AA$3=$B$3:$V$22,$B$3:$V$22)) -> 0 | R35: =MIN(IF(R14/$AA$3=$B$3:$V$22,$B$3:$V$22)) -> 0 | S35: =MIN(IF(S14/$AA$3=$B$3:$V$22,$B$3:$V$22)) -> 0 | T35: =MIN(IF(T14/$AA$3=$B$3:$V$22,$B$3:$V$22)) -> 0 | U35: =MIN(IF(U14/$AA$3=$B$3:$V$22,$B$3:$V$22)) -> 0 | AA35: =IF(COUNTIF(AB$17:AB35,AB35)=1,COUNT(AA$16:AA34)+1) -> FALSE | AE35: =IF($AD35="","",IFERROR(SMALL(IF($AD35=$B$2:$V$22,ROW($B$2:$V$22)+COLUMN($B$2:$V$22)/100),COLUMN(A19)),"")) ->  | AF35: =IF($AD35="","",IFERROR(SMALL(IF($AD35=$B$2:$V$22,ROW($B$2:$V$22)+COLUMN($B$2:$V$22)/100),COLUMN(B19)),"")) ->  | AG35: =IF($AD35="","",IFERROR(SMALL(IF($AD35=$B$2:$V$22,ROW($B$2:$V$22)+COLUMN($B$2:$V$22)/100),COLUMN(C19)),"")) ->  | AH35: =IF($AD35="","",IFERROR(SMALL(IF($AD35=$B$2:$V$22,ROW($B$2:$V$22)+COLUMN($B$2:$V$22)/100),COLUMN(D19)),"")) ->  | AI35: =IF($AD35="","",IFERROR(SMALL(IF($AD35=$B$2:$V$22,ROW($B$2:$V$22)+COLUMN($B$2:$V$22)/100),COLUMN(E19)),"")) ->  | AJ35: =IF($AD35="","",IFERROR(SMALL(IF($AD35=$B$2:$V$22,ROW($B$2:$V$22)+COLUMN($B$2:$V$22)/100),COLUMN(F19)),"")) ->  | AK35: =IF($AD35="","",IFERROR(SMALL(IF($AD35=$B$2:$V$22,ROW($B$2:$V$22)+COLUMN($B$2:$V$22)/100),COLUMN(G19)),"")) -> 
B36: =MIN(IF(B15/$AA$3=$B$3:$V$22,$B$3:$V$22)) -> 0 | C36: =MIN(IF(C15/$AA$3=$B$3:$V$22,$B$3:$V$22)) -> 0 | D36: =MIN(IF(D15/$AA$3=$B$3:$V$22,$B$3:$V$22)) -> 0 | E36: =MIN(IF(E15/$AA$3=$B$3:$V$22,$B$3:$V$22)) -> 0 | F36: =MIN(IF(F15/$AA$3=$B$3:$V$22,$B$3:$V$22)) -> 0 | G36: =MIN(IF(G15/$AA$3=$B$3:$V$22,$B$3:$V$22)) -> 0 | H36: =MIN(IF(H15/$AA$3=$B$3:$V$22,$B$3:$V$22)) -> 0 | I36: =MIN(IF(I15/$AA$3=$B$3:$V$22,$B$3:$V$22)) -> 0 | J36: =MIN(IF(J15/$AA$3=$B$3:$V$22,$B$3:$V$22)) -> 0 | K36: =MIN(IF(K15/$AA$3=$B$3:$V$22,$B$3:$V$22)) -> 0 | L36: =MIN(IF(L15/$AA$3=$B$3:$V$22,$B$3:$V$22)) -> 0 | M36: =MIN(IF(M15/$AA$3=$B$3:$V$22,$B$3:$V$22)) -> 0 | N36: =MIN(IF(N15/$AA$3=$B$3:$V$22,$B$3:$V$22)) -> 0 | O36: =MIN(IF(O15/$AA$3=$B$3:$V$22,$B$3:$V$22)) -> 0 | P36: =MIN(IF(P15/$AA$3=$B$3:$V$22,$B$3:$V$22)) -> 0 | Q36: =MIN(IF(Q15/$AA$3=$B$3:$V$22,$B$3:$V$22)) -> 0 | R36: =MIN(IF(R15/$AA$3=$B$3:$V$22,$B$3:$V$22)) -> 0 | S36: =MIN(IF(S15/$AA$3=$B$3:$V$22,$B$3:$V$22)) -> 0 | T36: =MIN(IF(T15/$AA$3=$B$3:$V$22,$B$3:$V$22)) -> 0 | U36: =MIN(IF(U15/$AA$3=$B$3:$V$22,$B$3:$V$22)) -> 0 | AA36: =IF(COUNTIF(AB$17:AB36,AB36)=1,COUNT(AA$16:AA35)+1) -> FALSE | AE36: =IF($AD36="","",IFERROR(SMALL(IF($AD36=$B$2:$V$22,ROW($B$2:$V$22)+COLUMN($B$2:$V$22)/100),COLUMN(A20)),"")) ->  | AF36: =IF($AD36="","",IFERROR(SMALL(IF($AD36=$B$2:$V$22,ROW($B$2:$V$22)+COLUMN($B$2:$V$22)/100),COLUMN(B20)),"")) ->  | AG36: =IF($AD36="","",IFERROR(SMALL(IF($AD36=$B$2:$V$22,ROW($B$2:$V$22)+COLUMN($B$2:$V$22)/100),COLUMN(C20)),"")) ->  | AH36: =IF($AD36="","",IFERROR(SMALL(IF($AD36=$B$2:$V$22,ROW($B$2:$V$22)+COLUMN($B$2:$V$22)/100),COLUMN(D20)),"")) ->  | AI36: =IF($AD36="","",IFERROR(SMALL(IF($AD36=$B$2:$V$22,ROW($B$2:$V$22)+COLUMN($B$2:$V$22)/100),COLUMN(E20)),"")) ->  | AJ36: =IF($AD36="","",IFERROR(SMALL(IF($AD36=$B$2:$V$22,ROW($B$2:$V$22)+COLUMN($B$2:$V$22)/100),COLUMN(F20)),"")) ->  | AK36: =IF($AD36="","",IFERROR(SMALL(IF($AD36=$B$2:$V$22,ROW($B$2:$V$22)+COLUMN($B$2:$V$22)/100),COLUMN(G20)),"")) -> 
B37: =MIN(IF(B16/$AA$3=$B$3:$V$22,$B$3:$V$22)) -> 0 | C37: =MIN(IF(C16/$AA$3=$B$3:$V$22,$B$3:$V$22)) -> 0 | D37: =MIN(IF(D16/$AA$3=$B$3:$V$22,$B$3:$V$22)) -> 0 | E37: =MIN(IF(E16/$AA$3=$B$3:$V$22,$B$3:$V$22)) -> 0 | F37: =MIN(IF(F16/$AA$3=$B$3:$V$22,$B$3:$V$22)) -> 0 | G37: =MIN(IF(G16/$AA$3=$B$3:$V$22,$B$3:$V$22)) -> 0 | H37: =MIN(IF(H16/$AA$3=$B$3:$V$22,$B$3:$V$22)) -> 0 | I37: =MIN(IF(I16/$AA$3=$B$3:$V$22,$B$3:$V$22)) -> 0 | J37: =MIN(IF(J16/$AA$3=$B$3:$V$22,$B$3:$V$22)) -> 0 | K37: =MIN(IF(K16/$AA$3=$B$3:$V$22,$B$3:$V$22)) -> 0 | L37: =MIN(IF(L16/$AA$3=$B$3:$V$22,$B$3:$V$22)) -> 0 | M37: =MIN(IF(M16/$AA$3=$B$3:$V$22,$B$3:$V$22)) -> 0 | N37: =MIN(IF(N16/$AA$3=$B$3:$V$22,$B$3:$V$22)) -> 0 | O37: =MIN(IF(O16/$AA$3=$B$3:$V$22,$B$3:$V$22)) -> 0 | P37: =MIN(IF(P16/$AA$3=$B$3:$V$22,$B$3:$V$22)) -> 0 | Q37: =MIN(IF(Q16/$AA$3=$B$3:$V$22,$B$3:$V$22)) -> 0 | R37: =MIN(IF(R16/$AA$3=$B$3:$V$22,$B$3:$V$22)) -> 0 | S37: =MIN(IF(S16/$AA$3=$B$3:$V$22,$B$3:$V$22)) -> 0 | T37: =MIN(IF(T16/$AA$3=$B$3:$V$22,$B$3:$V$22)) -> 0 | U37: =MIN(IF(U16/$AA$3=$B$3:$V$22,$B$3:$V$22)) -> 0 | AA37: =IF(COUNTIF(AB$17:AB37,AB37)=1,COUNT(AA$16:AA36)+1) -> FALSE | AE37: =IF($AD37="","",IFERROR(SMALL(IF($AD37=$B$2:$V$22,ROW($B$2:$V$22)+COLUMN($B$2:$V$22)/100),COLUMN(A21)),"")) ->  | AF37: =IF($AD37="","",IFERROR(SMALL(IF($AD37=$B$2:$V$22,ROW($B$2:$V$22)+COLUMN($B$2:$V$22)/100),COLUMN(B21)),"")) ->  | AG37: =IF($AD37="","",IFERROR(SMALL(IF($AD37=$B$2:$V$22,ROW($B$2:$V$22)+COLUMN($B$2:$V$22)/100),COLUMN(C21)),"")) ->  | AH37: =IF($AD37="","",IFERROR(SMALL(IF($AD37=$B$2:$V$22,ROW($B$2:$V$22)+COLUMN($B$2:$V$22)/100),COLUMN(D21)),"")) ->  | AI37: =IF($AD37="","",IFERROR(SMALL(IF($AD37=$B$2:$V$22,ROW($B$2:$V$22)+COLUMN($B$2:$V$22)/100),COLUMN(E21)),"")) ->  | AJ37: =IF($AD37="","",IFERROR(SMALL(IF($AD37=$B$2:$V$22,ROW($B$2:$V$22)+COLUMN($B$2:$V$22)/100),COLUMN(F21)),"")) ->  | AK37: =IF($AD37="","",IFERROR(SMALL(IF($AD37=$B$2:$V$22,ROW($B$2:$V$22)+COLUMN($B$2:$V$22)/100),COLUMN(G21)),"")) -> 
B38: =MIN(IF(B17/$AA$3=$B$3:$V$22,$B$3:$V$22)) -> 0 | C38: =MIN(IF(C17/$AA$3=$B$3:$V$22,$B$3:$V$22)) -> 0 | D38: =MIN(IF(D17/$AA$3=$B$3:$V$22,$B$3:$V$22)) -> 0 | E38: =MIN(IF(E17/$AA$3=$B$3:$V$22,$B$3:$V$22)) -> 0 | F38: =MIN(IF(F17/$AA$3=$B$3:$V$22,$B$3:$V$22)) -> 0 | G38: =MIN(IF(G17/$AA$3=$B$3:$V$22,$B$3:$V$22)) -> 0 | H38: =MIN(IF(H17/$AA$3=$B$3:$V$22,$B$3:$V$22)) -> 0 | I38: =MIN(IF(I17/$AA$3=$B$3:$V$22,$B$3:$V$22)) -> 0 | J38: =MIN(IF(J17/$AA$3=$B$3:$V$22,$B$3:$V$22)) -> 0 | K38: =MIN(IF(K17/$AA$3=$B$3:$V$22,$B$3:$V$22)) -> 0 | L38: =MIN(IF(L17/$AA$3=$B$3:$V$22,$B$3:$V$22)) -> 0 | M38: =MIN(IF(M17/$AA$3=$B$3:$V$22,$B$3:$V$22)) -> 0 | N38: =MIN(IF(N17/$AA$3=$B$3:$V$22,$B$3:$V$22)) -> 0 | O38: =MIN(IF(O17/$AA$3=$B$3:$V$22,$B$3:$V$22)) -> 0 | P38: =MIN(IF(P17/$AA$3=$B$3:$V$22,$B$3:$V$22)) -> 0 | Q38: =MIN(IF(Q17/$AA$3=$B$3:$V$22,$B$3:$V$22)) -> 0 | R38: =MIN(IF(R17/$AA$3=$B$3:$V$22,$B$3:$V$22)) -> 0 | S38: =MIN(IF(S17/$AA$3=$B$3:$V$22,$B$3:$V$22)) -> 0 | T38: =MIN(IF(T17/$AA$3=$B$3:$V$22,$B$3:$V$22)) -> 0 | U38: =MIN(IF(U17/$AA$3=$B$3:$V$22,$B$3:$V$22)) -> 0 | AA38: =IF(COUNTIF(AB$17:AB38,AB38)=1,COUNT(AA$16:AA37)+1) -> FALSE | AE38: =IF($AD38="","",IFERROR(SMALL(IF($AD38=$B$2:$V$22,ROW($B$2:$V$22)+COLUMN($B$2:$V$22)/100),COLUMN(A22)),"")) ->  | AF38: =IF($AD38="","",IFERROR(SMALL(IF($AD38=$B$2:$V$22,ROW($B$2:$V$22)+COLUMN($B$2:$V$22)/100),COLUMN(B22)),"")) ->  | AG38: =IF($AD38="","",IFERROR(SMALL(IF($AD38=$B$2:$V$22,ROW($B$2:$V$22)+COLUMN($B$2:$V$22)/100),COLUMN(C22)),"")) ->  | AH38: =IF($AD38="","",IFERROR(SMALL(IF($AD38=$B$2:$V$22,ROW($B$2:$V$22)+COLUMN($B$2:$V$22)/100),COLUMN(D22)),"")) ->  | AI38: =IF($AD38="","",IFERROR(SMALL(IF($AD38=$B$2:$V$22,ROW($B$2:$V$22)+COLUMN($B$2:$V$22)/100),COLUMN(E22)),"")) ->  | AJ38: =IF($AD38="","",IFERROR(SMALL(IF($AD38=$B$2:$V$22,ROW($B$2:$V$22)+COLUMN($B$2:$V$22)/100),COLUMN(F22)),"")) ->  | AK38: =IF($AD38="","",IFERROR(SMALL(IF($AD38=$B$2:$V$22,ROW($B$2:$V$22)+COLUMN($B$2:$V$22)/100),COLUMN(G22)),"")) -> 
B39: =MIN(IF(B18/$AA$3=$B$3:$V$22,$B$3:$V$22)) -> 0 | C39: =MIN(IF(C18/$AA$3=$B$3:$V$22,$B$3:$V$22)) -> 0 | D39: =MIN(IF(D18/$AA$3=$B$3:$V$22,$B$3:$V$22)) -> 0 | E39: =MIN(IF(E18/$AA$3=$B$3:$V$22,$B$3:$V$22)) -> 0 | F39: =MIN(IF(F18/$AA$3=$B$3:$V$22,$B$3:$V$22)) -> 0 | G39: =MIN(IF(G18/$AA$3=$B$3:$V$22,$B$3:$V$22)) -> 0 | H39: =MIN(IF(H18/$AA$3=$B$3:$V$22,$B$3:$V$22)) -> 0 | I39: =MIN(IF(I18/$AA$3=$B$3:$V$22,$B$3:$V$22)) -> 0 | J39: =MIN(IF(J18/$AA$3=$B$3:$V$22,$B$3:$V$22)) -> 0 | K39: =MIN(IF(K18/$AA$3=$B$3:$V$22,$B$3:$V$22)) -> 0 | L39: =MIN(IF(L18/$AA$3=$B$3:$V$22,$B$3:$V$22)) -> 0 | M39: =MIN(IF(M18/$AA$3=$B$3:$V$22,$B$3:$V$22)) -> 0 | N39: =MIN(IF(N18/$AA$3=$B$3:$V$22,$B$3:$V$22)) -> 0 | O39: =MIN(IF(O18/$AA$3=$B$3:$V$22,$B$3:$V$22)) -> 0 | P39: =MIN(IF(P18/$AA$3=$B$3:$V$22,$B$3:$V$22)) -> 0 | Q39: =MIN(IF(Q18/$AA$3=$B$3:$V$22,$B$3:$V$22)) -> 0 | R39: =MIN(IF(R18/$AA$3=$B$3:$V$22,$B$3:$V$22)) -> 0 | S39: =MIN(IF(S18/$AA$3=$B$3:$V$22,$B$3:$V$22)) -> 0 | T39: =MIN(IF(T18/$AA$3=$B$3:$V$22,$B$3:$V$22)) -> 0 | U39: =MIN(IF(U18/$AA$3=$B$3:$V$22,$B$3:$V$22)) -> 0 | AA39: =IF(COUNTIF(AB$17:AB39,AB39)=1,COUNT(AA$16:AA38)+1) -> FALSE | AE39: =IF($AD39="","",IFERROR(SMALL(IF($AD39=$B$2:$V$22,ROW($B$2:$V$22)+COLUMN($B$2:$V$22)/100),COLUMN(A23)),"")) ->  | AF39: =IF($AD39="","",IFERROR(SMALL(IF($AD39=$B$2:$V$22,ROW($B$2:$V$22)+COLUMN($B$2:$V$22)/100),COLUMN(B23)),"")) ->  | AG39: =IF($AD39="","",IFERROR(SMALL(IF($AD39=$B$2:$V$22,ROW($B$2:$V$22)+COLUMN($B$2:$V$22)/100),COLUMN(C23)),"")) ->  | AH39: =IF($AD39="","",IFERROR(SMALL(IF($AD39=$B$2:$V$22,ROW($B$2:$V$22)+COLUMN($B$2:$V$22)/100),COLUMN(D23)),"")) ->  | AI39: =IF($AD39="","",IFERROR(SMALL(IF($AD39=$B$2:$V$22,ROW($B$2:$V$22)+COLUMN($B$2:$V$22)/100),COLUMN(E23)),"")) ->  | AJ39: =IF($AD39="","",IFERROR(SMALL(IF($AD39=$B$2:$V$22,ROW($B$2:$V$22)+COLUMN($B$2:$V$22)/100),COLUMN(F23)),"")) ->  | AK39: =IF($AD39="","",IFERROR(SMALL(IF($AD39=$B$2:$V$22,ROW($B$2:$V$22)+COLUMN($B$2:$V$22)/100),COLUMN(G23)),"")) -> 
B40: =MIN(IF(B19/$AA$3=$B$3:$V$22,$B$3:$V$22)) -> 0 | C40: =MIN(IF(C19/$AA$3=$B$3:$V$22,$B$3:$V$22)) -> 0 | D40: =MIN(IF(D19/$AA$3=$B$3:$V$22,$B$3:$V$22)) -> 0 | E40: =MIN(IF(E19/$AA$3=$B$3:$V$22,$B$3:$V$22)) -> 0 | F40: =MIN(IF(F19/$AA$3=$B$3:$V$22,$B$3:$V$22)) -> 0 | G40: =MIN(IF(G19/$AA$3=$B$3:$V$22,$B$3:$V$22)) -> 0 | H40: =MIN(IF(H19/$AA$3=$B$3:$V$22,$B$3:$V$22)) -> 0 | I40: =MIN(IF(I19/$AA$3=$B$3:$V$22,$B$3:$V$22)) -> 0 | J40: =MIN(IF(J19/$AA$3=$B$3:$V$22,$B$3:$V$22)) -> 0 | K40: =MIN(IF(K19/$AA$3=$B$3:$V$22,$B$3:$V$22)) -> 0 | L40: =MIN(IF(L19/$AA$3=$B$3:$V$22,$B$3:$V$22)) -> 0 | M40: =MIN(IF(M19/$AA$3=$B$3:$V$22,$B$3:$V$22)) -> 0 | N40: =MIN(IF(N19/$AA$3=$B$3:$V$22,$B$3:$V$22)) -> 0 | O40: =MIN(IF(O19/$AA$3=$B$3:$V$22,$B$3:$V$22)) -> 0 | P40: =MIN(IF(P19/$AA$3=$B$3:$V$22,$B$3:$V$22)) -> 0 | Q40: =MIN(IF(Q19/$AA$3=$B$3:$V$22,$B$3:$V$22)) -> 0 | R40: =MIN(IF(R19/$AA$3=$B$3:$V$22,$B$3:$V$22)) -> 0 | S40: =MIN(IF(S19/$AA$3=$B$3:$V$22,$B$3:$V$22)) -> 0 | T40: =MIN(IF(T19/$AA$3=$B$3:$V$22,$B$3:$V$22)) -> 0 | U40: =MIN(IF(U19/$AA$3=$B$3:$V$22,$B$3:$V$22)) -> 0 | AA40: =IF(COUNTIF(AB$17:AB40,AB40)=1,COUNT(AA$16:AA39)+1) -> FALSE | AE40: =IF($AD40="","",IFERROR(SMALL(IF($AD40=$B$2:$V$22,ROW($B$2:$V$22)+COLUMN($B$2:$V$22)/100),COLUMN(A24)),"")) ->  | AF40: =IF($AD40="","",IFERROR(SMALL(IF($AD40=$B$2:$V$22,ROW($B$2:$V$22)+COLUMN($B$2:$V$22)/100),COLUMN(B24)),"")) ->  | AG40: =IF($AD40="","",IFERROR(SMALL(IF($AD40=$B$2:$V$22,ROW($B$2:$V$22)+COLUMN($B$2:$V$22)/100),COLUMN(C24)),"")) ->  | AH40: =IF($AD40="","",IFERROR(SMALL(IF($AD40=$B$2:$V$22,ROW($B$2:$V$22)+COLUMN($B$2:$V$22)/100),COLUMN(D24)),"")) ->  | AI40: =IF($AD40="","",IFERROR(SMALL(IF($AD40=$B$2:$V$22,ROW($B$2:$V$22)+COLUMN($B$2:$V$22)/100),COLUMN(E24)),"")) ->  | AJ40: =IF($AD40="","",IFERROR(SMALL(IF($AD40=$B$2:$V$22,ROW($B$2:$V$22)+COLUMN($B$2:$V$22)/100),COLUMN(F24)),"")) ->  | AK40: =IF($AD40="","",IFERROR(SMALL(IF($AD40=$B$2:$V$22,ROW($B$2:$V$22)+COLUMN($B$2:$V$22)/100),COLUMN(G24)),"")) -> 
B41: =MIN(IF(B20/$AA$3=$B$3:$V$22,$B$3:$V$22)) -> 0 | C41: =MIN(IF(C20/$AA$3=$B$3:$V$22,$B$3:$V$22)) -> 0 | D41: =MIN(IF(D20/$AA$3=$B$3:$V$22,$B$3:$V$22)) -> 0 | E41: =MIN(IF(E20/$AA$3=$B$3:$V$22,$B$3:$V$22)) -> 0 | F41: =MIN(IF(F20/$AA$3=$B$3:$V$22,$B$3:$V$22)) -> 0 | G41: =MIN(IF(G20/$AA$3=$B$3:$V$22,$B$3:$V$22)) -> 0 | H41: =MIN(IF(H20/$AA$3=$B$3:$V$22,$B$3:$V$22)) -> 0 | I41: =MIN(IF(I20/$AA$3=$B$3:$V$22,$B$3:$V$22)) -> 0 | J41: =MIN(IF(J20/$AA$3=$B$3:$V$22,$B$3:$V$22)) -> 0 | K41: =MIN(IF(K20/$AA$3=$B$3:$V$22,$B$3:$V$22)) -> 0 | L41: =MIN(IF(L20/$AA$3=$B$3:$V$22,$B$3:$V$22)) -> 0 | M41: =MIN(IF(M20/$AA$3=$B$3:$V$22,$B$3:$V$22)) -> 0 | N41: =MIN(IF(N20/$AA$3=$B$3:$V$22,$B$3:$V$22)) -> 0 | O41: =MIN(IF(O20/$AA$3=$B$3:$V$22,$B$3:$V$22)) -> 0 | P41: =MIN(IF(P20/$AA$3=$B$3:$V$22,$B$3:$V$22)) -> 0 | Q41: =MIN(IF(Q20/$AA$3=$B$3:$V$22,$B$3:$V$22)) -> 0 | R41: =MIN(IF(R20/$AA$3=$B$3:$V$22,$B$3:$V$22)) -> 0 | S41: =MIN(IF(S20/$AA$3=$B$3:$V$22,$B$3:$V$22)) -> 0 | T41: =MIN(IF(T20/$AA$3=$B$3:$V$22,$B$3:$V$22)) -> 0 | U41: =MIN(IF(U20/$AA$3=$B$3:$V$22,$B$3:$V$22)) -> 0 | AA41: =IF(COUNTIF(AB$17:AB41,AB41)=1,COUNT(AA$16:AA40)+1) -> FALSE | AE41: =IF($AD41="","",IFERROR(SMALL(IF($AD41=$B$2:$V$22,ROW($B$2:$V$22)+COLUMN($B$2:$V$22)/100),COLUMN(A25)),"")) ->  | AF41: =IF($AD41="","",IFERROR(SMALL(IF($AD41=$B$2:$V$22,ROW($B$2:$V$22)+COLUMN($B$2:$V$22)/100),COLUMN(B25)),"")) ->  | AG41: =IF($AD41="","",IFERROR(SMALL(IF($AD41=$B$2:$V$22,ROW($B$2:$V$22)+COLUMN($B$2:$V$22)/100),COLUMN(C25)),"")) ->  | AH41: =IF($AD41="","",IFERROR(SMALL(IF($AD41=$B$2:$V$22,ROW($B$2:$V$22)+COLUMN($B$2:$V$22)/100),COLUMN(D25)),"")) ->  | AI41: =IF($AD41="","",IFERROR(SMALL(IF($AD41=$B$2:$V$22,ROW($B$2:$V$22)+COLUMN($B$2:$V$22)/100),COLUMN(E25)),"")) ->  | AJ41: =IF($AD41="","",IFERROR(SMALL(IF($AD41=$B$2:$V$22,ROW($B$2:$V$22)+COLUMN($B$2:$V$22)/100),COLUMN(F25)),"")) ->  | AK41: =IF($AD41="","",IFERROR(SMALL(IF($AD41=$B$2:$V$22,ROW($B$2:$V$22)+COLUMN($B$2:$V$22)/100),COLUMN(G25)),"")) -> 
B42: =MIN(IF(B21/$AA$3=$B$3:$V$22,$B$3:$V$22)) -> 0 | C42: =MIN(IF(C21/$AA$3=$B$3:$V$22,$B$3:$V$22)) -> 0 | D42: =MIN(IF(D21/$AA$3=$B$3:$V$22,$B$3:$V$22)) -> 0 | E42: =MIN(IF(E21/$AA$3=$B$3:$V$22,$B$3:$V$22)) -> 0 | F42: =MIN(IF(F21/$AA$3=$B$3:$V$22,$B$3:$V$22)) -> 0 | G42: =MIN(IF(G21/$AA$3=$B$3:$V$22,$B$3:$V$22)) -> 0 | H42: =MIN(IF(H21/$AA$3=$B$3:$V$22,$B$3:$V$22)) -> 0 | I42: =MIN(IF(I21/$AA$3=$B$3:$V$22,$B$3:$V$22)) -> 0 | J42: =MIN(IF(J21/$AA$3=$B$3:$V$22,$B$3:$V$22)) -> 0 | K42: =MIN(IF(K21/$AA$3=$B$3:$V$22,$B$3:$V$22)) -> 0 | L42: =MIN(IF(L21/$AA$3=$B$3:$V$22,$B$3:$V$22)) -> 0 | M42: =MIN(IF(M21/$AA$3=$B$3:$V$22,$B$3:$V$22)) -> 0 | N42: =MIN(IF(N21/$AA$3=$B$3:$V$22,$B$3:$V$22)) -> 0 | O42: =MIN(IF(O21/$AA$3=$B$3:$V$22,$B$3:$V$22)) -> 0 | P42: =MIN(IF(P21/$AA$3=$B$3:$V$22,$B$3:$V$22)) -> 0 | Q42: =MIN(IF(Q21/$AA$3=$B$3:$V$22,$B$3:$V$22)) -> 0 | R42: =MIN(IF(R21/$AA$3=$B$3:$V$22,$B$3:$V$22)) -> 0 | S42: =MIN(IF(S21/$AA$3=$B$3:$V$22,$B$3:$V$22)) -> 0 | T42: =MIN(IF(T21/$AA$3=$B$3:$V$22,$B$3:$V$22)) -> 0 | U42: =MIN(IF(U21/$AA$3=$B$3:$V$22,$B$3:$V$22)) -> 0 | AA42: =IF(COUNTIF(AB$17:AB42,AB42)=1,COUNT(AA$16:AA41)+1) -> FALSE | AE42: =IF($AD42="","",IFERROR(SMALL(IF($AD42=$B$2:$V$22,ROW($B$2:$V$22)+COLUMN($B$2:$V$22)/100),COLUMN(A26)),"")) ->  | AF42: =IF($AD42="","",IFERROR(SMALL(IF($AD42=$B$2:$V$22,ROW($B$2:$V$22)+COLUMN($B$2:$V$22)/100),COLUMN(B26)),"")) ->  | AG42: =IF($AD42="","",IFERROR(SMALL(IF($AD42=$B$2:$V$22,ROW($B$2:$V$22)+COLUMN($B$2:$V$22)/100),COLUMN(C26)),"")) ->  | AH42: =IF($AD42="","",IFERROR(SMALL(IF($AD42=$B$2:$V$22,ROW($B$2:$V$22)+COLUMN($B$2:$V$22)/100),COLUMN(D26)),"")) ->  | AI42: =IF($AD42="","",IFERROR(SMALL(IF($AD42=$B$2:$V$22,ROW($B$2:$V$22)+COLUMN($B$2:$V$22)/100),COLUMN(E26)),"")) ->  | AJ42: =IF($AD42="","",IFERROR(SMALL(IF($AD42=$B$2:$V$22,ROW($B$2:$V$22)+COLUMN($B$2:$V$22)/100),COLUMN(F26)),"")) ->  | AK42: =IF($AD42="","",IFERROR(SMALL(IF($AD42=$B$2:$V$22,ROW($B$2:$V$22)+COLUMN($B$2:$V$22)/100),COLUMN(G26)),"")) -> 
B43: =MIN(IF(B22/$AA$3=$B$3:$V$22,$B$3:$V$22)) -> 0 | C43: =MIN(IF(C22/$AA$3=$B$3:$V$22,$B$3:$V$22)) -> 0 | D43: =MIN(IF(D22/$AA$3=$B$3:$V$22,$B$3:$V$22)) -> 0 | E43: =MIN(IF(E22/$AA$3=$B$3:$V$22,$B$3:$V$22)) -> 0 | F43: =MIN(IF(F22/$AA$3=$B$3:$V$22,$B$3:$V$22)) -> 0 | G43: =MIN(IF(G22/$AA$3=$B$3:$V$22,$B$3:$V$22)) -> 0 | H43: =MIN(IF(H22/$AA$3=$B$3:$V$22,$B$3:$V$22)) -> 0 | I43: =MIN(IF(I22/$AA$3=$B$3:$V$22,$B$3:$V$22)) -> 0 | J43: =MIN(IF(J22/$AA$3=$B$3:$V$22,$B$3:$V$22)) -> 0 | K43: =MIN(IF(K22/$AA$3=$B$3:$V$22,$B$3:$V$22)) -> 0 | L43: =MIN(IF(L22/$AA$3=$B$3:$V$22,$B$3:$V$22)) -> 0 | M43: =MIN(IF(M22/$AA$3=$B$3:$V$22,$B$3:$V$22)) -> 0 | N43: =MIN(IF(N22/$AA$3=$B$3:$V$22,$B$3:$V$22)) -> 0 | O43: =MIN(IF(O22/$AA$3=$B$3:$V$22,$B$3:$V$22)) -> 0 | P43: =MIN(IF(P22/$AA$3=$B$3:$V$22,$B$3:$V$22)) -> 0 | Q43: =MIN(IF(Q22/$AA$3=$B$3:$V$22,$B$3:$V$22)) -> 0 | R43: =MIN(IF(R22/$AA$3=$B$3:$V$22,$B$3:$V$22)) -> 0 | S43: =MIN(IF(S22/$AA$3=$B$3:$V$22,$B$3:$V$22)) -> 0 | T43: =MIN(IF(T22/$AA$3=$B$3:$V$22,$B$3:$V$22)) -> 0 | U43: =MIN(IF(U22/$AA$3=$B$3:$V$22,$B$3:$V$22)) -> 0 | AA43: =IF(COUNTIF(AB$17:AB43,AB43)=1,COUNT(AA$16:AA42)+1) -> FALSE | AE43: =IF($AD43="","",IFERROR(SMALL(IF($AD43=$B$2:$V$22,ROW($B$2:$V$22)+COLUMN($B$2:$V$22)/100),COLUMN(A27)),"")) ->  | AF43: =IF($AD43="","",IFERROR(SMALL(IF($AD43=$B$2:$V$22,ROW($B$2:$V$22)+COLUMN($B$2:$V$22)/100),COLUMN(B27)),"")) ->  | AG43: =IF($AD43="","",IFERROR(SMALL(IF($AD43=$B$2:$V$22,ROW($B$2:$V$22)+COLUMN($B$2:$V$22)/100),COLUMN(C27)),"")) ->  | AH43: =IF($AD43="","",IFERROR(SMALL(IF($AD43=$B$2:$V$22,ROW($B$2:$V$22)+COLUMN($B$2:$V$22)/100),COLUMN(D27)),"")) ->  | AI43: =IF($AD43="","",IFERROR(SMALL(IF($AD43=$B$2:$V$22,ROW($B$2:$V$22)+COLUMN($B$2:$V$22)/100),COLUMN(E27)),"")) ->  | AJ43: =IF($AD43="","",IFERROR(SMALL(IF($AD43=$B$2:$V$22,ROW($B$2:$V$22)+COLUMN($B$2:$V$22)/100),COLUMN(F27)),"")) ->  | AK43: =IF($AD43="","",IFERROR(SMALL(IF($AD43=$B$2:$V$22,ROW($B$2:$V$22)+COLUMN($B$2:$V$22)/100),COLUMN(G27)),"")) -> 
AA44: =IF(COUNTIF(AB$17:AB44,AB44)=1,COUNT(AA$16:AA43)+1) -> FALSE | AE44: =IF($AD44="","",IFERROR(SMALL(IF($AD44=$B$2:$V$22,ROW($B$2:$V$22)+COLUMN($B$2:$V$22)/100),COLUMN(A28)),"")) ->  | AF44: =IF($AD44="","",IFERROR(SMALL(IF($AD44=$B$2:$V$22,ROW($B$2:$V$22)+COLUMN($B$2:$V$22)/100),COLUMN(B28)),"")) ->  | AG44: =IF($AD44="","",IFERROR(SMALL(IF($AD44=$B$2:$V$22,ROW($B$2:$V$22)+COLUMN($B$2:$V$22)/100),COLUMN(C28)),"")) ->  | AH44: =IF($AD44="","",IFERROR(SMALL(IF($AD44=$B$2:$V$22,ROW($B$2:$V$22)+COLUMN($B$2:$V$22)/100),COLUMN(D28)),"")) ->  | AI44: =IF($AD44="","",IFERROR(SMALL(IF($AD44=$B$2:$V$22,ROW($B$2:$V$22)+COLUMN($B$2:$V$22)/100),COLUMN(E28)),"")) ->  | AJ44: =IF($AD44="","",IFERROR(SMALL(IF($AD44=$B$2:$V$22,ROW($B$2:$V$22)+COLUMN($B$2:$V$22)/100),COLUMN(F28)),"")) ->  | AK44: =IF($AD44="","",IFERROR(SMALL(IF($AD44=$B$2:$V$22,ROW($B$2:$V$22)+COLUMN($B$2:$V$22)/100),COLUMN(G28)),"")) -> 
AA45: =IF(COUNTIF(AB$17:AB45,AB45)=1,COUNT(AA$16:AA44)+1) -> FALSE | AE45: =IF($AD45="","",IFERROR(SMALL(IF($AD45=$B$2:$V$22,ROW($B$2:$V$22)+COLUMN($B$2:$V$22)/100),COLUMN(A29)),"")) ->  | AF45: =IF($AD45="","",IFERROR(SMALL(IF($AD45=$B$2:$V$22,ROW($B$2:$V$22)+COLUMN($B$2:$V$22)/100),COLUMN(B29)),"")) ->  | AG45: =IF($AD45="","",IFERROR(SMALL(IF($AD45=$B$2:$V$22,ROW($B$2:$V$22)+COLUMN($B$2:$V$22)/100),COLUMN(C29)),"")) ->  | AH45: =IF($AD45="","",IFERROR(SMALL(IF($AD45=$B$2:$V$22,ROW($B$2:$V$22)+COLUMN($B$2:$V$22)/100),COLUMN(D29)),"")) ->  | AI45: =IF($AD45="","",IFERROR(SMALL(IF($AD45=$B$2:$V$22,ROW($B$2:$V$22)+COLUMN($B$2:$V$22)/100),COLUMN(E29)),"")) ->  | AJ45: =IF($AD45="","",IFERROR(SMALL(IF($AD45=$B$2:$V$22,ROW($B$2:$V$22)+COLUMN($B$2:$V$22)/100),COLUMN(F29)),"")) ->  | AK45: =IF($AD45="","",IFERROR(SMALL(IF($AD45=$B$2:$V$22,ROW($B$2:$V$22)+COLUMN($B$2:$V$22)/100),COLUMN(G29)),"")) -> 
AA46: =IF(COUNTIF(AB$17:AB46,AB46)=1,COUNT(AA$16:AA45)+1) -> FALSE | AE46: =IF($AD46="","",IFERROR(SMALL(IF($AD46=$B$2:$V$22,ROW($B$2:$V$22)+COLUMN($B$2:$V$22)/100),COLUMN(A30)),"")) ->  | AF46: =IF($AD46="","",IFERROR(SMALL(IF($AD46=$B$2:$V$22,ROW($B$2:$V$22)+COLUMN($B$2:$V$22)/100),COLUMN(B30)),"")) ->  | AG46: =IF($AD46="","",IFERROR(SMALL(IF($AD46=$B$2:$V$22,ROW($B$2:$V$22)+COLUMN($B$2:$V$22)/100),COLUMN(C30)),"")) ->  | AH46: =IF($AD46="","",IFERROR(SMALL(IF($AD46=$B$2:$V$22,ROW($B$2:$V$22)+COLUMN($B$2:$V$22)/100),COLUMN(D30)),"")) ->  | AI46: =IF($AD46="","",IFERROR(SMALL(IF($AD46=$B$2:$V$22,ROW($B$2:$V$22)+COLUMN($B$2:$V$22)/100),COLUMN(E30)),"")) ->  | AJ46: =IF($AD46="","",IFERROR(SMALL(IF($AD46=$B$2:$V$22,ROW($B$2:$V$22)+COLUMN($B$2:$V$22)/100),COLUMN(F30)),"")) ->  | AK46: =IF($AD46="","",IFERROR(SMALL(IF($AD46=$B$2:$V$22,ROW($B$2:$V$22)+COLUMN($B$2:$V$22)/100),COLUMN(G30)),"")) -> 
AA47: =IF(COUNTIF(AB$17:AB47,AB47)=1,COUNT(AA$16:AA46)+1) -> FALSE | AE47: =IF($AD47="","",IFERROR(SMALL(IF($AD47=$B$2:$V$22,ROW($B$2:$V$22)+COLUMN($B$2:$V$22)/100),COLUMN(A31)),"")) ->  | AF47: =IF($AD47="","",IFERROR(SMALL(IF($AD47=$B$2:$V$22,ROW($B$2:$V$22)+COLUMN($B$2:$V$22)/100),COLUMN(B31)),"")) ->  | AG47: =IF($AD47="","",IFERROR(SMALL(IF($AD47=$B$2:$V$22,ROW($B$2:$V$22)+COLUMN($B$2:$V$22)/100),COLUMN(C31)),"")) ->  | AH47: =IF($AD47="","",IFERROR(SMALL(IF($AD47=$B$2:$V$22,ROW($B$2:$V$22)+COLUMN($B$2:$V$22)/100),COLUMN(D31)),"")) ->  | AI47: =IF($AD47="","",IFERROR(SMALL(IF($AD47=$B$2:$V$22,ROW($B$2:$V$22)+COLUMN($B$2:$V$22)/100),COLUMN(E31)),"")) ->  | AJ47: =IF($AD47="","",IFERROR(SMALL(IF($AD47=$B$2:$V$22,ROW($B$2:$V$22)+COLUMN($B$2:$V$22)/100),COLUMN(F31)),"")) ->  | AK47: =IF($AD47="","",IFERROR(SMALL(IF($AD47=$B$2:$V$22,ROW($B$2:$V$22)+COLUMN($B$2:$V$22)/100),COLUMN(G31)),"")) -> 
AA48: =IF(COUNTIF(AB$17:AB48,AB48)=1,COUNT(AA$16:AA47)+1) -> FALSE | AE48: =IF($AD48="","",IFERROR(SMALL(IF($AD48=$B$2:$V$22,ROW($B$2:$V$22)+COLUMN($B$2:$V$22)/100),COLUMN(A32)),"")) ->  | AF48: =IF($AD48="","",IFERROR(SMALL(IF($AD48=$B$2:$V$22,ROW($B$2:$V$22)+COLUMN($B$2:$V$22)/100),COLUMN(B32)),"")) ->  | AG48: =IF($AD48="","",IFERROR(SMALL(IF($AD48=$B$2:$V$22,ROW($B$2:$V$22)+COLUMN($B$2:$V$22)/100),COLUMN(C32)),"")) ->  | AH48: =IF($AD48="","",IFERROR(SMALL(IF($AD48=$B$2:$V$22,ROW($B$2:$V$22)+COLUMN($B$2:$V$22)/100),COLUMN(D32)),"")) ->  | AI48: =IF($AD48="","",IFERROR(SMALL(IF($AD48=$B$2:$V$22,ROW($B$2:$V$22)+COLUMN($B$2:$V$22)/100),COLUMN(E32)),"")) ->  | AJ48: =IF($AD48="","",IFERROR(SMALL(IF($AD48=$B$2:$V$22,ROW($B$2:$V$22)+COLUMN($B$2:$V$22)/100),COLUMN(F32)),"")) ->  | AK48: =IF($AD48="","",IFERROR(SMALL(IF($AD48=$B$2:$V$22,ROW($B$2:$V$22)+COLUMN($B$2:$V$22)/100),COLUMN(G32)),"")) -> 
AA49: =IF(COUNTIF(AB$17:AB49,AB49)=1,COUNT(AA$16:AA48)+1) -> FALSE | AE49: =IF($AD49="","",IFERROR(SMALL(IF($AD49=$B$2:$V$22,ROW($B$2:$V$22)+COLUMN($B$2:$V$22)/100),COLUMN(A33)),"")) ->  | AF49: =IF($AD49="","",IFERROR(SMALL(IF($AD49=$B$2:$V$22,ROW($B$2:$V$22)+COLUMN($B$2:$V$22)/100),COLUMN(B33)),"")) ->  | AG49: =IF($AD49="","",IFERROR(SMALL(IF($AD49=$B$2:$V$22,ROW($B$2:$V$22)+COLUMN($B$2:$V$22)/100),COLUMN(C33)),"")) ->  | AH49: =IF($AD49="","",IFERROR(SMALL(IF($AD49=$B$2:$V$22,ROW($B$2:$V$22)+COLUMN($B$2:$V$22)/100),COLUMN(D33)),"")) ->  | AI49: =IF($AD49="","",IFERROR(SMALL(IF($AD49=$B$2:$V$22,ROW($B$2:$V$22)+COLUMN($B$2:$V$22)/100),COLUMN(E33)),"")) ->  | AJ49: =IF($AD49="","",IFERROR(SMALL(IF($AD49=$B$2:$V$22,ROW($B$2:$V$22)+COLUMN($B$2:$V$22)/100),COLUMN(F33)),"")) ->  | AK49: =IF($AD49="","",IFERROR(SMALL(IF($AD49=$B$2:$V$22,ROW($B$2:$V$22)+COLUMN($B$2:$V$22)/100),COLUMN(G33)),"")) -> 
AA50: =IF(COUNTIF(AB$17:AB50,AB50)=1,COUNT(AA$16:AA49)+1) -> FALSE | AE50: =IF($AD50="","",IFERROR(SMALL(IF($AD50=$B$2:$V$22,ROW($B$2:$V$22)+COLUMN($B$2:$V$22)/100),COLUMN(A34)),"")) ->  | AF50: =IF($AD50="","",IFERROR(SMALL(IF($AD50=$B$2:$V$22,ROW($B$2:$V$22)+COLUMN($B$2:$V$22)/100),COLUMN(B34)),"")) ->  | AG50: =IF($AD50="","",IFERROR(SMALL(IF($AD50=$B$2:$V$22,ROW($B$2:$V$22)+COLUMN($B$2:$V$22)/100),COLUMN(C34)),"")) ->  | AH50: =IF($AD50="","",IFERROR(SMALL(IF($AD50=$B$2:$V$22,ROW($B$2:$V$22)+COLUMN($B$2:$V$22)/100),COLUMN(D34)),"")) ->  | AI50: =IF($AD50="","",IFERROR(SMALL(IF($AD50=$B$2:$V$22,ROW($B$2:$V$22)+COLUMN($B$2:$V$22)/100),COLUMN(E34)),"")) ->  | AJ50: =IF($AD50="","",IFERROR(SMALL(IF($AD50=$B$2:$V$22,ROW($B$2:$V$22)+COLUMN($B$2:$V$22)/100),COLUMN(F34)),"")) ->  | AK50: =IF($AD50="","",IFERROR(SMALL(IF($AD50=$B$2:$V$22,ROW($B$2:$V$22)+COLUMN($B$2:$V$22)/100),COLUMN(G34)),"")) -> 
AA51: =IF(COUNTIF(AB$17:AB51,AB51)=1,COUNT(AA$16:AA50)+1) -> FALSE | AE51: =IF($AD51="","",IFERROR(SMALL(IF($AD51=$B$2:$V$22,ROW($B$2:$V$22)+COLUMN($B$2:$V$22)/100),COLUMN(A35)),"")) ->  | AF51: =IF($AD51="","",IFERROR(SMALL(IF($AD51=$B$2:$V$22,ROW($B$2:$V$22)+COLUMN($B$2:$V$22)/100),COLUMN(B35)),"")) ->  | AG51: =IF($AD51="","",IFERROR(SMALL(IF($AD51=$B$2:$V$22,ROW($B$2:$V$22)+COLUMN($B$2:$V$22)/100),COLUMN(C35)),"")) ->  | AH51: =IF($AD51="","",IFERROR(SMALL(IF($AD51=$B$2:$V$22,ROW($B$2:$V$22)+COLUMN($B$2:$V$22)/100),COLUMN(D35)),"")) ->  | AI51: =IF($AD51="","",IFERROR(SMALL(IF($AD51=$B$2:$V$22,ROW($B$2:$V$22)+COLUMN($B$2:$V$22)/100),COLUMN(E35)),"")) ->  | AJ51: =IF($AD51="","",IFERROR(SMALL(IF($AD51=$B$2:$V$22,ROW($B$2:$V$22)+COLUMN($B$2:$V$22)/100),COLUMN(F35)),"")) ->  | AK51: =IF($AD51="","",IFERROR(SMALL(IF($AD51=$B$2:$V$22,ROW($B$2:$V$22)+COLUMN($B$2:$V$22)/100),COLUMN(G35)),"")) -> 
AA52: =IF(COUNTIF(AB$17:AB52,AB52)=1,COUNT(AA$16:AA51)+1) -> FALSE | AE52: =IF($AD52="","",IFERROR(SMALL(IF($AD52=$B$2:$V$22,ROW($B$2:$V$22)+COLUMN($B$2:$V$22)/100),COLUMN(A36)),"")) ->  | AF52: =IF($AD52="","",IFERROR(SMALL(IF($AD52=$B$2:$V$22,ROW($B$2:$V$22)+COLUMN($B$2:$V$22)/100),COLUMN(B36)),"")) ->  | AG52: =IF($AD52="","",IFERROR(SMALL(IF($AD52=$B$2:$V$22,ROW($B$2:$V$22)+COLUMN($B$2:$V$22)/100),COLUMN(C36)),"")) ->  | AH52: =IF($AD52="","",IFERROR(SMALL(IF($AD52=$B$2:$V$22,ROW($B$2:$V$22)+COLUMN($B$2:$V$22)/100),COLUMN(D36)),"")) ->  | AI52: =IF($AD52="","",IFERROR(SMALL(IF($AD52=$B$2:$V$22,ROW($B$2:$V$22)+COLUMN($B$2:$V$22)/100),COLUMN(E36)),"")) ->  | AJ52: =IF($AD52="","",IFERROR(SMALL(IF($AD52=$B$2:$V$22,ROW($B$2:$V$22)+COLUMN($B$2:$V$22)/100),COLUMN(F36)),"")) ->  | AK52: =IF($AD52="","",IFERROR(SMALL(IF($AD52=$B$2:$V$22,ROW($B$2:$V$22)+COLUMN($B$2:$V$22)/100),COLUMN(G36)),"")) -> 
AA53: =IF(COUNTIF(AB$17:AB53,AB53)=1,COUNT(AA$16:AA52)+1) -> FALSE | AE53: =IF($AD53="","",IFERROR(SMALL(IF($AD53=$B$2:$V$22,ROW($B$2:$V$22)+COLUMN($B$2:$V$22)/100),COLUMN(A37)),"")) ->  | AF53: =IF($AD53="","",IFERROR(SMALL(IF($AD53=$B$2:$V$22,ROW($B$2:$V$22)+COLUMN($B$2:$V$22)/100),COLUMN(B37)),"")) ->  | AG53: =IF($AD53="","",IFERROR(SMALL(IF($AD53=$B$2:$V$22,ROW($B$2:$V$22)+COLUMN($B$2:$V$22)/100),COLUMN(C37)),"")) ->  | AH53: =IF($AD53="","",IFERROR(SMALL(IF($AD53=$B$2:$V$22,ROW($B$2:$V$22)+COLUMN($B$2:$V$22)/100),COLUMN(D37)),"")) ->  | AI53: =IF($AD53="","",IFERROR(SMALL(IF($AD53=$B$2:$V$22,ROW($B$2:$V$22)+COLUMN($B$2:$V$22)/100),COLUMN(E37)),"")) ->  | AJ53: =IF($AD53="","",IFERROR(SMALL(IF($AD53=$B$2:$V$22,ROW($B$2:$V$22)+COLUMN($B$2:$V$22)/100),COLUMN(F37)),"")) ->  | AK53: =IF($AD53="","",IFERROR(SMALL(IF($AD53=$B$2:$V$22,ROW($B$2:$V$22)+COLUMN($B$2:$V$22)/100),COLUMN(G37)),"")) -> 
AA54: =IF(COUNTIF(AB$17:AB54,AB54)=1,COUNT(AA$16:AA53)+1) -> FALSE | AE54: =IF($AD54="","",IFERROR(SMALL(IF($AD54=$B$2:$V$22,ROW($B$2:$V$22)+COLUMN($B$2:$V$22)/100),COLUMN(A38)),"")) ->  | AF54: =IF($AD54="","",IFERROR(SMALL(IF($AD54=$B$2:$V$22,ROW($B$2:$V$22)+COLUMN($B$2:$V$22)/100),COLUMN(B38)),"")) ->  | AG54: =IF($AD54="","",IFERROR(SMALL(IF($AD54=$B$2:$V$22,ROW($B$2:$V$22)+COLUMN($B$2:$V$22)/100),COLUMN(C38)),"")) ->  | AH54: =IF($AD54="","",IFERROR(SMALL(IF($AD54=$B$2:$V$22,ROW($B$2:$V$22)+COLUMN($B$2:$V$22)/100),COLUMN(D38)),"")) ->  | AI54: =IF($AD54="","",IFERROR(SMALL(IF($AD54=$B$2:$V$22,ROW($B$2:$V$22)+COLUMN($B$2:$V$22)/100),COLUMN(E38)),"")) ->  | AJ54: =IF($AD54="","",IFERROR(SMALL(IF($AD54=$B$2:$V$22,ROW($B$2:$V$22)+COLUMN($B$2:$V$22)/100),COLUMN(F38)),"")) ->  | AK54: =IF($AD54="","",IFERROR(SMALL(IF($AD54=$B$2:$V$22,ROW($B$2:$V$22)+COLUMN($B$2:$V$22)/100),COLUMN(G38)),"")) -> 
AA55: =IF(COUNTIF(AB$17:AB55,AB55)=1,COUNT(AA$16:AA54)+1) -> FALSE | AE55: =IF($AD55="","",IFERROR(SMALL(IF($AD55=$B$2:$V$22,ROW($B$2:$V$22)+COLUMN($B$2:$V$22)/100),COLUMN(A39)),"")) ->  | AF55: =IF($AD55="","",IFERROR(SMALL(IF($AD55=$B$2:$V$22,ROW($B$2:$V$22)+COLUMN($B$2:$V$22)/100),COLUMN(B39)),"")) ->  | AG55: =IF($AD55="","",IFERROR(SMALL(IF($AD55=$B$2:$V$22,ROW($B$2:$V$22)+COLUMN($B$2:$V$22)/100),COLUMN(C39)),"")) ->  | AH55: =IF($AD55="","",IFERROR(SMALL(IF($AD55=$B$2:$V$22,ROW($B$2:$V$22)+COLUMN($B$2:$V$22)/100),COLUMN(D39)),"")) ->  | AI55: =IF($AD55="","",IFERROR(SMALL(IF($AD55=$B$2:$V$22,ROW($B$2:$V$22)+COLUMN($B$2:$V$22)/100),COLUMN(E39)),"")) ->  | AJ55: =IF($AD55="","",IFERROR(SMALL(IF($AD55=$B$2:$V$22,ROW($B$2:$V$22)+COLUMN($B$2:$V$22)/100),COLUMN(F39)),"")) ->  | AK55: =IF($AD55="","",IFERROR(SMALL(IF($AD55=$B$2:$V$22,ROW($B$2:$V$22)+COLUMN($B$2:$V$22)/100),COLUMN(G39)),"")) -> 
AA56: =IF(COUNTIF(AB$17:AB56,AB56)=1,COUNT(AA$16:AA55)+1) -> FALSE | AE56: =IF($AD56="","",IFERROR(SMALL(IF($AD56=$B$2:$V$22,ROW($B$2:$V$22)+COLUMN($B$2:$V$22)/100),COLUMN(A40)),"")) ->  | AF56: =IF($AD56="","",IFERROR(SMALL(IF($AD56=$B$2:$V$22,ROW($B$2:$V$22)+COLUMN($B$2:$V$22)/100),COLUMN(B40)),"")) ->  | AG56: =IF($AD56="","",IFERROR(SMALL(IF($AD56=$B$2:$V$22,ROW($B$2:$V$22)+COLUMN($B$2:$V$22)/100),COLUMN(C40)),"")) ->  | AH56: =IF($AD56="","",IFERROR(SMALL(IF($AD56=$B$2:$V$22,ROW($B$2:$V$22)+COLUMN($B$2:$V$22)/100),COLUMN(D40)),"")) ->  | AI56: =IF($AD56="","",IFERROR(SMALL(IF($AD56=$B$2:$V$22,ROW($B$2:$V$22)+COLUMN($B$2:$V$22)/100),COLUMN(E40)),"")) ->  | AJ56: =IF($AD56="","",IFERROR(SMALL(IF($AD56=$B$2:$V$22,ROW($B$2:$V$22)+COLUMN($B$2:$V$22)/100),COLUMN(F40)),"")) ->  | AK56: =IF($AD56="","",IFERROR(SMALL(IF($AD56=$B$2:$V$22,ROW($B$2:$V$22)+COLUMN($B$2:$V$22)/100),COLUMN(G40)),"")) -> 
AA57: =IF(COUNTIF(AB$17:AB57,AB57)=1,COUNT(AA$16:AA56)+1) -> FALSE | AE57: =IF($AD57="","",IFERROR(SMALL(IF($AD57=$B$2:$V$22,ROW($B$2:$V$22)+COLUMN($B$2:$V$22)/100),COLUMN(A41)),"")) ->  | AF57: =IF($AD57="","",IFERROR(SMALL(IF($AD57=$B$2:$V$22,ROW($B$2:$V$22)+COLUMN($B$2:$V$22)/100),COLUMN(B41)),"")) ->  | AG57: =IF($AD57="","",IFERROR(SMALL(IF($AD57=$B$2:$V$22,ROW($B$2:$V$22)+COLUMN($B$2:$V$22)/100),COLUMN(C41)),"")) ->  | AH57: =IF($AD57="","",IFERROR(SMALL(IF($AD57=$B$2:$V$22,ROW($B$2:$V$22)+COLUMN($B$2:$V$22)/100),COLUMN(D41)),"")) ->  | AI57: =IF($AD57="","",IFERROR(SMALL(IF($AD57=$B$2:$V$22,ROW($B$2:$V$22)+COLUMN($B$2:$V$22)/100),COLUMN(E41)),"")) ->  | AJ57: =IF($AD57="","",IFERROR(SMALL(IF($AD57=$B$2:$V$22,ROW($B$2:$V$22)+COLUMN($B$2:$V$22)/100),COLUMN(F41)),"")) ->  | AK57: =IF($AD57="","",IFERROR(SMALL(IF($AD57=$B$2:$V$22,ROW($B$2:$V$22)+COLUMN($B$2:$V$22)/100),COLUMN(G41)),"")) -> 
AA58: =IF(COUNTIF(AB$17:AB58,AB58)=1,COUNT(AA$16:AA57)+1) -> FALSE | AE58: =IF($AD58="","",IFERROR(SMALL(IF($AD58=$B$2:$V$22,ROW($B$2:$V$22)+COLUMN($B$2:$V$22)/100),COLUMN(A42)),"")) ->  | AF58: =IF($AD58="","",IFERROR(SMALL(IF($AD58=$B$2:$V$22,ROW($B$2:$V$22)+COLUMN($B$2:$V$22)/100),COLUMN(B42)),"")) ->  | AG58: =IF($AD58="","",IFERROR(SMALL(IF($AD58=$B$2:$V$22,ROW($B$2:$V$22)+COLUMN($B$2:$V$22)/100),COLUMN(C42)),"")) ->  | AH58: =IF($AD58="","",IFERROR(SMALL(IF($AD58=$B$2:$V$22,ROW($B$2:$V$22)+COLUMN($B$2:$V$22)/100),COLUMN(D42)),"")) ->  | AI58: =IF($AD58="","",IFERROR(SMALL(IF($AD58=$B$2:$V$22,ROW($B$2:$V$22)+COLUMN($B$2:$V$22)/100),COLUMN(E42)),"")) ->  | AJ58: =IF($AD58="","",IFERROR(SMALL(IF($AD58=$B$2:$V$22,ROW($B$2:$V$22)+COLUMN($B$2:$V$22)/100),COLUMN(F42)),"")) ->  | AK58: =IF($AD58="","",IFERROR(SMALL(IF($AD58=$B$2:$V$22,ROW($B$2:$V$22)+COLUMN($B$2:$V$22)/100),COLUMN(G42)),"")) -> 
AA59: =IF(COUNTIF(AB$17:AB59,AB59)=1,COUNT(AA$16:AA58)+1) -> FALSE | AE59: =IF($AD59="","",IFERROR(SMALL(IF($AD59=$B$2:$V$22,ROW($B$2:$V$22)+COLUMN($B$2:$V$22)/100),COLUMN(A43)),"")) ->  | AF59: =IF($AD59="","",IFERROR(SMALL(IF($AD59=$B$2:$V$22,ROW($B$2:$V$22)+COLUMN($B$2:$V$22)/100),COLUMN(B43)),"")) ->  | AG59: =IF($AD59="","",IFERROR(SMALL(IF($AD59=$B$2:$V$22,ROW($B$2:$V$22)+COLUMN($B$2:$V$22)/100),COLUMN(C43)),"")) ->  | AH59: =IF($AD59="","",IFERROR(SMALL(IF($AD59=$B$2:$V$22,ROW($B$2:$V$22)+COLUMN($B$2:$V$22)/100),COLUMN(D43)),"")) ->  | AI59: =IF($AD59="","",IFERROR(SMALL(IF($AD59=$B$2:$V$22,ROW($B$2:$V$22)+COLUMN($B$2:$V$22)/100),COLUMN(E43)),"")) ->  | AJ59: =IF($AD59="","",IFERROR(SMALL(IF($AD59=$B$2:$V$22,ROW($B$2:$V$22)+COLUMN($B$2:$V$22)/100),COLUMN(F43)),"")) ->  | AK59: =IF($AD59="","",IFERROR(SMALL(IF($AD59=$B$2:$V$22,ROW($B$2:$V$22)+COLUMN($B$2:$V$22)/100),COLUMN(G43)),"")) -> 
AA60: =IF(COUNTIF(AB$17:AB60,AB60)=1,COUNT(AA$16:AA59)+1) -> FALSE | AE60: =IF($AD60="","",IFERROR(SMALL(IF($AD60=$B$2:$V$22,ROW($B$2:$V$22)+COLUMN($B$2:$V$22)/100),COLUMN(A44)),"")) ->  | AF60: =IF($AD60="","",IFERROR(SMALL(IF($AD60=$B$2:$V$22,ROW($B$2:$V$22)+COLUMN($B$2:$V$22)/100),COLUMN(B44)),"")) ->  | AG60: =IF($AD60="","",IFERROR(SMALL(IF($AD60=$B$2:$V$22,ROW($B$2:$V$22)+COLUMN($B$2:$V$22)/100),COLUMN(C44)),"")) ->  | AH60: =IF($AD60="","",IFERROR(SMALL(IF($AD60=$B$2:$V$22,ROW($B$2:$V$22)+COLUMN($B$2:$V$22)/100),COLUMN(D44)),"")) ->  | AI60: =IF($AD60="","",IFERROR(SMALL(IF($AD60=$B$2:$V$22,ROW($B$2:$V$22)+COLUMN($B$2:$V$22)/100),COLUMN(E44)),"")) ->  | AJ60: =IF($AD60="","",IFERROR(SMALL(IF($AD60=$B$2:$V$22,ROW($B$2:$V$22)+COLUMN($B$2:$V$22)/100),COLUMN(F44)),"")) ->  | AK60: =IF($AD60="","",IFERROR(SMALL(IF($AD60=$B$2:$V$22,ROW($B$2:$V$22)+COLUMN($B$2:$V$22)/100),COLUMN(G44)),"")) -> 
AA61: =IF(COUNTIF(AB$17:AB61,AB61)=1,COUNT(AA$16:AA60)+1) -> FALSE | AE61: =IF($AD61="","",IFERROR(SMALL(IF($AD61=$B$2:$V$22,ROW($B$2:$V$22)+COLUMN($B$2:$V$22)/100),COLUMN(A45)),"")) ->  | AF61: =IF($AD61="","",IFERROR(SMALL(IF($AD61=$B$2:$V$22,ROW($B$2:$V$22)+COLUMN($B$2:$V$22)/100),COLUMN(B45)),"")) ->  | AG61: =IF($AD61="","",IFERROR(SMALL(IF($AD61=$B$2:$V$22,ROW($B$2:$V$22)+COLUMN($B$2:$V$22)/100),COLUMN(C45)),"")) ->  | AH61: =IF($AD61="","",IFERROR(SMALL(IF($AD61=$B$2:$V$22,ROW($B$2:$V$22)+COLUMN($B$2:$V$22)/100),COLUMN(D45)),"")) ->  | AI61: =IF($AD61="","",IFERROR(SMALL(IF($AD61=$B$2:$V$22,ROW($B$2:$V$22)+COLUMN($B$2:$V$22)/100),COLUMN(E45)),"")) ->  | AJ61: =IF($AD61="","",IFERROR(SMALL(IF($AD61=$B$2:$V$22,ROW($B$2:$V$22)+COLUMN($B$2:$V$22)/100),COLUMN(F45)),"")) ->  | AK61: =IF($AD61="","",IFERROR(SMALL(IF($AD61=$B$2:$V$22,ROW($B$2:$V$22)+COLUMN($B$2:$V$22)/100),COLUMN(G45)),"")) -> 
AA62: =IF(COUNTIF(AB$17:AB62,AB62)=1,COUNT(AA$16:AA61)+1) -> FALSE | AE62: =IF($AD62="","",IFERROR(SMALL(IF($AD62=$B$2:$V$22,ROW($B$2:$V$22)+COLUMN($B$2:$V$22)/100),COLUMN(A46)),"")) ->  | AF62: =IF($AD62="","",IFERROR(SMALL(IF($AD62=$B$2:$V$22,ROW($B$2:$V$22)+COLUMN($B$2:$V$22)/100),COLUMN(B46)),"")) ->  | AG62: =IF($AD62="","",IFERROR(SMALL(IF($AD62=$B$2:$V$22,ROW($B$2:$V$22)+COLUMN($B$2:$V$22)/100),COLUMN(C46)),"")) ->  | AH62: =IF($AD62="","",IFERROR(SMALL(IF($AD62=$B$2:$V$22,ROW($B$2:$V$22)+COLUMN($B$2:$V$22)/100),COLUMN(D46)),"")) ->  | AI62: =IF($AD62="","",IFERROR(SMALL(IF($AD62=$B$2:$V$22,ROW($B$2:$V$22)+COLUMN($B$2:$V$22)/100),COLUMN(E46)),"")) ->  | AJ62: =IF($AD62="","",IFERROR(SMALL(IF($AD62=$B$2:$V$22,ROW($B$2:$V$22)+COLUMN($B$2:$V$22)/100),COLUMN(F46)),"")) ->  | AK62: =IF($AD62="","",IFERROR(SMALL(IF($AD62=$B$2:$V$22,ROW($B$2:$V$22)+COLUMN($B$2:$V$22)/100),COLUMN(G46)),"")) -> 
AA63: =IF(COUNTIF(AB$17:AB63,AB63)=1,COUNT(AA$16:AA62)+1) -> FALSE | AE63: =IF($AD63="","",IFERROR(SMALL(IF($AD63=$B$2:$V$22,ROW($B$2:$V$22)+COLUMN($B$2:$V$22)/100),COLUMN(A47)),"")) ->  | AF63: =IF($AD63="","",IFERROR(SMALL(IF($AD63=$B$2:$V$22,ROW($B$2:$V$22)+COLUMN($B$2:$V$22)/100),COLUMN(B47)),"")) ->  | AG63: =IF($AD63="","",IFERROR(SMALL(IF($AD63=$B$2:$V$22,ROW($B$2:$V$22)+COLUMN($B$2:$V$22)/100),COLUMN(C47)),"")) ->  | AH63: =IF($AD63="","",IFERROR(SMALL(IF($AD63=$B$2:$V$22,ROW($B$2:$V$22)+COLUMN($B$2:$V$22)/100),COLUMN(D47)),"")) ->  | AI63: =IF($AD63="","",IFERROR(SMALL(IF($AD63=$B$2:$V$22,ROW($B$2:$V$22)+COLUMN($B$2:$V$22)/100),COLUMN(E47)),"")) ->  | AJ63: =IF($AD63="","",IFERROR(SMALL(IF($AD63=$B$2:$V$22,ROW($B$2:$V$22)+COLUMN($B$2:$V$22)/100),COLUMN(F47)),"")) ->  | AK63: =IF($AD63="","",IFERROR(SMALL(IF($AD63=$B$2:$V$22,ROW($B$2:$V$22)+COLUMN($B$2:$V$22)/100),COLUMN(G47)),"")) -> 
AA64: =IF(COUNTIF(AB$17:AB64,AB64)=1,COUNT(AA$16:AA63)+1) -> FALSE | AE64: =IF($AD64="","",IFERROR(SMALL(IF($AD64=$B$2:$V$22,ROW($B$2:$V$22)+COLUMN($B$2:$V$22)/100),COLUMN(A48)),"")) ->  | AF64: =IF($AD64="","",IFERROR(SMALL(IF($AD64=$B$2:$V$22,ROW($B$2:$V$22)+COLUMN($B$2:$V$22)/100),COLUMN(B48)),"")) ->  | AG64: =IF($AD64="","",IFERROR(SMALL(IF($AD64=$B$2:$V$22,ROW($B$2:$V$22)+COLUMN($B$2:$V$22)/100),COLUMN(C48)),"")) ->  | AH64: =IF($AD64="","",IFERROR(SMALL(IF($AD64=$B$2:$V$22,ROW($B$2:$V$22)+COLUMN($B$2:$V$22)/100),COLUMN(D48)),"")) ->  | AI64: =IF($AD64="","",IFERROR(SMALL(IF($AD64=$B$2:$V$22,ROW($B$2:$V$22)+COLUMN($B$2:$V$22)/100),COLUMN(E48)),"")) ->  | AJ64: =IF($AD64="","",IFERROR(SMALL(IF($AD64=$B$2:$V$22,ROW($B$2:$V$22)+COLUMN($B$2:$V$22)/100),COLUMN(F48)),"")) ->  | AK64: =IF($AD64="","",IFERROR(SMALL(IF($AD64=$B$2:$V$22,ROW($B$2:$V$22)+COLUMN($B$2:$V$22)/100),COLUMN(G48)),"")) -> 
AA65: =IF(COUNTIF(AB$17:AB65,AB65)=1,COUNT(AA$16:AA64)+1) -> FALSE | AE65: =IF($AD65="","",IFERROR(SMALL(IF($AD65=$B$2:$V$22,ROW($B$2:$V$22)+COLUMN($B$2:$V$22)/100),COLUMN(A49)),"")) ->  | AF65: =IF($AD65="","",IFERROR(SMALL(IF($AD65=$B$2:$V$22,ROW($B$2:$V$22)+COLUMN($B$2:$V$22)/100),COLUMN(B49)),"")) ->  | AG65: =IF($AD65="","",IFERROR(SMALL(IF($AD65=$B$2:$V$22,ROW($B$2:$V$22)+COLUMN($B$2:$V$22)/100),COLUMN(C49)),"")) ->  | AH65: =IF($AD65="","",IFERROR(SMALL(IF($AD65=$B$2:$V$22,ROW($B$2:$V$22)+COLUMN($B$2:$V$22)/100),COLUMN(D49)),"")) ->  | AI65: =IF($AD65="","",IFERROR(SMALL(IF($AD65=$B$2:$V$22,ROW($B$2:$V$22)+COLUMN($B$2:$V$22)/100),COLUMN(E49)),"")) ->  | AJ65: =IF($AD65="","",IFERROR(SMALL(IF($AD65=$B$2:$V$22,ROW($B$2:$V$22)+COLUMN($B$2:$V$22)/100),COLUMN(F49)),"")) ->  | AK65: =IF($AD65="","",IFERROR(SMALL(IF($AD65=$B$2:$V$22,ROW($B$2:$V$22)+COLUMN($B$2:$V$22)/100),COLUMN(G49)),"")) -> 
AA66: =IF(COUNTIF(AB$17:AB66,AB66)=1,COUNT(AA$16:AA65)+1) -> FALSE | AE66: =IF($AD66="","",IFERROR(SMALL(IF($AD66=$B$2:$V$22,ROW($B$2:$V$22)+COLUMN($B$2:$V$22)/100),COLUMN(A50)),"")) ->  | AF66: =IF($AD66="","",IFERROR(SMALL(IF($AD66=$B$2:$V$22,ROW($B$2:$V$22)+COLUMN($B$2:$V$22)/100),COLUMN(B50)),"")) ->  | AG66: =IF($AD66="","",IFERROR(SMALL(IF($AD66=$B$2:$V$22,ROW($B$2:$V$22)+COLUMN($B$2:$V$22)/100),COLUMN(C50)),"")) ->  | AH66: =IF($AD66="","",IFERROR(SMALL(IF($AD66=$B$2:$V$22,ROW($B$2:$V$22)+COLUMN($B$2:$V$22)/100),COLUMN(D50)),"")) ->  | AI66: =IF($AD66="","",IFERROR(SMALL(IF($AD66=$B$2:$V$22,ROW($B$2:$V$22)+COLUMN($B$2:$V$22)/100),COLUMN(E50)),"")) ->  | AJ66: =IF($AD66="","",IFERROR(SMALL(IF($AD66=$B$2:$V$22,ROW($B$2:$V$22)+COLUMN($B$2:$V$22)/100),COLUMN(F50)),"")) ->  | AK66: =IF($AD66="","",IFERROR(SMALL(IF($AD66=$B$2:$V$22,ROW($B$2:$V$22)+COLUMN($B$2:$V$22)/100),COLUMN(G50)),"")) -> 
AA67: =IF(COUNTIF(AB$17:AB67,AB67)=1,COUNT(AA$16:AA66)+1) -> FALSE | AE67: =IF($AD67="","",IFERROR(SMALL(IF($AD67=$B$2:$V$22,ROW($B$2:$V$22)+COLUMN($B$2:$V$22)/100),COLUMN(A51)),"")) ->  | AF67: =IF($AD67="","",IFERROR(SMALL(IF($AD67=$B$2:$V$22,ROW($B$2:$V$22)+COLUMN($B$2:$V$22)/100),COLUMN(B51)),"")) ->  | AG67: =IF($AD67="","",IFERROR(SMALL(IF($AD67=$B$2:$V$22,ROW($B$2:$V$22)+COLUMN($B$2:$V$22)/100),COLUMN(C51)),"")) ->  | AH67: =IF($AD67="","",IFERROR(SMALL(IF($AD67=$B$2:$V$22,ROW($B$2:$V$22)+COLUMN($B$2:$V$22)/100),COLUMN(D51)),"")) ->  | AI67: =IF($AD67="","",IFERROR(SMALL(IF($AD67=$B$2:$V$22,ROW($B$2:$V$22)+COLUMN($B$2:$V$22)/100),COLUMN(E51)),"")) ->  | AJ67: =IF($AD67="","",IFERROR(SMALL(IF($AD67=$B$2:$V$22,ROW($B$2:$V$22)+COLUMN($B$2:$V$22)/100),COLUMN(F51)),"")) ->  | AK67: =IF($AD67="","",IFERROR(SMALL(IF($AD67=$B$2:$V$22,ROW($B$2:$V$22)+COLUMN($B$2:$V$22)/100),COLUMN(G51)),"")) -> 
AA68: =IF(COUNTIF(AB$17:AB68,AB68)=1,COUNT(AA$16:AA67)+1) -> FALSE | AE68: =IF($AD68="","",IFERROR(SMALL(IF($AD68=$B$2:$V$22,ROW($B$2:$V$22)+COLUMN($B$2:$V$22)/100),COLUMN(A52)),"")) ->  | AF68: =IF($AD68="","",IFERROR(SMALL(IF($AD68=$B$2:$V$22,ROW($B$2:$V$22)+COLUMN($B$2:$V$22)/100),COLUMN(B52)),"")) ->  | AG68: =IF($AD68="","",IFERROR(SMALL(IF($AD68=$B$2:$V$22,ROW($B$2:$V$22)+COLUMN($B$2:$V$22)/100),COLUMN(C52)),"")) ->  | AH68: =IF($AD68="","",IFERROR(SMALL(IF($AD68=$B$2:$V$22,ROW($B$2:$V$22)+COLUMN($B$2:$V$22)/100),COLUMN(D52)),"")) ->  | AI68: =IF($AD68="","",IFERROR(SMALL(IF($AD68=$B$2:$V$22,ROW($B$2:$V$22)+COLUMN($B$2:$V$22)/100),COLUMN(E52)),"")) ->  | AJ68: =IF($AD68="","",IFERROR(SMALL(IF($AD68=$B$2:$V$22,ROW($B$2:$V$22)+COLUMN($B$2:$V$22)/100),COLUMN(F52)),"")) ->  | AK68: =IF($AD68="","",IFERROR(SMALL(IF($AD68=$B$2:$V$22,ROW($B$2:$V$22)+COLUMN($B$2:$V$22)/100),COLUMN(G52)),"")) -> 
AA69: =IF(COUNTIF(AB$17:AB69,AB69)=1,COUNT(AA$16:AA68)+1) -> FALSE | AE69: =IF($AD69="","",IFERROR(SMALL(IF($AD69=$B$2:$V$22,ROW($B$2:$V$22)+COLUMN($B$2:$V$22)/100),COLUMN(A53)),"")) ->  | AF69: =IF($AD69="","",IFERROR(SMALL(IF($AD69=$B$2:$V$22,ROW($B$2:$V$22)+COLUMN($B$2:$V$22)/100),COLUMN(B53)),"")) ->  | AG69: =IF($AD69="","",IFERROR(SMALL(IF($AD69=$B$2:$V$22,ROW($B$2:$V$22)+COLUMN($B$2:$V$22)/100),COLUMN(C53)),"")) ->  | AH69: =IF($AD69="","",IFERROR(SMALL(IF($AD69=$B$2:$V$22,ROW($B$2:$V$22)+COLUMN($B$2:$V$22)/100),COLUMN(D53)),"")) ->  | AI69: =IF($AD69="","",IFERROR(SMALL(IF($AD69=$B$2:$V$22,ROW($B$2:$V$22)+COLUMN($B$2:$V$22)/100),COLUMN(E53)),"")) ->  | AJ69: =IF($AD69="","",IFERROR(SMALL(IF($AD69=$B$2:$V$22,ROW($B$2:$V$22)+COLUMN($B$2:$V$22)/100),COLUMN(F53)),"")) ->  | AK69: =IF($AD69="","",IFERROR(SMALL(IF($AD69=$B$2:$V$22,ROW($B$2:$V$22)+COLUMN($B$2:$V$22)/100),COLUMN(G53)),"")) -> 
AA70: =IF(COUNTIF(AB$17:AB70,AB70)=1,COUNT(AA$16:AA69)+1) -> FALSE | AE70: =IF($AD70="","",IFERROR(SMALL(IF($AD70=$B$2:$V$22,ROW($B$2:$V$22)+COLUMN($B$2:$V$22)/100),COLUMN(A54)),"")) ->  | AF70: =IF($AD70="","",IFERROR(SMALL(IF($AD70=$B$2:$V$22,ROW($B$2:$V$22)+COLUMN($B$2:$V$22)/100),COLUMN(B54)),"")) ->  | AG70: =IF($AD70="","",IFERROR(SMALL(IF($AD70=$B$2:$V$22,ROW($B$2:$V$22)+COLUMN($B$2:$V$22)/100),COLUMN(C54)),"")) ->  | AH70: =IF($AD70="","",IFERROR(SMALL(IF($AD70=$B$2:$V$22,ROW($B$2:$V$22)+COLUMN($B$2:$V$22)/100),COLUMN(D54)),"")) ->  | AI70: =IF($AD70="","",IFERROR(SMALL(IF($AD70=$B$2:$V$22,ROW($B$2:$V$22)+COLUMN($B$2:$V$22)/100),COLUMN(E54)),"")) ->  | AJ70: =IF($AD70="","",IFERROR(SMALL(IF($AD70=$B$2:$V$22,ROW($B$2:$V$22)+COLUMN($B$2:$V$22)/100),COLUMN(F54)),"")) ->  | AK70: =IF($AD70="","",IFERROR(SMALL(IF($AD70=$B$2:$V$22,ROW($B$2:$V$22)+COLUMN($B$2:$V$22)/100),COLUMN(G54)),"")) -> 
AA71: =IF(COUNTIF(AB$17:AB71,AB71)=1,COUNT(AA$16:AA70)+1) -> FALSE | AE71: =IF($AD71="","",IFERROR(SMALL(IF($AD71=$B$2:$V$22,ROW($B$2:$V$22)+COLUMN($B$2:$V$22)/100),COLUMN(A55)),"")) ->  | AF71: =IF($AD71="","",IFERROR(SMALL(IF($AD71=$B$2:$V$22,ROW($B$2:$V$22)+COLUMN($B$2:$V$22)/100),COLUMN(B55)),"")) ->  | AG71: =IF($AD71="","",IFERROR(SMALL(IF($AD71=$B$2:$V$22,ROW($B$2:$V$22)+COLUMN($B$2:$V$22)/100),COLUMN(C55)),"")) ->  | AH71: =IF($AD71="","",IFERROR(SMALL(IF($AD71=$B$2:$V$22,ROW($B$2:$V$22)+COLUMN($B$2:$V$22)/100),COLUMN(D55)),"")) ->  | AI71: =IF($AD71="","",IFERROR(SMALL(IF($AD71=$B$2:$V$22,ROW($B$2:$V$22)+COLUMN($B$2:$V$22)/100),COLUMN(E55)),"")) ->  | AJ71: =IF($AD71="","",IFERROR(SMALL(IF($AD71=$B$2:$V$22,ROW($B$2:$V$22)+COLUMN($B$2:$V$22)/100),COLUMN(F55)),"")) ->  | AK71: =IF($AD71="","",IFERROR(SMALL(IF($AD71=$B$2:$V$22,ROW($B$2:$V$22)+COLUMN($B$2:$V$22)/100),COLUMN(G55)),"")) -> 
AA72: =IF(COUNTIF(AB$17:AB72,AB72)=1,COUNT(AA$16:AA71)+1) -> FALSE | AE72: =IF($AD72="","",IFERROR(SMALL(IF($AD72=$B$2:$V$22,ROW($B$2:$V$22)+COLUMN($B$2:$V$22)/100),COLUMN(A56)),"")) ->  | AF72: =IF($AD72="","",IFERROR(SMALL(IF($AD72=$B$2:$V$22,ROW($B$2:$V$22)+COLUMN($B$2:$V$22)/100),COLUMN(B56)),"")) ->  | AG72: =IF($AD72="","",IFERROR(SMALL(IF($AD72=$B$2:$V$22,ROW($B$2:$V$22)+COLUMN($B$2:$V$22)/100),COLUMN(C56)),"")) ->  | AH72: =IF($AD72="","",IFERROR(SMALL(IF($AD72=$B$2:$V$22,ROW($B$2:$V$22)+COLUMN($B$2:$V$22)/100),COLUMN(D56)),"")) ->  | AI72: =IF($AD72="","",IFERROR(SMALL(IF($AD72=$B$2:$V$22,ROW($B$2:$V$22)+COLUMN($B$2:$V$22)/100),COLUMN(E56)),"")) ->  | AJ72: =IF($AD72="","",IFERROR(SMALL(IF($AD72=$B$2:$V$22,ROW($B$2:$V$22)+COLUMN($B$2:$V$22)/100),COLUMN(F56)),"")) ->  | AK72: =IF($AD72="","",IFERROR(SMALL(IF($AD72=$B$2:$V$22,ROW($B$2:$V$22)+COLUMN($B$2:$V$22)/100),COLUMN(G56)),"")) -> 
AA73: =IF(COUNTIF(AB$17:AB73,AB73)=1,COUNT(AA$16:AA72)+1) -> FALSE | AE73: =IF($AD73="","",IFERROR(SMALL(IF($AD73=$B$2:$V$22,ROW($B$2:$V$22)+COLUMN($B$2:$V$22)/100),COLUMN(A57)),"")) ->  | AF73: =IF($AD73="","",IFERROR(SMALL(IF($AD73=$B$2:$V$22,ROW($B$2:$V$22)+COLUMN($B$2:$V$22)/100),COLUMN(B57)),"")) ->  | AG73: =IF($AD73="","",IFERROR(SMALL(IF($AD73=$B$2:$V$22,ROW($B$2:$V$22)+COLUMN($B$2:$V$22)/100),COLUMN(C57)),"")) ->  | AH73: =IF($AD73="","",IFERROR(SMALL(IF($AD73=$B$2:$V$22,ROW($B$2:$V$22)+COLUMN($B$2:$V$22)/100),COLUMN(D57)),"")) ->  | AI73: =IF($AD73="","",IFERROR(SMALL(IF($AD73=$B$2:$V$22,ROW($B$2:$V$22)+COLUMN($B$2:$V$22)/100),COLUMN(E57)),"")) ->  | AJ73: =IF($AD73="","",IFERROR(SMALL(IF($AD73=$B$2:$V$22,ROW($B$2:$V$22)+COLUMN($B$2:$V$22)/100),COLUMN(F57)),"")) ->  | AK73: =IF($AD73="","",IFERROR(SMALL(IF($AD73=$B$2:$V$22,ROW($B$2:$V$22)+COLUMN($B$2:$V$22)/100),COLUMN(G57)),"")) -> 
AA74: =IF(COUNTIF(AB$17:AB74,AB74)=1,COUNT(AA$16:AA73)+1) -> FALSE | AE74: =IF($AD74="","",IFERROR(SMALL(IF($AD74=$B$2:$V$22,ROW($B$2:$V$22)+COLUMN($B$2:$V$22)/100),COLUMN(A58)),"")) ->  | AF74: =IF($AD74="","",IFERROR(SMALL(IF($AD74=$B$2:$V$22,ROW($B$2:$V$22)+COLUMN($B$2:$V$22)/100),COLUMN(B58)),"")) ->  | AG74: =IF($AD74="","",IFERROR(SMALL(IF($AD74=$B$2:$V$22,ROW($B$2:$V$22)+COLUMN($B$2:$V$22)/100),COLUMN(C58)),"")) ->  | AH74: =IF($AD74="","",IFERROR(SMALL(IF($AD74=$B$2:$V$22,ROW($B$2:$V$22)+COLUMN($B$2:$V$22)/100),COLUMN(D58)),"")) ->  | AI74: =IF($AD74="","",IFERROR(SMALL(IF($AD74=$B$2:$V$22,ROW($B$2:$V$22)+COLUMN($B$2:$V$22)/100),COLUMN(E58)),"")) ->  | AJ74: =IF($AD74="","",IFERROR(SMALL(IF($AD74=$B$2:$V$22,ROW($B$2:$V$22)+COLUMN($B$2:$V$22)/100),COLUMN(F58)),"")) ->  | AK74: =IF($AD74="","",IFERROR(SMALL(IF($AD74=$B$2:$V$22,ROW($B$2:$V$22)+COLUMN($B$2:$V$22)/100),COLUMN(G58)),"")) -> 
AA75: =IF(COUNTIF(AB$17:AB75,AB75)=1,COUNT(AA$16:AA74)+1) -> FALSE | AE75: =IF($AD75="","",IFERROR(SMALL(IF($AD75=$B$2:$V$22,ROW($B$2:$V$22)+COLUMN($B$2:$V$22)/100),COLUMN(A59)),"")) ->  | AF75: =IF($AD75="","",IFERROR(SMALL(IF($AD75=$B$2:$V$22,ROW($B$2:$V$22)+COLUMN($B$2:$V$22)/100),COLUMN(B59)),"")) ->  | AG75: =IF($AD75="","",IFERROR(SMALL(IF($AD75=$B$2:$V$22,ROW($B$2:$V$22)+COLUMN($B$2:$V$22)/100),COLUMN(C59)),"")) ->  | AH75: =IF($AD75="","",IFERROR(SMALL(IF($AD75=$B$2:$V$22,ROW($B$2:$V$22)+COLUMN($B$2:$V$22)/100),COLUMN(D59)),"")) ->  | AI75: =IF($AD75="","",IFERROR(SMALL(IF($AD75=$B$2:$V$22,ROW($B$2:$V$22)+COLUMN($B$2:$V$22)/100),COLUMN(E59)),"")) ->  | AJ75: =IF($AD75="","",IFERROR(SMALL(IF($AD75=$B$2:$V$22,ROW($B$2:$V$22)+COLUMN($B$2:$V$22)/100),COLUMN(F59)),"")) ->  | AK75: =IF($AD75="","",IFERROR(SMALL(IF($AD75=$B$2:$V$22,ROW($B$2:$V$22)+COLUMN($B$2:$V$22)/100),COLUMN(G59)),"")) -> 
AA76: =IF(COUNTIF(AB$17:AB76,AB76)=1,COUNT(AA$16:AA75)+1) -> FALSE | AE76: =IF($AD76="","",IFERROR(SMALL(IF($AD76=$B$2:$V$22,ROW($B$2:$V$22)+COLUMN($B$2:$V$22)/100),COLUMN(A60)),"")) ->  | AF76: =IF($AD76="","",IFERROR(SMALL(IF($AD76=$B$2:$V$22,ROW($B$2:$V$22)+COLUMN($B$2:$V$22)/100),COLUMN(B60)),"")) ->  | AG76: =IF($AD76="","",IFERROR(SMALL(IF($AD76=$B$2:$V$22,ROW($B$2:$V$22)+COLUMN($B$2:$V$22)/100),COLUMN(C60)),"")) ->  | AH76: =IF($AD76="","",IFERROR(SMALL(IF($AD76=$B$2:$V$22,ROW($B$2:$V$22)+COLUMN($B$2:$V$22)/100),COLUMN(D60)),"")) ->  | AI76: =IF($AD76="","",IFERROR(SMALL(IF($AD76=$B$2:$V$22,ROW($B$2:$V$22)+COLUMN($B$2:$V$22)/100),COLUMN(E60)),"")) ->  | AJ76: =IF($AD76="","",IFERROR(SMALL(IF($AD76=$B$2:$V$22,ROW($B$2:$V$22)+COLUMN($B$2:$V$22)/100),COLUMN(F60)),"")) ->  | AK76: =IF($AD76="","",IFERROR(SMALL(IF($AD76=$B$2:$V$22,ROW($B$2:$V$22)+COLUMN($B$2:$V$22)/100),COLUMN(G60)),"")) -> 
AA77: =IF(COUNTIF(AB$17:AB77,AB77)=1,COUNT(AA$16:AA76)+1) -> FALSE | AE77: =IF($AD77="","",IFERROR(SMALL(IF($AD77=$B$2:$V$22,ROW($B$2:$V$22)+COLUMN($B$2:$V$22)/100),COLUMN(A61)),"")) ->  | AF77: =IF($AD77="","",IFERROR(SMALL(IF($AD77=$B$2:$V$22,ROW($B$2:$V$22)+COLUMN($B$2:$V$22)/100),COLUMN(B61)),"")) ->  | AG77: =IF($AD77="","",IFERROR(SMALL(IF($AD77=$B$2:$V$22,ROW($B$2:$V$22)+COLUMN($B$2:$V$22)/100),COLUMN(C61)),"")) ->  | AH77: =IF($AD77="","",IFERROR(SMALL(IF($AD77=$B$2:$V$22,ROW($B$2:$V$22)+COLUMN($B$2:$V$22)/100),COLUMN(D61)),"")) ->  | AI77: =IF($AD77="","",IFERROR(SMALL(IF($AD77=$B$2:$V$22,ROW($B$2:$V$22)+COLUMN($B$2:$V$22)/100),COLUMN(E61)),"")) ->  | AJ77: =IF($AD77="","",IFERROR(SMALL(IF($AD77=$B$2:$V$22,ROW($B$2:$V$22)+COLUMN($B$2:$V$22)/100),COLUMN(F61)),"")) ->  | AK77: =IF($AD77="","",IFERROR(SMALL(IF($AD77=$B$2:$V$22,ROW($B$2:$V$22)+COLUMN($B$2:$V$22)/100),COLUMN(G61)),"")) -> 
AA78: =IF(COUNTIF(AB$17:AB78,AB78)=1,COUNT(AA$16:AA77)+1) -> FALSE | AE78: =IF($AD78="","",IFERROR(SMALL(IF($AD78=$B$2:$V$22,ROW($B$2:$V$22)+COLUMN($B$2:$V$22)/100),COLUMN(A62)),"")) ->  | AF78: =IF($AD78="","",IFERROR(SMALL(IF($AD78=$B$2:$V$22,ROW($B$2:$V$22)+COLUMN($B$2:$V$22)/100),COLUMN(B62)),"")) ->  | AG78: =IF($AD78="","",IFERROR(SMALL(IF($AD78=$B$2:$V$22,ROW($B$2:$V$22)+COLUMN($B$2:$V$22)/100),COLUMN(C62)),"")) ->  | AH78: =IF($AD78="","",IFERROR(SMALL(IF($AD78=$B$2:$V$22,ROW($B$2:$V$22)+COLUMN($B$2:$V$22)/100),COLUMN(D62)),"")) ->  | AI78: =IF($AD78="","",IFERROR(SMALL(IF($AD78=$B$2:$V$22,ROW($B$2:$V$22)+COLUMN($B$2:$V$22)/100),COLUMN(E62)),"")) ->  | AJ78: =IF($AD78="","",IFERROR(SMALL(IF($AD78=$B$2:$V$22,ROW($B$2:$V$22)+COLUMN($B$2:$V$22)/100),COLUMN(F62)),"")) ->  | AK78: =IF($AD78="","",IFERROR(SMALL(IF($AD78=$B$2:$V$22,ROW($B$2:$V$22)+COLUMN($B$2:$V$22)/100),COLUMN(G62)),"")) -> 
AA79: =IF(COUNTIF(AB$17:AB79,AB79)=1,COUNT(AA$16:AA78)+1) -> FALSE | AE79: =IF($AD79="","",IFERROR(SMALL(IF($AD79=$B$2:$V$22,ROW($B$2:$V$22)+COLUMN($B$2:$V$22)/100),COLUMN(A63)),"")) ->  | AF79: =IF($AD79="","",IFERROR(SMALL(IF($AD79=$B$2:$V$22,ROW($B$2:$V$22)+COLUMN($B$2:$V$22)/100),COLUMN(B63)),"")) ->  | AG79: =IF($AD79="","",IFERROR(SMALL(IF($AD79=$B$2:$V$22,ROW($B$2:$V$22)+COLUMN($B$2:$V$22)/100),COLUMN(C63)),"")) ->  | AH79: =IF($AD79="","",IFERROR(SMALL(IF($AD79=$B$2:$V$22,ROW($B$2:$V$22)+COLUMN($B$2:$V$22)/100),COLUMN(D63)),"")) ->  | AI79: =IF($AD79="","",IFERROR(SMALL(IF($AD79=$B$2:$V$22,ROW($B$2:$V$22)+COLUMN($B$2:$V$22)/100),COLUMN(E63)),"")) ->  | AJ79: =IF($AD79="","",IFERROR(SMALL(IF($AD79=$B$2:$V$22,ROW($B$2:$V$22)+COLUMN($B$2:$V$22)/100),COLUMN(F63)),"")) ->  | AK79: =IF($AD79="","",IFERROR(SMALL(IF($AD79=$B$2:$V$22,ROW($B$2:$V$22)+COLUMN($B$2:$V$22)/100),COLUMN(G63)),"")) -> 
AA80: =IF(COUNTIF(AB$17:AB80,AB80)=1,COUNT(AA$16:AA79)+1) -> FALSE | AE80: =IF($AD80="","",IFERROR(SMALL(IF($AD80=$B$2:$V$22,ROW($B$2:$V$22)+COLUMN($B$2:$V$22)/100),COLUMN(A64)),"")) ->  | AF80: =IF($AD80="","",IFERROR(SMALL(IF($AD80=$B$2:$V$22,ROW($B$2:$V$22)+COLUMN($B$2:$V$22)/100),COLUMN(B64)),"")) ->  | AG80: =IF($AD80="","",IFERROR(SMALL(IF($AD80=$B$2:$V$22,ROW($B$2:$V$22)+COLUMN($B$2:$V$22)/100),COLUMN(C64)),"")) ->  | AH80: =IF($AD80="","",IFERROR(SMALL(IF($AD80=$B$2:$V$22,ROW($B$2:$V$22)+COLUMN($B$2:$V$22)/100),COLUMN(D64)),"")) ->  | AI80: =IF($AD80="","",IFERROR(SMALL(IF($AD80=$B$2:$V$22,ROW($B$2:$V$22)+COLUMN($B$2:$V$22)/100),COLUMN(E64)),"")) ->  | AJ80: =IF($AD80="","",IFERROR(SMALL(IF($AD80=$B$2:$V$22,ROW($B$2:$V$22)+COLUMN($B$2:$V$22)/100),COLUMN(F64)),"")) ->  | AK80: =IF($AD80="","",IFERROR(SMALL(IF($AD80=$B$2:$V$22,ROW($B$2:$V$22)+COLUMN($B$2:$V$22)/100),COLUMN(G64)),"")) -> 
AA81: =IF(COUNTIF(AB$17:AB81,AB81)=1,COUNT(AA$16:AA80)+1) -> FALSE | AE81: =IF($AD81="","",IFERROR(SMALL(IF($AD81=$B$2:$V$22,ROW($B$2:$V$22)+COLUMN($B$2:$V$22)/100),COLUMN(A65)),"")) ->  | AF81: =IF($AD81="","",IFERROR(SMALL(IF($AD81=$B$2:$V$22,ROW($B$2:$V$22)+COLUMN($B$2:$V$22)/100),COLUMN(B65)),"")) ->  | AG81: =IF($AD81="","",IFERROR(SMALL(IF($AD81=$B$2:$V$22,ROW($B$2:$V$22)+COLUMN($B$2:$V$22)/100),COLUMN(C65)),"")) ->  | AH81: =IF($AD81="","",IFERROR(SMALL(IF($AD81=$B$2:$V$22,ROW($B$2:$V$22)+COLUMN($B$2:$V$22)/100),COLUMN(D65)),"")) ->  | AI81: =IF($AD81="","",IFERROR(SMALL(IF($AD81=$B$2:$V$22,ROW($B$2:$V$22)+COLUMN($B$2:$V$22)/100),COLUMN(E65)),"")) ->  | AJ81: =IF($AD81="","",IFERROR(SMALL(IF($AD81=$B$2:$V$22,ROW($B$2:$V$22)+COLUMN($B$2:$V$22)/100),COLUMN(F65)),"")) ->  | AK81: =IF($AD81="","",IFERROR(SMALL(IF($AD81=$B$2:$V$22,ROW($B$2:$V$22)+COLUMN($B$2:$V$22)/100),COLUMN(G65)),"")) -> 
AA82: =IF(COUNTIF(AB$17:AB82,AB82)=1,COUNT(AA$16:AA81)+1) -> FALSE | AB82: =IFERROR(SMALL($B$24:$U$43,COUNTIF($B$24:$U$43,0)+ROW(AB66)),"") ->  | AC82: =IFERROR(VLOOKUP(ROW(AC66),AA$17:AB$216,2,0),"") ->  | AD82: =IFERROR(AC82*$AA$3,"") ->  | AE82: =IF($AD82="","",IFERROR(SMALL(IF($AD82=$B$2:$V$22,ROW($B$2:$V$22)+COLUMN($B$2:$V$22)/100),COLUMN(A66)),"")) ->  | AF82: =IF($AD82="","",IFERROR(SMALL(IF($AD82=$B$2:$V$22,ROW($B$2:$V$22)+COLUMN($B$2:$V$22)/100),COLUMN(B66)),"")) ->  | AG82: =IF($AD82="","",IFERROR(SMALL(IF($AD82=$B$2:$V$22,ROW($B$2:$V$22)+COLUMN($B$2:$V$22)/100),COLUMN(C66)),"")) ->  | AH82: =IF($AD82="","",IFERROR(SMALL(IF($AD82=$B$2:$V$22,ROW($B$2:$V$22)+COLUMN($B$2:$V$22)/100),COLUMN(D66)),"")) ->  | AI82: =IF($AD82="","",IFERROR(SMALL(IF($AD82=$B$2:$V$22,ROW($B$2:$V$22)+COLUMN($B$2:$V$22)/100),COLUMN(E66)),"")) ->  | AJ82: =IF($AD82="","",IFERROR(SMALL(IF($AD82=$B$2:$V$22,ROW($B$2:$V$22)+COLUMN($B$2:$V$22)/100),COLUMN(F66)),"")) ->  | AK82: =IF($AD82="","",IFERROR(SMALL(IF($AD82=$B$2:$V$22,ROW($B$2:$V$22)+COLUMN($B$2:$V$22)/100),COLUMN(G66)),"")) -> 
AA83: =IF(COUNTIF(AB$17:AB83,AB83)=1,COUNT(AA$16:AA82)+1) -> FALSE | AE83: =IF($AD83="","",IFERROR(SMALL(IF($AD83=$B$2:$V$22,ROW($B$2:$V$22)+COLUMN($B$2:$V$22)/100),COLUMN(A67)),"")) ->  | AF83: =IF($AD83="","",IFERROR(SMALL(IF($AD83=$B$2:$V$22,ROW($B$2:$V$22)+COLUMN($B$2:$V$22)/100),COLUMN(B67)),"")) ->  | AG83: =IF($AD83="","",IFERROR(SMALL(IF($AD83=$B$2:$V$22,ROW($B$2:$V$22)+COLUMN($B$2:$V$22)/100),COLUMN(C67)),"")) ->  | AH83: =IF($AD83="","",IFERROR(SMALL(IF($AD83=$B$2:$V$22,ROW($B$2:$V$22)+COLUMN($B$2:$V$22)/100),COLUMN(D67)),"")) ->  | AI83: =IF($AD83="","",IFERROR(SMALL(IF($AD83=$B$2:$V$22,ROW($B$2:$V$22)+COLUMN($B$2:$V$22)/100),COLUMN(E67)),"")) ->  | AJ83: =IF($AD83="","",IFERROR(SMALL(IF($AD83=$B$2:$V$22,ROW($B$2:$V$22)+COLUMN($B$2:$V$22)/100),COLUMN(F67)),"")) ->  | AK83: =IF($AD83="","",IFERROR(SMALL(IF($AD83=$B$2:$V$22,ROW($B$2:$V$22)+COLUMN($B$2:$V$22)/100),COLUMN(G67)),"")) -> 
AA84: =IF(COUNTIF(AB$17:AB84,AB84)=1,COUNT(AA$16:AA83)+1) -> FALSE | AE84: =IF($AD84="","",IFERROR(SMALL(IF($AD84=$B$2:$V$22,ROW($B$2:$V$22)+COLUMN($B$2:$V$22)/100),COLUMN(A68)),"")) ->  | AF84: =IF($AD84="","",IFERROR(SMALL(IF($AD84=$B$2:$V$22,ROW($B$2:$V$22)+COLUMN($B$2:$V$22)/100),COLUMN(B68)),"")) ->  | AG84: =IF($AD84="","",IFERROR(SMALL(IF($AD84=$B$2:$V$22,ROW($B$2:$V$22)+COLUMN($B$2:$V$22)/100),COLUMN(C68)),"")) ->  | AH84: =IF($AD84="","",IFERROR(SMALL(IF($AD84=$B$2:$V$22,ROW($B$2:$V$22)+COLUMN($B$2:$V$22)/100),COLUMN(D68)),"")) ->  | AI84: =IF($AD84="","",IFERROR(SMALL(IF($AD84=$B$2:$V$22,ROW($B$2:$V$22)+COLUMN($B$2:$V$22)/100),COLUMN(E68)),"")) ->  | AJ84: =IF($AD84="","",IFERROR(SMALL(IF($AD84=$B$2:$V$22,ROW($B$2:$V$22)+COLUMN($B$2:$V$22)/100),COLUMN(F68)),"")) ->  | AK84: =IF($AD84="","",IFERROR(SMALL(IF($AD84=$B$2:$V$22,ROW($B$2:$V$22)+COLUMN($B$2:$V$22)/100),COLUMN(G68)),"")) -> 
AA85: =IF(COUNTIF(AB$17:AB85,AB85)=1,COUNT(AA$16:AA84)+1) -> FALSE | AE85: =IF($AD85="","",IFERROR(SMALL(IF($AD85=$B$2:$V$22,ROW($B$2:$V$22)+COLUMN($B$2:$V$22)/100),COLUMN(A69)),"")) ->  | AF85: =IF($AD85="","",IFERROR(SMALL(IF($AD85=$B$2:$V$22,ROW($B$2:$V$22)+COLUMN($B$2:$V$22)/100),COLUMN(B69)),"")) ->  | AG85: =IF($AD85="","",IFERROR(SMALL(IF($AD85=$B$2:$V$22,ROW($B$2:$V$22)+COLUMN($B$2:$V$22)/100),COLUMN(C69)),"")) ->  | AH85: =IF($AD85="","",IFERROR(SMALL(IF($AD85=$B$2:$V$22,ROW($B$2:$V$22)+COLUMN($B$2:$V$22)/100),COLUMN(D69)),"")) ->  | AI85: =IF($AD85="","",IFERROR(SMALL(IF($AD85=$B$2:$V$22,ROW($B$2:$V$22)+COLUMN($B$2:$V$22)/100),COLUMN(E69)),"")) ->  | AJ85: =IF($AD85="","",IFERROR(SMALL(IF($AD85=$B$2:$V$22,ROW($B$2:$V$22)+COLUMN($B$2:$V$22)/100),COLUMN(F69)),"")) ->  | AK85: =IF($AD85="","",IFERROR(SMALL(IF($AD85=$B$2:$V$22,ROW($B$2:$V$22)+COLUMN($B$2:$V$22)/100),COLUMN(G69)),"")) -> 
AA86: =IF(COUNTIF(AB$17:AB86,AB86)=1,COUNT(AA$16:AA85)+1) -> FALSE | AE86: =IF($AD86="","",IFERROR(SMALL(IF($AD86=$B$2:$V$22,ROW($B$2:$V$22)+COLUMN($B$2:$V$22)/100),COLUMN(A70)),"")) ->  | AF86: =IF($AD86="","",IFERROR(SMALL(IF($AD86=$B$2:$V$22,ROW($B$2:$V$22)+COLUMN($B$2:$V$22)/100),COLUMN(B70)),"")) ->  | AG86: =IF($AD86="","",IFERROR(SMALL(IF($AD86=$B$2:$V$22,ROW($B$2:$V$22)+COLUMN($B$2:$V$22)/100),COLUMN(C70)),"")) ->  | AH86: =IF($AD86="","",IFERROR(SMALL(IF($AD86=$B$2:$V$22,ROW($B$2:$V$22)+COLUMN($B$2:$V$22)/100),COLUMN(D70)),"")) ->  | AI86: =IF($AD86="","",IFERROR(SMALL(IF($AD86=$B$2:$V$22,ROW($B$2:$V$22)+COLUMN($B$2:$V$22)/100),COLUMN(E70)),"")) ->  | AJ86: =IF($AD86="","",IFERROR(SMALL(IF($AD86=$B$2:$V$22,ROW($B$2:$V$22)+COLUMN($B$2:$V$22)/100),COLUMN(F70)),"")) ->  | AK86: =IF($AD86="","",IFERROR(SMALL(IF($AD86=$B$2:$V$22,ROW($B$2:$V$22)+COLUMN($B$2:$V$22)/100),COLUMN(G70)),"")) -> 
AA87: =IF(COUNTIF(AB$17:AB87,AB87)=1,COUNT(AA$16:AA86)+1) -> FALSE | AE87: =IF($AD87="","",IFERROR(SMALL(IF($AD87=$B$2:$V$22,ROW($B$2:$V$22)+COLUMN($B$2:$V$22)/100),COLUMN(A71)),"")) ->  | AF87: =IF($AD87="","",IFERROR(SMALL(IF($AD87=$B$2:$V$22,ROW($B$2:$V$22)+COLUMN($B$2:$V$22)/100),COLUMN(B71)),"")) ->  | AG87: =IF($AD87="","",IFERROR(SMALL(IF($AD87=$B$2:$V$22,ROW($B$2:$V$22)+COLUMN($B$2:$V$22)/100),COLUMN(C71)),"")) ->  | AH87: =IF($AD87="","",IFERROR(SMALL(IF($AD87=$B$2:$V$22,ROW($B$2:$V$22)+COLUMN($B$2:$V$22)/100),COLUMN(D71)),"")) ->  | AI87: =IF($AD87="","",IFERROR(SMALL(IF($AD87=$B$2:$V$22,ROW($B$2:$V$22)+COLUMN($B$2:$V$22)/100),COLUMN(E71)),"")) ->  | AJ87: =IF($AD87="","",IFERROR(SMALL(IF($AD87=$B$2:$V$22,ROW($B$2:$V$22)+COLUMN($B$2:$V$22)/100),COLUMN(F71)),"")) ->  | AK87: =IF($AD87="","",IFERROR(SMALL(IF($AD87=$B$2:$V$22,ROW($B$2:$V$22)+COLUMN($B$2:$V$22)/100),COLUMN(G71)),"")) -> 
AA88: =IF(COUNTIF(AB$17:AB88,AB88)=1,COUNT(AA$16:AA87)+1) -> FALSE | AE88: =IF($AD88="","",IFERROR(SMALL(IF($AD88=$B$2:$V$22,ROW($B$2:$V$22)+COLUMN($B$2:$V$22)/100),COLUMN(A72)),"")) ->  | AF88: =IF($AD88="","",IFERROR(SMALL(IF($AD88=$B$2:$V$22,ROW($B$2:$V$22)+COLUMN($B$2:$V$22)/100),COLUMN(B72)),"")) ->  | AG88: =IF($AD88="","",IFERROR(SMALL(IF($AD88=$B$2:$V$22,ROW($B$2:$V$22)+COLUMN($B$2:$V$22)/100),COLUMN(C72)),"")) ->  | AH88: =IF($AD88="","",IFERROR(SMALL(IF($AD88=$B$2:$V$22,ROW($B$2:$V$22)+COLUMN($B$2:$V$22)/100),COLUMN(D72)),"")) ->  | AI88: =IF($AD88="","",IFERROR(SMALL(IF($AD88=$B$2:$V$22,ROW($B$2:$V$22)+COLUMN($B$2:$V$22)/100),COLUMN(E72)),"")) ->  | AJ88: =IF($AD88="","",IFERROR(SMALL(IF($AD88=$B$2:$V$22,ROW($B$2:$V$22)+COLUMN($B$2:$V$22)/100),COLUMN(F72)),"")) ->  | AK88: =IF($AD88="","",IFERROR(SMALL(IF($AD88=$B$2:$V$22,ROW($B$2:$V$22)+COLUMN($B$2:$V$22)/100),COLUMN(G72)),"")) -> 
AA89: =IF(COUNTIF(AB$17:AB89,AB89)=1,COUNT(AA$16:AA88)+1) -> FALSE | AE89: =IF($AD89="","",IFERROR(SMALL(IF($AD89=$B$2:$V$22,ROW($B$2:$V$22)+COLUMN($B$2:$V$22)/100),COLUMN(A73)),"")) ->  | AF89: =IF($AD89="","",IFERROR(SMALL(IF($AD89=$B$2:$V$22,ROW($B$2:$V$22)+COLUMN($B$2:$V$22)/100),COLUMN(B73)),"")) ->  | AG89: =IF($AD89="","",IFERROR(SMALL(IF($AD89=$B$2:$V$22,ROW($B$2:$V$22)+COLUMN($B$2:$V$22)/100),COLUMN(C73)),"")) ->  | AH89: =IF($AD89="","",IFERROR(SMALL(IF($AD89=$B$2:$V$22,ROW($B$2:$V$22)+COLUMN($B$2:$V$22)/100),COLUMN(D73)),"")) ->  | AI89: =IF($AD89="","",IFERROR(SMALL(IF($AD89=$B$2:$V$22,ROW($B$2:$V$22)+COLUMN($B$2:$V$22)/100),COLUMN(E73)),"")) ->  | AJ89: =IF($AD89="","",IFERROR(SMALL(IF($AD89=$B$2:$V$22,ROW($B$2:$V$22)+COLUMN($B$2:$V$22)/100),COLUMN(F73)),"")) ->  | AK89: =IF($AD89="","",IFERROR(SMALL(IF($AD89=$B$2:$V$22,ROW($B$2:$V$22)+COLUMN($B$2:$V$22)/100),COLUMN(G73)),"")) -> 
AA90: =IF(COUNTIF(AB$17:AB90,AB90)=1,COUNT(AA$16:AA89)+1) -> FALSE | AE90: =IF($AD90="","",IFERROR(SMALL(IF($AD90=$B$2:$V$22,ROW($B$2:$V$22)+COLUMN($B$2:$V$22)/100),COLUMN(A74)),"")) ->  | AF90: =IF($AD90="","",IFERROR(SMALL(IF($AD90=$B$2:$V$22,ROW($B$2:$V$22)+COLUMN($B$2:$V$22)/100),COLUMN(B74)),"")) ->  | AG90: =IF($AD90="","",IFERROR(SMALL(IF($AD90=$B$2:$V$22,ROW($B$2:$V$22)+COLUMN($B$2:$V$22)/100),COLUMN(C74)),"")) ->  | AH90: =IF($AD90="","",IFERROR(SMALL(IF($AD90=$B$2:$V$22,ROW($B$2:$V$22)+COLUMN($B$2:$V$22)/100),COLUMN(D74)),"")) ->  | AI90: =IF($AD90="","",IFERROR(SMALL(IF($AD90=$B$2:$V$22,ROW($B$2:$V$22)+COLUMN($B$2:$V$22)/100),COLUMN(E74)),"")) ->  | AJ90: =IF($AD90="","",IFERROR(SMALL(IF($AD90=$B$2:$V$22,ROW($B$2:$V$22)+COLUMN($B$2:$V$22)/100),COLUMN(F74)),"")) ->  | AK90: =IF($AD90="","",IFERROR(SMALL(IF($AD90=$B$2:$V$22,ROW($B$2:$V$22)+COLUMN($B$2:$V$22)/100),COLUMN(G74)),"")) -> 
AA91: =IF(COUNTIF(AB$17:AB91,AB91)=1,COUNT(AA$16:AA90)+1) -> FALSE | AE91: =IF($AD91="","",IFERROR(SMALL(IF($AD91=$B$2:$V$22,ROW($B$2:$V$22)+COLUMN($B$2:$V$22)/100),COLUMN(A75)),"")) ->  | AF91: =IF($AD91="","",IFERROR(SMALL(IF($AD91=$B$2:$V$22,ROW($B$2:$V$22)+COLUMN($B$2:$V$22)/100),COLUMN(B75)),"")) ->  | AG91: =IF($AD91="","",IFERROR(SMALL(IF($AD91=$B$2:$V$22,ROW($B$2:$V$22)+COLUMN($B$2:$V$22)/100),COLUMN(C75)),"")) ->  | AH91: =IF($AD91="","",IFERROR(SMALL(IF($AD91=$B$2:$V$22,ROW($B$2:$V$22)+COLUMN($B$2:$V$22)/100),COLUMN(D75)),"")) ->  | AI91: =IF($AD91="","",IFERROR(SMALL(IF($AD91=$B$2:$V$22,ROW($B$2:$V$22)+COLUMN($B$2:$V$22)/100),COLUMN(E75)),"")) ->  | AJ91: =IF($AD91="","",IFERROR(SMALL(IF($AD91=$B$2:$V$22,ROW($B$2:$V$22)+COLUMN($B$2:$V$22)/100),COLUMN(F75)),"")) ->  | AK91: =IF($AD91="","",IFERROR(SMALL(IF($AD91=$B$2:$V$22,ROW($B$2:$V$22)+COLUMN($B$2:$V$22)/100),COLUMN(G75)),"")) -> 
AA92: =IF(COUNTIF(AB$17:AB92,AB92)=1,COUNT(AA$16:AA91)+1) -> FALSE | AE92: =IF($AD92="","",IFERROR(SMALL(IF($AD92=$B$2:$V$22,ROW($B$2:$V$22)+COLUMN($B$2:$V$22)/100),COLUMN(A76)),"")) ->  | AF92: =IF($AD92="","",IFERROR(SMALL(IF($AD92=$B$2:$V$22,ROW($B$2:$V$22)+COLUMN($B$2:$V$22)/100),COLUMN(B76)),"")) ->  | AG92: =IF($AD92="","",IFERROR(SMALL(IF($AD92=$B$2:$V$22,ROW($B$2:$V$22)+COLUMN($B$2:$V$22)/100),COLUMN(C76)),"")) ->  | AH92: =IF($AD92="","",IFERROR(SMALL(IF($AD92=$B$2:$V$22,ROW($B$2:$V$22)+COLUMN($B$2:$V$22)/100),COLUMN(D76)),"")) ->  | AI92: =IF($AD92="","",IFERROR(SMALL(IF($AD92=$B$2:$V$22,ROW($B$2:$V$22)+COLUMN($B$2:$V$22)/100),COLUMN(E76)),"")) ->  | AJ92: =IF($AD92="","",IFERROR(SMALL(IF($AD92=$B$2:$V$22,ROW($B$2:$V$22)+COLUMN($B$2:$V$22)/100),COLUMN(F76)),"")) ->  | AK92: =IF($AD92="","",IFERROR(SMALL(IF($AD92=$B$2:$V$22,ROW($B$2:$V$22)+COLUMN($B$2:$V$22)/100),COLUMN(G76)),"")) -> 
AA93: =IF(COUNTIF(AB$17:AB93,AB93)=1,COUNT(AA$16:AA92)+1) -> FALSE | AE93: =IF($AD93="","",IFERROR(SMALL(IF($AD93=$B$2:$V$22,ROW($B$2:$V$22)+COLUMN($B$2:$V$22)/100),COLUMN(A77)),"")) ->  | AF93: =IF($AD93="","",IFERROR(SMALL(IF($AD93=$B$2:$V$22,ROW($B$2:$V$22)+COLUMN($B$2:$V$22)/100),COLUMN(B77)),"")) ->  | AG93: =IF($AD93="","",IFERROR(SMALL(IF($AD93=$B$2:$V$22,ROW($B$2:$V$22)+COLUMN($B$2:$V$22)/100),COLUMN(C77)),"")) ->  | AH93: =IF($AD93="","",IFERROR(SMALL(IF($AD93=$B$2:$V$22,ROW($B$2:$V$22)+COLUMN($B$2:$V$22)/100),COLUMN(D77)),"")) ->  | AI93: =IF($AD93="","",IFERROR(SMALL(IF($AD93=$B$2:$V$22,ROW($B$2:$V$22)+COLUMN($B$2:$V$22)/100),COLUMN(E77)),"")) ->  | AJ93: =IF($AD93="","",IFERROR(SMALL(IF($AD93=$B$2:$V$22,ROW($B$2:$V$22)+COLUMN($B$2:$V$22)/100),COLUMN(F77)),"")) ->  | AK93: =IF($AD93="","",IFERROR(SMALL(IF($AD93=$B$2:$V$22,ROW($B$2:$V$22)+COLUMN($B$2:$V$22)/100),COLUMN(G77)),"")) -> 
AA94: =IF(COUNTIF(AB$17:AB94,AB94)=1,COUNT(AA$16:AA93)+1) -> FALSE | AE94: =IF($AD94="","",IFERROR(SMALL(IF($AD94=$B$2:$V$22,ROW($B$2:$V$22)+COLUMN($B$2:$V$22)/100),COLUMN(A78)),"")) ->  | AF94: =IF($AD94="","",IFERROR(SMALL(IF($AD94=$B$2:$V$22,ROW($B$2:$V$22)+COLUMN($B$2:$V$22)/100),COLUMN(B78)),"")) ->  | AG94: =IF($AD94="","",IFERROR(SMALL(IF($AD94=$B$2:$V$22,ROW($B$2:$V$22)+COLUMN($B$2:$V$22)/100),COLUMN(C78)),"")) ->  | AH94: =IF($AD94="","",IFERROR(SMALL(IF($AD94=$B$2:$V$22,ROW($B$2:$V$22)+COLUMN($B$2:$V$22)/100),COLUMN(D78)),"")) ->  | AI94: =IF($AD94="","",IFERROR(SMALL(IF($AD94=$B$2:$V$22,ROW($B$2:$V$22)+COLUMN($B$2:$V$22)/100),COLUMN(E78)),"")) ->  | AJ94: =IF($AD94="","",IFERROR(SMALL(IF($AD94=$B$2:$V$22,ROW($B$2:$V$22)+COLUMN($B$2:$V$22)/100),COLUMN(F78)),"")) ->  | AK94: =IF($AD94="","",IFERROR(SMALL(IF($AD94=$B$2:$V$22,ROW($B$2:$V$22)+COLUMN($B$2:$V$22)/100),COLUMN(G78)),"")) -> 
AA95: =IF(COUNTIF(AB$17:AB95,AB95)=1,COUNT(AA$16:AA94)+1) -> FALSE | AE95: =IF($AD95="","",IFERROR(SMALL(IF($AD95=$B$2:$V$22,ROW($B$2:$V$22)+COLUMN($B$2:$V$22)/100),COLUMN(A79)),"")) ->  | AF95: =IF($AD95="","",IFERROR(SMALL(IF($AD95=$B$2:$V$22,ROW($B$2:$V$22)+COLUMN($B$2:$V$22)/100),COLUMN(B79)),"")) ->  | AG95: =IF($AD95="","",IFERROR(SMALL(IF($AD95=$B$2:$V$22,ROW($B$2:$V$22)+COLUMN($B$2:$V$22)/100),COLUMN(C79)),"")) ->  | AH95: =IF($AD95="","",IFERROR(SMALL(IF($AD95=$B$2:$V$22,ROW($B$2:$V$22)+COLUMN($B$2:$V$22)/100),COLUMN(D79)),"")) ->  | AI95: =IF($AD95="","",IFERROR(SMALL(IF($AD95=$B$2:$V$22,ROW($B$2:$V$22)+COLUMN($B$2:$V$22)/100),COLUMN(E79)),"")) ->  | AJ95: =IF($AD95="","",IFERROR(SMALL(IF($AD95=$B$2:$V$22,ROW($B$2:$V$22)+COLUMN($B$2:$V$22)/100),COLUMN(F79)),"")) ->  | AK95: =IF($AD95="","",IFERROR(SMALL(IF($AD95=$B$2:$V$22,ROW($B$2:$V$22)+COLUMN($B$2:$V$22)/100),COLUMN(G79)),"")) -> 
AA96: =IF(COUNTIF(AB$17:AB96,AB96)=1,COUNT(AA$16:AA95)+1) -> FALSE | AE96: =IF($AD96="","",IFERROR(SMALL(IF($AD96=$B$2:$V$22,ROW($B$2:$V$22)+COLUMN($B$2:$V$22)/100),COLUMN(A80)),"")) ->  | AF96: =IF($AD96="","",IFERROR(SMALL(IF($AD96=$B$2:$V$22,ROW($B$2:$V$22)+COLUMN($B$2:$V$22)/100),COLUMN(B80)),"")) ->  | AG96: =IF($AD96="","",IFERROR(SMALL(IF($AD96=$B$2:$V$22,ROW($B$2:$V$22)+COLUMN($B$2:$V$22)/100),COLUMN(C80)),"")) ->  | AH96: =IF($AD96="","",IFERROR(SMALL(IF($AD96=$B$2:$V$22,ROW($B$2:$V$22)+COLUMN($B$2:$V$22)/100),COLUMN(D80)),"")) ->  | AI96: =IF($AD96="","",IFERROR(SMALL(IF($AD96=$B$2:$V$22,ROW($B$2:$V$22)+COLUMN($B$2:$V$22)/100),COLUMN(E80)),"")) ->  | AJ96: =IF($AD96="","",IFERROR(SMALL(IF($AD96=$B$2:$V$22,ROW($B$2:$V$22)+COLUMN($B$2:$V$22)/100),COLUMN(F80)),"")) ->  | AK96: =IF($AD96="","",IFERROR(SMALL(IF($AD96=$B$2:$V$22,ROW($B$2:$V$22)+COLUMN($B$2:$V$22)/100),COLUMN(G80)),"")) -> 
AA97: =IF(COUNTIF(AB$17:AB97,AB97)=1,COUNT(AA$16:AA96)+1) -> FALSE | AE97: =IF($AD97="","",IFERROR(SMALL(IF($AD97=$B$2:$V$22,ROW($B$2:$V$22)+COLUMN($B$2:$V$22)/100),COLUMN(A81)),"")) ->  | AF97: =IF($AD97="","",IFERROR(SMALL(IF($AD97=$B$2:$V$22,ROW($B$2:$V$22)+COLUMN($B$2:$V$22)/100),COLUMN(B81)),"")) ->  | AG97: =IF($AD97="","",IFERROR(SMALL(IF($AD97=$B$2:$V$22,ROW($B$2:$V$22)+COLUMN($B$2:$V$22)/100),COLUMN(C81)),"")) ->  | AH97: =IF($AD97="","",IFERROR(SMALL(IF($AD97=$B$2:$V$22,ROW($B$2:$V$22)+COLUMN($B$2:$V$22)/100),COLUMN(D81)),"")) ->  | AI97: =IF($AD97="","",IFERROR(SMALL(IF($AD97=$B$2:$V$22,ROW($B$2:$V$22)+COLUMN($B$2:$V$22)/100),COLUMN(E81)),"")) ->  | AJ97: =IF($AD97="","",IFERROR(SMALL(IF($AD97=$B$2:$V$22,ROW($B$2:$V$22)+COLUMN($B$2:$V$22)/100),COLUMN(F81)),"")) ->  | AK97: =IF($AD97="","",IFERROR(SMALL(IF($AD97=$B$2:$V$22,ROW($B$2:$V$22)+COLUMN($B$2:$V$22)/100),COLUMN(G81)),"")) -> 
AA98: =IF(COUNTIF(AB$17:AB98,AB98)=1,COUNT(AA$16:AA97)+1) -> FALSE | AE98: =IF($AD98="","",IFERROR(SMALL(IF($AD98=$B$2:$V$22,ROW($B$2:$V$22)+COLUMN($B$2:$V$22)/100),COLUMN(A82)),"")) ->  | AF98: =IF($AD98="","",IFERROR(SMALL(IF($AD98=$B$2:$V$22,ROW($B$2:$V$22)+COLUMN($B$2:$V$22)/100),COLUMN(B82)),"")) ->  | AG98: =IF($AD98="","",IFERROR(SMALL(IF($AD98=$B$2:$V$22,ROW($B$2:$V$22)+COLUMN($B$2:$V$22)/100),COLUMN(C82)),"")) ->  | AH98: =IF($AD98="","",IFERROR(SMALL(IF($AD98=$B$2:$V$22,ROW($B$2:$V$22)+COLUMN($B$2:$V$22)/100),COLUMN(D82)),"")) ->  | AI98: =IF($AD98="","",IFERROR(SMALL(IF($AD98=$B$2:$V$22,ROW($B$2:$V$22)+COLUMN($B$2:$V$22)/100),COLUMN(E82)),"")) ->  | AJ98: =IF($AD98="","",IFERROR(SMALL(IF($AD98=$B$2:$V$22,ROW($B$2:$V$22)+COLUMN($B$2:$V$22)/100),COLUMN(F82)),"")) ->  | AK98: =IF($AD98="","",IFERROR(SMALL(IF($AD98=$B$2:$V$22,ROW($B$2:$V$22)+COLUMN($B$2:$V$22)/100),COLUMN(G82)),"")) -> 
AA99: =IF(COUNTIF(AB$17:AB99,AB99)=1,COUNT(AA$16:AA98)+1) -> FALSE | AE99: =IF($AD99="","",IFERROR(SMALL(IF($AD99=$B$2:$V$22,ROW($B$2:$V$22)+COLUMN($B$2:$V$22)/100),COLUMN(A83)),"")) ->  | AF99: =IF($AD99="","",IFERROR(SMALL(IF($AD99=$B$2:$V$22,ROW($B$2:$V$22)+COLUMN($B$2:$V$22)/100),COLUMN(B83)),"")) ->  | AG99: =IF($AD99="","",IFERROR(SMALL(IF($AD99=$B$2:$V$22,ROW($B$2:$V$22)+COLUMN($B$2:$V$22)/100),COLUMN(C83)),"")) ->  | AH99: =IF($AD99="","",IFERROR(SMALL(IF($AD99=$B$2:$V$22,ROW($B$2:$V$22)+COLUMN($B$2:$V$22)/100),COLUMN(D83)),"")) ->  | AI99: =IF($AD99="","",IFERROR(SMALL(IF($AD99=$B$2:$V$22,ROW($B$2:$V$22)+COLUMN($B$2:$V$22)/100),COLUMN(E83)),"")) ->  | AJ99: =IF($AD99="","",IFERROR(SMALL(IF($AD99=$B$2:$V$22,ROW($B$2:$V$22)+COLUMN($B$2:$V$22)/100),COLUMN(F83)),"")) ->  | AK99: =IF($AD99="","",IFERROR(SMALL(IF($AD99=$B$2:$V$22,ROW($B$2:$V$22)+COLUMN($B$2:$V$22)/100),COLUMN(G83)),"")) -> 
AA100: =IF(COUNTIF(AB$17:AB100,AB100)=1,COUNT(AA$16:AA99)+1) -> FALSE | AE100: =IF($AD100="","",IFERROR(SMALL(IF($AD100=$B$2:$V$22,ROW($B$2:$V$22)+COLUMN($B$2:$V$22)/100),COLUMN(A84)),"")) ->  | AF100: =IF($AD100="","",IFERROR(SMALL(IF($AD100=$B$2:$V$22,ROW($B$2:$V$22)+COLUMN($B$2:$V$22)/100),COLUMN(B84)),"")) ->  | AG100: =IF($AD100="","",IFERROR(SMALL(IF($AD100=$B$2:$V$22,ROW($B$2:$V$22)+COLUMN($B$2:$V$22)/100),COLUMN(C84)),"")) ->  | AH100: =IF($AD100="","",IFERROR(SMALL(IF($AD100=$B$2:$V$22,ROW($B$2:$V$22)+COLUMN($B$2:$V$22)/100),COLUMN(D84)),"")) ->  | AI100: =IF($AD100="","",IFERROR(SMALL(IF($AD100=$B$2:$V$22,ROW($B$2:$V$22)+COLUMN($B$2:$V$22)/100),COLUMN(E84)),"")) ->  | AJ100: =IF($AD100="","",IFERROR(SMALL(IF($AD100=$B$2:$V$22,ROW($B$2:$V$22)+COLUMN($B$2:$V$22)/100),COLUMN(F84)),"")) ->  | AK100: =IF($AD100="","",IFERROR(SMALL(IF($AD100=$B$2:$V$22,ROW($B$2:$V$22)+COLUMN($B$2:$V$22)/100),COLUMN(G84)),"")) -> 
AA101: =IF(COUNTIF(AB$17:AB101,AB101)=1,COUNT(AA$16:AA100)+1) -> FALSE | AE101: =IF($AD101="","",IFERROR(SMALL(IF($AD101=$B$2:$V$22,ROW($B$2:$V$22)+COLUMN($B$2:$V$22)/100),COLUMN(A85)),"")) ->  | AF101: =IF($AD101="","",IFERROR(SMALL(IF($AD101=$B$2:$V$22,ROW($B$2:$V$22)+COLUMN($B$2:$V$22)/100),COLUMN(B85)),"")) ->  | AG101: =IF($AD101="","",IFERROR(SMALL(IF($AD101=$B$2:$V$22,ROW($B$2:$V$22)+COLUMN($B$2:$V$22)/100),COLUMN(C85)),"")) ->  | AH101: =IF($AD101="","",IFERROR(SMALL(IF($AD101=$B$2:$V$22,ROW($B$2:$V$22)+COLUMN($B$2:$V$22)/100),COLUMN(D85)),"")) ->  | AI101: =IF($AD101="","",IFERROR(SMALL(IF($AD101=$B$2:$V$22,ROW($B$2:$V$22)+COLUMN($B$2:$V$22)/100),COLUMN(E85)),"")) ->  | AJ101: =IF($AD101="","",IFERROR(SMALL(IF($AD101=$B$2:$V$22,ROW($B$2:$V$22)+COLUMN($B$2:$V$22)/100),COLUMN(F85)),"")) ->  | AK101: =IF($AD101="","",IFERROR(SMALL(IF($AD101=$B$2:$V$22,ROW($B$2:$V$22)+COLUMN($B$2:$V$22)/100),COLUMN(G85)),"")) -> 
AA102: =IF(COUNTIF(AB$17:AB102,AB102)=1,COUNT(AA$16:AA101)+1) -> FALSE | AE102: =IF($AD102="","",IFERROR(SMALL(IF($AD102=$B$2:$V$22,ROW($B$2:$V$22)+COLUMN($B$2:$V$22)/100),COLUMN(A86)),"")) ->  | AF102: =IF($AD102="","",IFERROR(SMALL(IF($AD102=$B$2:$V$22,ROW($B$2:$V$22)+COLUMN($B$2:$V$22)/100),COLUMN(B86)),"")) ->  | AG102: =IF($AD102="","",IFERROR(SMALL(IF($AD102=$B$2:$V$22,ROW($B$2:$V$22)+COLUMN($B$2:$V$22)/100),COLUMN(C86)),"")) ->  | AH102: =IF($AD102="","",IFERROR(SMALL(IF($AD102=$B$2:$V$22,ROW($B$2:$V$22)+COLUMN($B$2:$V$22)/100),COLUMN(D86)),"")) ->  | AI102: =IF($AD102="","",IFERROR(SMALL(IF($AD102=$B$2:$V$22,ROW($B$2:$V$22)+COLUMN($B$2:$V$22)/100),COLUMN(E86)),"")) ->  | AJ102: =IF($AD102="","",IFERROR(SMALL(IF($AD102=$B$2:$V$22,ROW($B$2:$V$22)+COLUMN($B$2:$V$22)/100),COLUMN(F86)),"")) ->  | AK102: =IF($AD102="","",IFERROR(SMALL(IF($AD102=$B$2:$V$22,ROW($B$2:$V$22)+COLUMN($B$2:$V$22)/100),COLUMN(G86)),"")) -> 
AA103: =IF(COUNTIF(AB$17:AB103,AB103)=1,COUNT(AA$16:AA102)+1) -> FALSE | AE103: =IF($AD103="","",IFERROR(SMALL(IF($AD103=$B$2:$V$22,ROW($B$2:$V$22)+COLUMN($B$2:$V$22)/100),COLUMN(A87)),"")) ->  | AF103: =IF($AD103="","",IFERROR(SMALL(IF($AD103=$B$2:$V$22,ROW($B$2:$V$22)+COLUMN($B$2:$V$22)/100),COLUMN(B87)),"")) ->  | AG103: =IF($AD103="","",IFERROR(SMALL(IF($AD103=$B$2:$V$22,ROW($B$2:$V$22)+COLUMN($B$2:$V$22)/100),COLUMN(C87)),"")) ->  | AH103: =IF($AD103="","",IFERROR(SMALL(IF($AD103=$B$2:$V$22,ROW($B$2:$V$22)+COLUMN($B$2:$V$22)/100),COLUMN(D87)),"")) ->  | AI103: =IF($AD103="","",IFERROR(SMALL(IF($AD103=$B$2:$V$22,ROW($B$2:$V$22)+COLUMN($B$2:$V$22)/100),COLUMN(E87)),"")) ->  | AJ103: =IF($AD103="","",IFERROR(SMALL(IF($AD103=$B$2:$V$22,ROW($B$2:$V$22)+COLUMN($B$2:$V$22)/100),COLUMN(F87)),"")) ->  | AK103: =IF($AD103="","",IFERROR(SMALL(IF($AD103=$B$2:$V$22,ROW($B$2:$V$22)+COLUMN($B$2:$V$22)/100),COLUMN(G87)),"")) -> 
AA104: =IF(COUNTIF(AB$17:AB104,AB104)=1,COUNT(AA$16:AA103)+1) -> FALSE | AE104: =IF($AD104="","",IFERROR(SMALL(IF($AD104=$B$2:$V$22,ROW($B$2:$V$22)+COLUMN($B$2:$V$22)/100),COLUMN(A88)),"")) ->  | AF104: =IF($AD104="","",IFERROR(SMALL(IF($AD104=$B$2:$V$22,ROW($B$2:$V$22)+COLUMN($B$2:$V$22)/100),COLUMN(B88)),"")) ->  | AG104: =IF($AD104="","",IFERROR(SMALL(IF($AD104=$B$2:$V$22,ROW($B$2:$V$22)+COLUMN($B$2:$V$22)/100),COLUMN(C88)),"")) ->  | AH104: =IF($AD104="","",IFERROR(SMALL(IF($AD104=$B$2:$V$22,ROW($B$2:$V$22)+COLUMN($B$2:$V$22)/100),COLUMN(D88)),"")) ->  | AI104: =IF($AD104="","",IFERROR(SMALL(IF($AD104=$B$2:$V$22,ROW($B$2:$V$22)+COLUMN($B$2:$V$22)/100),COLUMN(E88)),"")) ->  | AJ104: =IF($AD104="","",IFERROR(SMALL(IF($AD104=$B$2:$V$22,ROW($B$2:$V$22)+COLUMN($B$2:$V$22)/100),COLUMN(F88)),"")) ->  | AK104: =IF($AD104="","",IFERROR(SMALL(IF($AD104=$B$2:$V$22,ROW($B$2:$V$22)+COLUMN($B$2:$V$22)/100),COLUMN(G88)),"")) -> 
AA105: =IF(COUNTIF(AB$17:AB105,AB105)=1,COUNT(AA$16:AA104)+1) -> FALSE | AE105: =IF($AD105="","",IFERROR(SMALL(IF($AD105=$B$2:$V$22,ROW($B$2:$V$22)+COLUMN($B$2:$V$22)/100),COLUMN(A89)),"")) ->  | AF105: =IF($AD105="","",IFERROR(SMALL(IF($AD105=$B$2:$V$22,ROW($B$2:$V$22)+COLUMN($B$2:$V$22)/100),COLUMN(B89)),"")) ->  | AG105: =IF($AD105="","",IFERROR(SMALL(IF($AD105=$B$2:$V$22,ROW($B$2:$V$22)+COLUMN($B$2:$V$22)/100),COLUMN(C89)),"")) ->  | AH105: =IF($AD105="","",IFERROR(SMALL(IF($AD105=$B$2:$V$22,ROW($B$2:$V$22)+COLUMN($B$2:$V$22)/100),COLUMN(D89)),"")) ->  | AI105: =IF($AD105="","",IFERROR(SMALL(IF($AD105=$B$2:$V$22,ROW($B$2:$V$22)+COLUMN($B$2:$V$22)/100),COLUMN(E89)),"")) ->  | AJ105: =IF($AD105="","",IFERROR(SMALL(IF($AD105=$B$2:$V$22,ROW($B$2:$V$22)+COLUMN($B$2:$V$22)/100),COLUMN(F89)),"")) ->  | AK105: =IF($AD105="","",IFERROR(SMALL(IF($AD105=$B$2:$V$22,ROW($B$2:$V$22)+COLUMN($B$2:$V$22)/100),COLUMN(G89)),"")) -> 
AA106: =IF(COUNTIF(AB$17:AB106,AB106)=1,COUNT(AA$16:AA105)+1) -> FALSE | AE106: =IF($AD106="","",IFERROR(SMALL(IF($AD106=$B$2:$V$22,ROW($B$2:$V$22)+COLUMN($B$2:$V$22)/100),COLUMN(A90)),"")) ->  | AF106: =IF($AD106="","",IFERROR(SMALL(IF($AD106=$B$2:$V$22,ROW($B$2:$V$22)+COLUMN($B$2:$V$22)/100),COLUMN(B90)),"")) ->  | AG106: =IF($AD106="","",IFERROR(SMALL(IF($AD106=$B$2:$V$22,ROW($B$2:$V$22)+COLUMN($B$2:$V$22)/100),COLUMN(C90)),"")) ->  | AH106: =IF($AD106="","",IFERROR(SMALL(IF($AD106=$B$2:$V$22,ROW($B$2:$V$22)+COLUMN($B$2:$V$22)/100),COLUMN(D90)),"")) ->  | AI106: =IF($AD106="","",IFERROR(SMALL(IF($AD106=$B$2:$V$22,ROW($B$2:$V$22)+COLUMN($B$2:$V$22)/100),COLUMN(E90)),"")) ->  | AJ106: =IF($AD106="","",IFERROR(SMALL(IF($AD106=$B$2:$V$22,ROW($B$2:$V$22)+COLUMN($B$2:$V$22)/100),COLUMN(F90)),"")) ->  | AK106: =IF($AD106="","",IFERROR(SMALL(IF($AD106=$B$2:$V$22,ROW($B$2:$V$22)+COLUMN($B$2:$V$22)/100),COLUMN(G90)),"")) -> 
AA107: =IF(COUNTIF(AB$17:AB107,AB107)=1,COUNT(AA$16:AA106)+1) -> FALSE | AE107: =IF($AD107="","",IFERROR(SMALL(IF($AD107=$B$2:$V$22,ROW($B$2:$V$22)+COLUMN($B$2:$V$22)/100),COLUMN(A91)),"")) ->  | AF107: =IF($AD107="","",IFERROR(SMALL(IF($AD107=$B$2:$V$22,ROW($B$2:$V$22)+COLUMN($B$2:$V$22)/100),COLUMN(B91)),"")) ->  | AG107: =IF($AD107="","",IFERROR(SMALL(IF($AD107=$B$2:$V$22,ROW($B$2:$V$22)+COLUMN($B$2:$V$22)/100),COLUMN(C91)),"")) ->  | AH107: =IF($AD107="","",IFERROR(SMALL(IF($AD107=$B$2:$V$22,ROW($B$2:$V$22)+COLUMN($B$2:$V$22)/100),COLUMN(D91)),"")) ->  | AI107: =IF($AD107="","",IFERROR(SMALL(IF($AD107=$B$2:$V$22,ROW($B$2:$V$22)+COLUMN($B$2:$V$22)/100),COLUMN(E91)),"")) ->  | AJ107: =IF($AD107="","",IFERROR(SMALL(IF($AD107=$B$2:$V$22,ROW($B$2:$V$22)+COLUMN($B$2:$V$22)/100),COLUMN(F91)),"")) ->  | AK107: =IF($AD107="","",IFERROR(SMALL(IF($AD107=$B$2:$V$22,ROW($B$2:$V$22)+COLUMN($B$2:$V$22)/100),COLUMN(G91)),"")) -> 
AA108: =IF(COUNTIF(AB$17:AB108,AB108)=1,COUNT(AA$16:AA107)+1) -> FALSE | AE108: =IF($AD108="","",IFERROR(SMALL(IF($AD108=$B$2:$V$22,ROW($B$2:$V$22)+COLUMN($B$2:$V$22)/100),COLUMN(A92)),"")) ->  | AF108: =IF($AD108="","",IFERROR(SMALL(IF($AD108=$B$2:$V$22,ROW($B$2:$V$22)+COLUMN($B$2:$V$22)/100),COLUMN(B92)),"")) ->  | AG108: =IF($AD108="","",IFERROR(SMALL(IF($AD108=$B$2:$V$22,ROW($B$2:$V$22)+COLUMN($B$2:$V$22)/100),COLUMN(C92)),"")) ->  | AH108: =IF($AD108="","",IFERROR(SMALL(IF($AD108=$B$2:$V$22,ROW($B$2:$V$22)+COLUMN($B$2:$V$22)/100),COLUMN(D92)),"")) ->  | AI108: =IF($AD108="","",IFERROR(SMALL(IF($AD108=$B$2:$V$22,ROW($B$2:$V$22)+COLUMN($B$2:$V$22)/100),COLUMN(E92)),"")) ->  | AJ108: =IF($AD108="","",IFERROR(SMALL(IF($AD108=$B$2:$V$22,ROW($B$2:$V$22)+COLUMN($B$2:$V$22)/100),COLUMN(F92)),"")) ->  | AK108: =IF($AD108="","",IFERROR(SMALL(IF($AD108=$B$2:$V$22,ROW($B$2:$V$22)+COLUMN($B$2:$V$22)/100),COLUMN(G92)),"")) -> 
AA109: =IF(COUNTIF(AB$17:AB109,AB109)=1,COUNT(AA$16:AA108)+1) -> FALSE | AE109: =IF($AD109="","",IFERROR(SMALL(IF($AD109=$B$2:$V$22,ROW($B$2:$V$22)+COLUMN($B$2:$V$22)/100),COLUMN(A93)),"")) ->  | AF109: =IF($AD109="","",IFERROR(SMALL(IF($AD109=$B$2:$V$22,ROW($B$2:$V$22)+COLUMN($B$2:$V$22)/100),COLUMN(B93)),"")) ->  | AG109: =IF($AD109="","",IFERROR(SMALL(IF($AD109=$B$2:$V$22,ROW($B$2:$V$22)+COLUMN($B$2:$V$22)/100),COLUMN(C93)),"")) ->  | AH109: =IF($AD109="","",IFERROR(SMALL(IF($AD109=$B$2:$V$22,ROW($B$2:$V$22)+COLUMN($B$2:$V$22)/100),COLUMN(D93)),"")) ->  | AI109: =IF($AD109="","",IFERROR(SMALL(IF($AD109=$B$2:$V$22,ROW($B$2:$V$22)+COLUMN($B$2:$V$22)/100),COLUMN(E93)),"")) ->  | AJ109: =IF($AD109="","",IFERROR(SMALL(IF($AD109=$B$2:$V$22,ROW($B$2:$V$22)+COLUMN($B$2:$V$22)/100),COLUMN(F93)),"")) ->  | AK109: =IF($AD109="","",IFERROR(SMALL(IF($AD109=$B$2:$V$22,ROW($B$2:$V$22)+COLUMN($B$2:$V$22)/100),COLUMN(G93)),"")) -> 
AA110: =IF(COUNTIF(AB$17:AB110,AB110)=1,COUNT(AA$16:AA109)+1) -> FALSE | AE110: =IF($AD110="","",IFERROR(SMALL(IF($AD110=$B$2:$V$22,ROW($B$2:$V$22)+COLUMN($B$2:$V$22)/100),COLUMN(A94)),"")) ->  | AF110: =IF($AD110="","",IFERROR(SMALL(IF($AD110=$B$2:$V$22,ROW($B$2:$V$22)+COLUMN($B$2:$V$22)/100),COLUMN(B94)),"")) ->  | AG110: =IF($AD110="","",IFERROR(SMALL(IF($AD110=$B$2:$V$22,ROW($B$2:$V$22)+COLUMN($B$2:$V$22)/100),COLUMN(C94)),"")) ->  | AH110: =IF($AD110="","",IFERROR(SMALL(IF($AD110=$B$2:$V$22,ROW($B$2:$V$22)+COLUMN($B$2:$V$22)/100),COLUMN(D94)),"")) ->  | AI110: =IF($AD110="","",IFERROR(SMALL(IF($AD110=$B$2:$V$22,ROW($B$2:$V$22)+COLUMN($B$2:$V$22)/100),COLUMN(E94)),"")) ->  | AJ110: =IF($AD110="","",IFERROR(SMALL(IF($AD110=$B$2:$V$22,ROW($B$2:$V$22)+COLUMN($B$2:$V$22)/100),COLUMN(F94)),"")) ->  | AK110: =IF($AD110="","",IFERROR(SMALL(IF($AD110=$B$2:$V$22,ROW($B$2:$V$22)+COLUMN($B$2:$V$22)/100),COLUMN(G94)),"")) -> 
AA111: =IF(COUNTIF(AB$17:AB111,AB111)=1,COUNT(AA$16:AA110)+1) -> FALSE | AE111: =IF($AD111="","",IFERROR(SMALL(IF($AD111=$B$2:$V$22,ROW($B$2:$V$22)+COLUMN($B$2:$V$22)/100),COLUMN(A95)),"")) ->  | AF111: =IF($AD111="","",IFERROR(SMALL(IF($AD111=$B$2:$V$22,ROW($B$2:$V$22)+COLUMN($B$2:$V$22)/100),COLUMN(B95)),"")) ->  | AG111: =IF($AD111="","",IFERROR(SMALL(IF($AD111=$B$2:$V$22,ROW($B$2:$V$22)+COLUMN($B$2:$V$22)/100),COLUMN(C95)),"")) ->  | AH111: =IF($AD111="","",IFERROR(SMALL(IF($AD111=$B$2:$V$22,ROW($B$2:$V$22)+COLUMN($B$2:$V$22)/100),COLUMN(D95)),"")) ->  | AI111: =IF($AD111="","",IFERROR(SMALL(IF($AD111=$B$2:$V$22,ROW($B$2:$V$22)+COLUMN($B$2:$V$22)/100),COLUMN(E95)),"")) ->  | AJ111: =IF($AD111="","",IFERROR(SMALL(IF($AD111=$B$2:$V$22,ROW($B$2:$V$22)+COLUMN($B$2:$V$22)/100),COLUMN(F95)),"")) ->  | AK111: =IF($AD111="","",IFERROR(SMALL(IF($AD111=$B$2:$V$22,ROW($B$2:$V$22)+COLUMN($B$2:$V$22)/100),COLUMN(G95)),"")) -> 
AA112: =IF(COUNTIF(AB$17:AB112,AB112)=1,COUNT(AA$16:AA111)+1) -> FALSE | AE112: =IF($AD112="","",IFERROR(SMALL(IF($AD112=$B$2:$V$22,ROW($B$2:$V$22)+COLUMN($B$2:$V$22)/100),COLUMN(A96)),"")) ->  | AF112: =IF($AD112="","",IFERROR(SMALL(IF($AD112=$B$2:$V$22,ROW($B$2:$V$22)+COLUMN($B$2:$V$22)/100),COLUMN(B96)),"")) ->  | AG112: =IF($AD112="","",IFERROR(SMALL(IF($AD112=$B$2:$V$22,ROW($B$2:$V$22)+COLUMN($B$2:$V$22)/100),COLUMN(C96)),"")) ->  | AH112: =IF($AD112="","",IFERROR(SMALL(IF($AD112=$B$2:$V$22,ROW($B$2:$V$22)+COLUMN($B$2:$V$22)/100),COLUMN(D96)),"")) ->  | AI112: =IF($AD112="","",IFERROR(SMALL(IF($AD112=$B$2:$V$22,ROW($B$2:$V$22)+COLUMN($B$2:$V$22)/100),COLUMN(E96)),"")) ->  | AJ112: =IF($AD112="","",IFERROR(SMALL(IF($AD112=$B$2:$V$22,ROW($B$2:$V$22)+COLUMN($B$2:$V$22)/100),COLUMN(F96)),"")) ->  | AK112: =IF($AD112="","",IFERROR(SMALL(IF($AD112=$B$2:$V$22,ROW($B$2:$V$22)+COLUMN($B$2:$V$22)/100),COLUMN(G96)),"")) -> 
AA113: =IF(COUNTIF(AB$17:AB113,AB113)=1,COUNT(AA$16:AA112)+1) -> FALSE | AE113: =IF($AD113="","",IFERROR(SMALL(IF($AD113=$B$2:$V$22,ROW($B$2:$V$22)+COLUMN($B$2:$V$22)/100),COLUMN(A97)),"")) ->  | AF113: =IF($AD113="","",IFERROR(SMALL(IF($AD113=$B$2:$V$22,ROW($B$2:$V$22)+COLUMN($B$2:$V$22)/100),COLUMN(B97)),"")) ->  | AG113: =IF($AD113="","",IFERROR(SMALL(IF($AD113=$B$2:$V$22,ROW($B$2:$V$22)+COLUMN($B$2:$V$22)/100),COLUMN(C97)),"")) ->  | AH113: =IF($AD113="","",IFERROR(SMALL(IF($AD113=$B$2:$V$22,ROW($B$2:$V$22)+COLUMN($B$2:$V$22)/100),COLUMN(D97)),"")) ->  | AI113: =IF($AD113="","",IFERROR(SMALL(IF($AD113=$B$2:$V$22,ROW($B$2:$V$22)+COLUMN($B$2:$V$22)/100),COLUMN(E97)),"")) ->  | AJ113: =IF($AD113="","",IFERROR(SMALL(IF($AD113=$B$2:$V$22,ROW($B$2:$V$22)+COLUMN($B$2:$V$22)/100),COLUMN(F97)),"")) ->  | AK113: =IF($AD113="","",IFERROR(SMALL(IF($AD113=$B$2:$V$22,ROW($B$2:$V$22)+COLUMN($B$2:$V$22)/100),COLUMN(G97)),"")) -> 
AA114: =IF(COUNTIF(AB$17:AB114,AB114)=1,COUNT(AA$16:AA113)+1) -> FALSE | AE114: =IF($AD114="","",IFERROR(SMALL(IF($AD114=$B$2:$V$22,ROW($B$2:$V$22)+COLUMN($B$2:$V$22)/100),COLUMN(A98)),"")) ->  | AF114: =IF($AD114="","",IFERROR(SMALL(IF($AD114=$B$2:$V$22,ROW($B$2:$V$22)+COLUMN($B$2:$V$22)/100),COLUMN(B98)),"")) ->  | AG114: =IF($AD114="","",IFERROR(SMALL(IF($AD114=$B$2:$V$22,ROW($B$2:$V$22)+COLUMN($B$2:$V$22)/100),COLUMN(C98)),"")) ->  | AH114: =IF($AD114="","",IFERROR(SMALL(IF($AD114=$B$2:$V$22,ROW($B$2:$V$22)+COLUMN($B$2:$V$22)/100),COLUMN(D98)),"")) ->  | AI114: =IF($AD114="","",IFERROR(SMALL(IF($AD114=$B$2:$V$22,ROW($B$2:$V$22)+COLUMN($B$2:$V$22)/100),COLUMN(E98)),"")) ->  | AJ114: =IF($AD114="","",IFERROR(SMALL(IF($AD114=$B$2:$V$22,ROW($B$2:$V$22)+COLUMN($B$2:$V$22)/100),COLUMN(F98)),"")) ->  | AK114: =IF($AD114="","",IFERROR(SMALL(IF($AD114=$B$2:$V$22,ROW($B$2:$V$22)+COLUMN($B$2:$V$22)/100),COLUMN(G98)),"")) -> 
AA115: =IF(COUNTIF(AB$17:AB115,AB115)=1,COUNT(AA$16:AA114)+1) -> FALSE | AE115: =IF($AD115="","",IFERROR(SMALL(IF($AD115=$B$2:$V$22,ROW($B$2:$V$22)+COLUMN($B$2:$V$22)/100),COLUMN(A99)),"")) ->  | AF115: =IF($AD115="","",IFERROR(SMALL(IF($AD115=$B$2:$V$22,ROW($B$2:$V$22)+COLUMN($B$2:$V$22)/100),COLUMN(B99)),"")) ->  | AG115: =IF($AD115="","",IFERROR(SMALL(IF($AD115=$B$2:$V$22,ROW($B$2:$V$22)+COLUMN($B$2:$V$22)/100),COLUMN(C99)),"")) ->  | AH115: =IF($AD115="","",IFERROR(SMALL(IF($AD115=$B$2:$V$22,ROW($B$2:$V$22)+COLUMN($B$2:$V$22)/100),COLUMN(D99)),"")) ->  | AI115: =IF($AD115="","",IFERROR(SMALL(IF($AD115=$B$2:$V$22,ROW($B$2:$V$22)+COLUMN($B$2:$V$22)/100),COLUMN(E99)),"")) ->  | AJ115: =IF($AD115="","",IFERROR(SMALL(IF($AD115=$B$2:$V$22,ROW($B$2:$V$22)+COLUMN($B$2:$V$22)/100),COLUMN(F99)),"")) ->  | AK115: =IF($AD115="","",IFERROR(SMALL(IF($AD115=$B$2:$V$22,ROW($B$2:$V$22)+COLUMN($B$2:$V$22)/100),COLUMN(G99)),"")) -> 
AA116: =IF(COUNTIF(AB$17:AB116,AB116)=1,COUNT(AA$16:AA115)+1) -> FALSE | AE116: =IF($AD116="","",IFERROR(SMALL(IF($AD116=$B$2:$V$22,ROW($B$2:$V$22)+COLUMN($B$2:$V$22)/100),COLUMN(A100)),"")) ->  | AF116: =IF($AD116="","",IFERROR(SMALL(IF($AD116=$B$2:$V$22,ROW($B$2:$V$22)+COLUMN($B$2:$V$22)/100),COLUMN(B100)),"")) ->  | AG116: =IF($AD116="","",IFERROR(SMALL(IF($AD116=$B$2:$V$22,ROW($B$2:$V$22)+COLUMN($B$2:$V$22)/100),COLUMN(C100)),"")) ->  | AH116: =IF($AD116="","",IFERROR(SMALL(IF($AD116=$B$2:$V$22,ROW($B$2:$V$22)+COLUMN($B$2:$V$22)/100),COLUMN(D100)),"")) ->  | AI116: =IF($AD116="","",IFERROR(SMALL(IF($AD116=$B$2:$V$22,ROW($B$2:$V$22)+COLUMN($B$2:$V$22)/100),COLUMN(E100)),"")) ->  | AJ116: =IF($AD116="","",IFERROR(SMALL(IF($AD116=$B$2:$V$22,ROW($B$2:$V$22)+COLUMN($B$2:$V$22)/100),COLUMN(F100)),"")) ->  | AK116: =IF($AD116="","",IFERROR(SMALL(IF($AD116=$B$2:$V$22,ROW($B$2:$V$22)+COLUMN($B$2:$V$22)/100),COLUMN(G100)),"")) -> 
AA117: =IF(COUNTIF(AB$17:AB117,AB117)=1,COUNT(AA$16:AA116)+1) -> FALSE | AE117: =IF($AD117="","",IFERROR(SMALL(IF($AD117=$B$2:$V$22,ROW($B$2:$V$22)+COLUMN($B$2:$V$22)/100),COLUMN(A101)),"")) ->  | AF117: =IF($AD117="","",IFERROR(SMALL(IF($AD117=$B$2:$V$22,ROW($B$2:$V$22)+COLUMN($B$2:$V$22)/100),COLUMN(B101)),"")) ->  | AG117: =IF($AD117="","",IFERROR(SMALL(IF($AD117=$B$2:$V$22,ROW($B$2:$V$22)+COLUMN($B$2:$V$22)/100),COLUMN(C101)),"")) ->  | AH117: =IF($AD117="","",IFERROR(SMALL(IF($AD117=$B$2:$V$22,ROW($B$2:$V$22)+COLUMN($B$2:$V$22)/100),COLUMN(D101)),"")) ->  | AI117: =IF($AD117="","",IFERROR(SMALL(IF($AD117=$B$2:$V$22,ROW($B$2:$V$22)+COLUMN($B$2:$V$22)/100),COLUMN(E101)),"")) ->  | AJ117: =IF($AD117="","",IFERROR(SMALL(IF($AD117=$B$2:$V$22,ROW($B$2:$V$22)+COLUMN($B$2:$V$22)/100),COLUMN(F101)),"")) ->  | AK117: =IF($AD117="","",IFERROR(SMALL(IF($AD117=$B$2:$V$22,ROW($B$2:$V$22)+COLUMN($B$2:$V$22)/100),COLUMN(G101)),"")) -> 
AA118: =IF(COUNTIF(AB$17:AB118,AB118)=1,COUNT(AA$16:AA117)+1) -> FALSE | AE118: =IF($AD118="","",IFERROR(SMALL(IF($AD118=$B$2:$V$22,ROW($B$2:$V$22)+COLUMN($B$2:$V$22)/100),COLUMN(A102)),"")) ->  | AF118: =IF($AD118="","",IFERROR(SMALL(IF($AD118=$B$2:$V$22,ROW($B$2:$V$22)+COLUMN($B$2:$V$22)/100),COLUMN(B102)),"")) ->  | AG118: =IF($AD118="","",IFERROR(SMALL(IF($AD118=$B$2:$V$22,ROW($B$2:$V$22)+COLUMN($B$2:$V$22)/100),COLUMN(C102)),"")) ->  | AH118: =IF($AD118="","",IFERROR(SMALL(IF($AD118=$B$2:$V$22,ROW($B$2:$V$22)+COLUMN($B$2:$V$22)/100),COLUMN(D102)),"")) ->  | AI118: =IF($AD118="","",IFERROR(SMALL(IF($AD118=$B$2:$V$22,ROW($B$2:$V$22)+COLUMN($B$2:$V$22)/100),COLUMN(E102)),"")) ->  | AJ118: =IF($AD118="","",IFERROR(SMALL(IF($AD118=$B$2:$V$22,ROW($B$2:$V$22)+COLUMN($B$2:$V$22)/100),COLUMN(F102)),"")) ->  | AK118: =IF($AD118="","",IFERROR(SMALL(IF($AD118=$B$2:$V$22,ROW($B$2:$V$22)+COLUMN($B$2:$V$22)/100),COLUMN(G102)),"")) -> 
AA119: =IF(COUNTIF(AB$17:AB119,AB119)=1,COUNT(AA$16:AA118)+1) -> FALSE | AE119: =IF($AD119="","",IFERROR(SMALL(IF($AD119=$B$2:$V$22,ROW($B$2:$V$22)+COLUMN($B$2:$V$22)/100),COLUMN(A103)),"")) ->  | AF119: =IF($AD119="","",IFERROR(SMALL(IF($AD119=$B$2:$V$22,ROW($B$2:$V$22)+COLUMN($B$2:$V$22)/100),COLUMN(B103)),"")) ->  | AG119: =IF($AD119="","",IFERROR(SMALL(IF($AD119=$B$2:$V$22,ROW($B$2:$V$22)+COLUMN($B$2:$V$22)/100),COLUMN(C103)),"")) ->  | AH119: =IF($AD119="","",IFERROR(SMALL(IF($AD119=$B$2:$V$22,ROW($B$2:$V$22)+COLUMN($B$2:$V$22)/100),COLUMN(D103)),"")) ->  | AI119: =IF($AD119="","",IFERROR(SMALL(IF($AD119=$B$2:$V$22,ROW($B$2:$V$22)+COLUMN($B$2:$V$22)/100),COLUMN(E103)),"")) ->  | AJ119: =IF($AD119="","",IFERROR(SMALL(IF($AD119=$B$2:$V$22,ROW($B$2:$V$22)+COLUMN($B$2:$V$22)/100),COLUMN(F103)),"")) ->  | AK119: =IF($AD119="","",IFERROR(SMALL(IF($AD119=$B$2:$V$22,ROW($B$2:$V$22)+COLUMN($B$2:$V$22)/100),COLUMN(G103)),"")) -> 
AA120: =IF(COUNTIF(AB$17:AB120,AB120)=1,COUNT(AA$16:AA119)+1) -> FALSE | AE120: =IF($AD120="","",IFERROR(SMALL(IF($AD120=$B$2:$V$22,ROW($B$2:$V$22)+COLUMN($B$2:$V$22)/100),COLUMN(A104)),"")) ->  | AF120: =IF($AD120="","",IFERROR(SMALL(IF($AD120=$B$2:$V$22,ROW($B$2:$V$22)+COLUMN($B$2:$V$22)/100),COLUMN(B104)),"")) ->  | AG120: =IF($AD120="","",IFERROR(SMALL(IF($AD120=$B$2:$V$22,ROW($B$2:$V$22)+COLUMN($B$2:$V$22)/100),COLUMN(C104)),"")) ->  | AH120: =IF($AD120="","",IFERROR(SMALL(IF($AD120=$B$2:$V$22,ROW($B$2:$V$22)+COLUMN($B$2:$V$22)/100),COLUMN(D104)),"")) ->  | AI120: =IF($AD120="","",IFERROR(SMALL(IF($AD120=$B$2:$V$22,ROW($B$2:$V$22)+COLUMN($B$2:$V$22)/100),COLUMN(E104)),"")) ->  | AJ120: =IF($AD120="","",IFERROR(SMALL(IF($AD120=$B$2:$V$22,ROW($B$2:$V$22)+COLUMN($B$2:$V$22)/100),COLUMN(F104)),"")) ->  | AK120: =IF($AD120="","",IFERROR(SMALL(IF($AD120=$B$2:$V$22,ROW($B$2:$V$22)+COLUMN($B$2:$V$22)/100),COLUMN(G104)),"")) -> 
AA121: =IF(COUNTIF(AB$17:AB121,AB121)=1,COUNT(AA$16:AA120)+1) -> FALSE | AE121: =IF($AD121="","",IFERROR(SMALL(IF($AD121=$B$2:$V$22,ROW($B$2:$V$22)+COLUMN($B$2:$V$22)/100),COLUMN(A105)),"")) ->  | AF121: =IF($AD121="","",IFERROR(SMALL(IF($AD121=$B$2:$V$22,ROW($B$2:$V$22)+COLUMN($B$2:$V$22)/100),COLUMN(B105)),"")) ->  | AG121: =IF($AD121="","",IFERROR(SMALL(IF($AD121=$B$2:$V$22,ROW($B$2:$V$22)+COLUMN($B$2:$V$22)/100),COLUMN(C105)),"")) ->  | AH121: =IF($AD121="","",IFERROR(SMALL(IF($AD121=$B$2:$V$22,ROW($B$2:$V$22)+COLUMN($B$2:$V$22)/100),COLUMN(D105)),"")) ->  | AI121: =IF($AD121="","",IFERROR(SMALL(IF($AD121=$B$2:$V$22,ROW($B$2:$V$22)+COLUMN($B$2:$V$22)/100),COLUMN(E105)),"")) ->  | AJ121: =IF($AD121="","",IFERROR(SMALL(IF($AD121=$B$2:$V$22,ROW($B$2:$V$22)+COLUMN($B$2:$V$22)/100),COLUMN(F105)),"")) ->  | AK121: =IF($AD121="","",IFERROR(SMALL(IF($AD121=$B$2:$V$22,ROW($B$2:$V$22)+COLUMN($B$2:$V$22)/100),COLUMN(G105)),"")) -> 
AA122: =IF(COUNTIF(AB$17:AB122,AB122)=1,COUNT(AA$16:AA121)+1) -> FALSE | AE122: =IF($AD122="","",IFERROR(SMALL(IF($AD122=$B$2:$V$22,ROW($B$2:$V$22)+COLUMN($B$2:$V$22)/100),COLUMN(A106)),"")) ->  | AF122: =IF($AD122="","",IFERROR(SMALL(IF($AD122=$B$2:$V$22,ROW($B$2:$V$22)+COLUMN($B$2:$V$22)/100),COLUMN(B106)),"")) ->  | AG122: =IF($AD122="","",IFERROR(SMALL(IF($AD122=$B$2:$V$22,ROW($B$2:$V$22)+COLUMN($B$2:$V$22)/100),COLUMN(C106)),"")) ->  | AH122: =IF($AD122="","",IFERROR(SMALL(IF($AD122=$B$2:$V$22,ROW($B$2:$V$22)+COLUMN($B$2:$V$22)/100),COLUMN(D106)),"")) ->  | AI122: =IF($AD122="","",IFERROR(SMALL(IF($AD122=$B$2:$V$22,ROW($B$2:$V$22)+COLUMN($B$2:$V$22)/100),COLUMN(E106)),"")) ->  | AJ122: =IF($AD122="","",IFERROR(SMALL(IF($AD122=$B$2:$V$22,ROW($B$2:$V$22)+COLUMN($B$2:$V$22)/100),COLUMN(F106)),"")) ->  | AK122: =IF($AD122="","",IFERROR(SMALL(IF($AD122=$B$2:$V$22,ROW($B$2:$V$22)+COLUMN($B$2:$V$22)/100),COLUMN(G106)),"")) -> 
AA123: =IF(COUNTIF(AB$17:AB123,AB123)=1,COUNT(AA$16:AA122)+1) -> FALSE | AE123: =IF($AD123="","",IFERROR(SMALL(IF($AD123=$B$2:$V$22,ROW($B$2:$V$22)+COLUMN($B$2:$V$22)/100),COLUMN(A107)),"")) ->  | AF123: =IF($AD123="","",IFERROR(SMALL(IF($AD123=$B$2:$V$22,ROW($B$2:$V$22)+COLUMN($B$2:$V$22)/100),COLUMN(B107)),"")) ->  | AG123: =IF($AD123="","",IFERROR(SMALL(IF($AD123=$B$2:$V$22,ROW($B$2:$V$22)+COLUMN($B$2:$V$22)/100),COLUMN(C107)),"")) ->  | AH123: =IF($AD123="","",IFERROR(SMALL(IF($AD123=$B$2:$V$22,ROW($B$2:$V$22)+COLUMN($B$2:$V$22)/100),COLUMN(D107)),"")) ->  | AI123: =IF($AD123="","",IFERROR(SMALL(IF($AD123=$B$2:$V$22,ROW($B$2:$V$22)+COLUMN($B$2:$V$22)/100),COLUMN(E107)),"")) ->  | AJ123: =IF($AD123="","",IFERROR(SMALL(IF($AD123=$B$2:$V$22,ROW($B$2:$V$22)+COLUMN($B$2:$V$22)/100),COLUMN(F107)),"")) ->  | AK123: =IF($AD123="","",IFERROR(SMALL(IF($AD123=$B$2:$V$22,ROW($B$2:$V$22)+COLUMN($B$2:$V$22)/100),COLUMN(G107)),"")) -> 
AA124: =IF(COUNTIF(AB$17:AB124,AB124)=1,COUNT(AA$16:AA123)+1) -> FALSE | AE124: =IF($AD124="","",IFERROR(SMALL(IF($AD124=$B$2:$V$22,ROW($B$2:$V$22)+COLUMN($B$2:$V$22)/100),COLUMN(A108)),"")) ->  | AF124: =IF($AD124="","",IFERROR(SMALL(IF($AD124=$B$2:$V$22,ROW($B$2:$V$22)+COLUMN($B$2:$V$22)/100),COLUMN(B108)),"")) ->  | AG124: =IF($AD124="","",IFERROR(SMALL(IF($AD124=$B$2:$V$22,ROW($B$2:$V$22)+COLUMN($B$2:$V$22)/100),COLUMN(C108)),"")) ->  | AH124: =IF($AD124="","",IFERROR(SMALL(IF($AD124=$B$2:$V$22,ROW($B$2:$V$22)+COLUMN($B$2:$V$22)/100),COLUMN(D108)),"")) ->  | AI124: =IF($AD124="","",IFERROR(SMALL(IF($AD124=$B$2:$V$22,ROW($B$2:$V$22)+COLUMN($B$2:$V$22)/100),COLUMN(E108)),"")) ->  | AJ124: =IF($AD124="","",IFERROR(SMALL(IF($AD124=$B$2:$V$22,ROW($B$2:$V$22)+COLUMN($B$2:$V$22)/100),COLUMN(F108)),"")) ->  | AK124: =IF($AD124="","",IFERROR(SMALL(IF($AD124=$B$2:$V$22,ROW($B$2:$V$22)+COLUMN($B$2:$V$22)/100),COLUMN(G108)),"")) -> 
AA125: =IF(COUNTIF(AB$17:AB125,AB125)=1,COUNT(AA$16:AA124)+1) -> FALSE | AE125: =IF($AD125="","",IFERROR(SMALL(IF($AD125=$B$2:$V$22,ROW($B$2:$V$22)+COLUMN($B$2:$V$22)/100),COLUMN(A109)),"")) ->  | AF125: =IF($AD125="","",IFERROR(SMALL(IF($AD125=$B$2:$V$22,ROW($B$2:$V$22)+COLUMN($B$2:$V$22)/100),COLUMN(B109)),"")) ->  | AG125: =IF($AD125="","",IFERROR(SMALL(IF($AD125=$B$2:$V$22,ROW($B$2:$V$22)+COLUMN($B$2:$V$22)/100),COLUMN(C109)),"")) ->  | AH125: =IF($AD125="","",IFERROR(SMALL(IF($AD125=$B$2:$V$22,ROW($B$2:$V$22)+COLUMN($B$2:$V$22)/100),COLUMN(D109)),"")) ->  | AI125: =IF($AD125="","",IFERROR(SMALL(IF($AD125=$B$2:$V$22,ROW($B$2:$V$22)+COLUMN($B$2:$V$22)/100),COLUMN(E109)),"")) ->  | AJ125: =IF($AD125="","",IFERROR(SMALL(IF($AD125=$B$2:$V$22,ROW($B$2:$V$22)+COLUMN($B$2:$V$22)/100),COLUMN(F109)),"")) ->  | AK125: =IF($AD125="","",IFERROR(SMALL(IF($AD125=$B$2:$V$22,ROW($B$2:$V$22)+COLUMN($B$2:$V$22)/100),COLUMN(G109)),"")) -> 
AA126: =IF(COUNTIF(AB$17:AB126,AB126)=1,COUNT(AA$16:AA125)+1) -> FALSE | AE126: =IF($AD126="","",IFERROR(SMALL(IF($AD126=$B$2:$V$22,ROW($B$2:$V$22)+COLUMN($B$2:$V$22)/100),COLUMN(A110)),"")) ->  | AF126: =IF($AD126="","",IFERROR(SMALL(IF($AD126=$B$2:$V$22,ROW($B$2:$V$22)+COLUMN($B$2:$V$22)/100),COLUMN(B110)),"")) ->  | AG126: =IF($AD126="","",IFERROR(SMALL(IF($AD126=$B$2:$V$22,ROW($B$2:$V$22)+COLUMN($B$2:$V$22)/100),COLUMN(C110)),"")) ->  | AH126: =IF($AD126="","",IFERROR(SMALL(IF($AD126=$B$2:$V$22,ROW($B$2:$V$22)+COLUMN($B$2:$V$22)/100),COLUMN(D110)),"")) ->  | AI126: =IF($AD126="","",IFERROR(SMALL(IF($AD126=$B$2:$V$22,ROW($B$2:$V$22)+COLUMN($B$2:$V$22)/100),COLUMN(E110)),"")) ->  | AJ126: =IF($AD126="","",IFERROR(SMALL(IF($AD126=$B$2:$V$22,ROW($B$2:$V$22)+COLUMN($B$2:$V$22)/100),COLUMN(F110)),"")) ->  | AK126: =IF($AD126="","",IFERROR(SMALL(IF($AD126=$B$2:$V$22,ROW($B$2:$V$22)+COLUMN($B$2:$V$22)/100),COLUMN(G110)),"")) -> 
AA127: =IF(COUNTIF(AB$17:AB127,AB127)=1,COUNT(AA$16:AA126)+1) -> FALSE | AE127: =IF($AD127="","",IFERROR(SMALL(IF($AD127=$B$2:$V$22,ROW($B$2:$V$22)+COLUMN($B$2:$V$22)/100),COLUMN(A111)),"")) ->  | AF127: =IF($AD127="","",IFERROR(SMALL(IF($AD127=$B$2:$V$22,ROW($B$2:$V$22)+COLUMN($B$2:$V$22)/100),COLUMN(B111)),"")) ->  | AG127: =IF($AD127="","",IFERROR(SMALL(IF($AD127=$B$2:$V$22,ROW($B$2:$V$22)+COLUMN($B$2:$V$22)/100),COLUMN(C111)),"")) ->  | AH127: =IF($AD127="","",IFERROR(SMALL(IF($AD127=$B$2:$V$22,ROW($B$2:$V$22)+COLUMN($B$2:$V$22)/100),COLUMN(D111)),"")) ->  | AI127: =IF($AD127="","",IFERROR(SMALL(IF($AD127=$B$2:$V$22,ROW($B$2:$V$22)+COLUMN($B$2:$V$22)/100),COLUMN(E111)),"")) ->  | AJ127: =IF($AD127="","",IFERROR(SMALL(IF($AD127=$B$2:$V$22,ROW($B$2:$V$22)+COLUMN($B$2:$V$22)/100),COLUMN(F111)),"")) ->  | AK127: =IF($AD127="","",IFERROR(SMALL(IF($AD127=$B$2:$V$22,ROW($B$2:$V$22)+COLUMN($B$2:$V$22)/100),COLUMN(G111)),"")) -> 
AA128: =IF(COUNTIF(AB$17:AB128,AB128)=1,COUNT(AA$16:AA127)+1) -> FALSE | AE128: =IF($AD128="","",IFERROR(SMALL(IF($AD128=$B$2:$V$22,ROW($B$2:$V$22)+COLUMN($B$2:$V$22)/100),COLUMN(A112)),"")) ->  | AF128: =IF($AD128="","",IFERROR(SMALL(IF($AD128=$B$2:$V$22,ROW($B$2:$V$22)+COLUMN($B$2:$V$22)/100),COLUMN(B112)),"")) ->  | AG128: =IF($AD128="","",IFERROR(SMALL(IF($AD128=$B$2:$V$22,ROW($B$2:$V$22)+COLUMN($B$2:$V$22)/100),COLUMN(C112)),"")) ->  | AH128: =IF($AD128="","",IFERROR(SMALL(IF($AD128=$B$2:$V$22,ROW($B$2:$V$22)+COLUMN($B$2:$V$22)/100),COLUMN(D112)),"")) ->  | AI128: =IF($AD128="","",IFERROR(SMALL(IF($AD128=$B$2:$V$22,ROW($B$2:$V$22)+COLUMN($B$2:$V$22)/100),COLUMN(E112)),"")) ->  | AJ128: =IF($AD128="","",IFERROR(SMALL(IF($AD128=$B$2:$V$22,ROW($B$2:$V$22)+COLUMN($B$2:$V$22)/100),COLUMN(F112)),"")) ->  | AK128: =IF($AD128="","",IFERROR(SMALL(IF($AD128=$B$2:$V$22,ROW($B$2:$V$22)+COLUMN($B$2:$V$22)/100),COLUMN(G112)),"")) -> 
AA129: =IF(COUNTIF(AB$17:AB129,AB129)=1,COUNT(AA$16:AA128)+1) -> FALSE | AE129: =IF($AD129="","",IFERROR(SMALL(IF($AD129=$B$2:$V$22,ROW($B$2:$V$22)+COLUMN($B$2:$V$22)/100),COLUMN(A113)),"")) ->  | AF129: =IF($AD129="","",IFERROR(SMALL(IF($AD129=$B$2:$V$22,ROW($B$2:$V$22)+COLUMN($B$2:$V$22)/100),COLUMN(B113)),"")) ->  | AG129: =IF($AD129="","",IFERROR(SMALL(IF($AD129=$B$2:$V$22,ROW($B$2:$V$22)+COLUMN($B$2:$V$22)/100),COLUMN(C113)),"")) ->  | AH129: =IF($AD129="","",IFERROR(SMALL(IF($AD129=$B$2:$V$22,ROW($B$2:$V$22)+COLUMN($B$2:$V$22)/100),COLUMN(D113)),"")) ->  | AI129: =IF($AD129="","",IFERROR(SMALL(IF($AD129=$B$2:$V$22,ROW($B$2:$V$22)+COLUMN($B$2:$V$22)/100),COLUMN(E113)),"")) ->  | AJ129: =IF($AD129="","",IFERROR(SMALL(IF($AD129=$B$2:$V$22,ROW($B$2:$V$22)+COLUMN($B$2:$V$22)/100),COLUMN(F113)),"")) ->  | AK129: =IF($AD129="","",IFERROR(SMALL(IF($AD129=$B$2:$V$22,ROW($B$2:$V$22)+COLUMN($B$2:$V$22)/100),COLUMN(G113)),"")) -> 
AA130: =IF(COUNTIF(AB$17:AB130,AB130)=1,COUNT(AA$16:AA129)+1) -> FALSE | AE130: =IF($AD130="","",IFERROR(SMALL(IF($AD130=$B$2:$V$22,ROW($B$2:$V$22)+COLUMN($B$2:$V$22)/100),COLUMN(A114)),"")) ->  | AF130: =IF($AD130="","",IFERROR(SMALL(IF($AD130=$B$2:$V$22,ROW($B$2:$V$22)+COLUMN($B$2:$V$22)/100),COLUMN(B114)),"")) ->  | AG130: =IF($AD130="","",IFERROR(SMALL(IF($AD130=$B$2:$V$22,ROW($B$2:$V$22)+COLUMN($B$2:$V$22)/100),COLUMN(C114)),"")) ->  | AH130: =IF($AD130="","",IFERROR(SMALL(IF($AD130=$B$2:$V$22,ROW($B$2:$V$22)+COLUMN($B$2:$V$22)/100),COLUMN(D114)),"")) ->  | AI130: =IF($AD130="","",IFERROR(SMALL(IF($AD130=$B$2:$V$22,ROW($B$2:$V$22)+COLUMN($B$2:$V$22)/100),COLUMN(E114)),"")) ->  | AJ130: =IF($AD130="","",IFERROR(SMALL(IF($AD130=$B$2:$V$22,ROW($B$2:$V$22)+COLUMN($B$2:$V$22)/100),COLUMN(F114)),"")) ->  | AK130: =IF($AD130="","",IFERROR(SMALL(IF($AD130=$B$2:$V$22,ROW($B$2:$V$22)+COLUMN($B$2:$V$22)/100),COLUMN(G114)),"")) -> 
AA131: =IF(COUNTIF(AB$17:AB131,AB131)=1,COUNT(AA$16:AA130)+1) -> FALSE | AE131: =IF($AD131="","",IFERROR(SMALL(IF($AD131=$B$2:$V$22,ROW($B$2:$V$22)+COLUMN($B$2:$V$22)/100),COLUMN(A115)),"")) ->  | AF131: =IF($AD131="","",IFERROR(SMALL(IF($AD131=$B$2:$V$22,ROW($B$2:$V$22)+COLUMN($B$2:$V$22)/100),COLUMN(B115)),"")) ->  | AG131: =IF($AD131="","",IFERROR(SMALL(IF($AD131=$B$2:$V$22,ROW($B$2:$V$22)+COLUMN($B$2:$V$22)/100),COLUMN(C115)),"")) ->  | AH131: =IF($AD131="","",IFERROR(SMALL(IF($AD131=$B$2:$V$22,ROW($B$2:$V$22)+COLUMN($B$2:$V$22)/100),COLUMN(D115)),"")) ->  | AI131: =IF($AD131="","",IFERROR(SMALL(IF($AD131=$B$2:$V$22,ROW($B$2:$V$22)+COLUMN($B$2:$V$22)/100),COLUMN(E115)),"")) ->  | AJ131: =IF($AD131="","",IFERROR(SMALL(IF($AD131=$B$2:$V$22,ROW($B$2:$V$22)+COLUMN($B$2:$V$22)/100),COLUMN(F115)),"")) ->  | AK131: =IF($AD131="","",IFERROR(SMALL(IF($AD131=$B$2:$V$22,ROW($B$2:$V$22)+COLUMN($B$2:$V$22)/100),COLUMN(G115)),"")) -> 
AA132: =IF(COUNTIF(AB$17:AB132,AB132)=1,COUNT(AA$16:AA131)+1) -> FALSE | AE132: =IF($AD132="","",IFERROR(SMALL(IF($AD132=$B$2:$V$22,ROW($B$2:$V$22)+COLUMN($B$2:$V$22)/100),COLUMN(A116)),"")) ->  | AF132: =IF($AD132="","",IFERROR(SMALL(IF($AD132=$B$2:$V$22,ROW($B$2:$V$22)+COLUMN($B$2:$V$22)/100),COLUMN(B116)),"")) ->  | AG132: =IF($AD132="","",IFERROR(SMALL(IF($AD132=$B$2:$V$22,ROW($B$2:$V$22)+COLUMN($B$2:$V$22)/100),COLUMN(C116)),"")) ->  | AH132: =IF($AD132="","",IFERROR(SMALL(IF($AD132=$B$2:$V$22,ROW($B$2:$V$22)+COLUMN($B$2:$V$22)/100),COLUMN(D116)),"")) ->  | AI132: =IF($AD132="","",IFERROR(SMALL(IF($AD132=$B$2:$V$22,ROW($B$2:$V$22)+COLUMN($B$2:$V$22)/100),COLUMN(E116)),"")) ->  | AJ132: =IF($AD132="","",IFERROR(SMALL(IF($AD132=$B$2:$V$22,ROW($B$2:$V$22)+COLUMN($B$2:$V$22)/100),COLUMN(F116)),"")) ->  | AK132: =IF($AD132="","",IFERROR(SMALL(IF($AD132=$B$2:$V$22,ROW($B$2:$V$22)+COLUMN($B$2:$V$22)/100),COLUMN(G116)),"")) -> 
AA133: =IF(COUNTIF(AB$17:AB133,AB133)=1,COUNT(AA$16:AA132)+1) -> FALSE | AE133: =IF($AD133="","",IFERROR(SMALL(IF($AD133=$B$2:$V$22,ROW($B$2:$V$22)+COLUMN($B$2:$V$22)/100),COLUMN(A117)),"")) ->  | AF133: =IF($AD133="","",IFERROR(SMALL(IF($AD133=$B$2:$V$22,ROW($B$2:$V$22)+COLUMN($B$2:$V$22)/100),COLUMN(B117)),"")) ->  | AG133: =IF($AD133="","",IFERROR(SMALL(IF($AD133=$B$2:$V$22,ROW($B$2:$V$22)+COLUMN($B$2:$V$22)/100),COLUMN(C117)),"")) ->  | AH133: =IF($AD133="","",IFERROR(SMALL(IF($AD133=$B$2:$V$22,ROW($B$2:$V$22)+COLUMN($B$2:$V$22)/100),COLUMN(D117)),"")) ->  | AI133: =IF($AD133="","",IFERROR(SMALL(IF($AD133=$B$2:$V$22,ROW($B$2:$V$22)+COLUMN($B$2:$V$22)/100),COLUMN(E117)),"")) ->  | AJ133: =IF($AD133="","",IFERROR(SMALL(IF($AD133=$B$2:$V$22,ROW($B$2:$V$22)+COLUMN($B$2:$V$22)/100),COLUMN(F117)),"")) ->  | AK133: =IF($AD133="","",IFERROR(SMALL(IF($AD133=$B$2:$V$22,ROW($B$2:$V$22)+COLUMN($B$2:$V$22)/100),COLUMN(G117)),"")) -> 
AA134: =IF(COUNTIF(AB$17:AB134,AB134)=1,COUNT(AA$16:AA133)+1) -> FALSE | AE134: =IF($AD134="","",IFERROR(SMALL(IF($AD134=$B$2:$V$22,ROW($B$2:$V$22)+COLUMN($B$2:$V$22)/100),COLUMN(A118)),"")) ->  | AF134: =IF($AD134="","",IFERROR(SMALL(IF($AD134=$B$2:$V$22,ROW($B$2:$V$22)+COLUMN($B$2:$V$22)/100),COLUMN(B118)),"")) ->  | AG134: =IF($AD134="","",IFERROR(SMALL(IF($AD134=$B$2:$V$22,ROW($B$2:$V$22)+COLUMN($B$2:$V$22)/100),COLUMN(C118)),"")) ->  | AH134: =IF($AD134="","",IFERROR(SMALL(IF($AD134=$B$2:$V$22,ROW($B$2:$V$22)+COLUMN($B$2:$V$22)/100),COLUMN(D118)),"")) ->  | AI134: =IF($AD134="","",IFERROR(SMALL(IF($AD134=$B$2:$V$22,ROW($B$2:$V$22)+COLUMN($B$2:$V$22)/100),COLUMN(E118)),"")) ->  | AJ134: =IF($AD134="","",IFERROR(SMALL(IF($AD134=$B$2:$V$22,ROW($B$2:$V$22)+COLUMN($B$2:$V$22)/100),COLUMN(F118)),"")) ->  | AK134: =IF($AD134="","",IFERROR(SMALL(IF($AD134=$B$2:$V$22,ROW($B$2:$V$22)+COLUMN($B$2:$V$22)/100),COLUMN(G118)),"")) -> 
AA135: =IF(COUNTIF(AB$17:AB135,AB135)=1,COUNT(AA$16:AA134)+1) -> FALSE | AE135: =IF($AD135="","",IFERROR(SMALL(IF($AD135=$B$2:$V$22,ROW($B$2:$V$22)+COLUMN($B$2:$V$22)/100),COLUMN(A119)),"")) ->  | AF135: =IF($AD135="","",IFERROR(SMALL(IF($AD135=$B$2:$V$22,ROW($B$2:$V$22)+COLUMN($B$2:$V$22)/100),COLUMN(B119)),"")) ->  | AG135: =IF($AD135="","",IFERROR(SMALL(IF($AD135=$B$2:$V$22,ROW($B$2:$V$22)+COLUMN($B$2:$V$22)/100),COLUMN(C119)),"")) ->  | AH135: =IF($AD135="","",IFERROR(SMALL(IF($AD135=$B$2:$V$22,ROW($B$2:$V$22)+COLUMN($B$2:$V$22)/100),COLUMN(D119)),"")) ->  | AI135: =IF($AD135="","",IFERROR(SMALL(IF($AD135=$B$2:$V$22,ROW($B$2:$V$22)+COLUMN($B$2:$V$22)/100),COLUMN(E119)),"")) ->  | AJ135: =IF($AD135="","",IFERROR(SMALL(IF($AD135=$B$2:$V$22,ROW($B$2:$V$22)+COLUMN($B$2:$V$22)/100),COLUMN(F119)),"")) ->  | AK135: =IF($AD135="","",IFERROR(SMALL(IF($AD135=$B$2:$V$22,ROW($B$2:$V$22)+COLUMN($B$2:$V$22)/100),COLUMN(G119)),"")) -> 
AA136: =IF(COUNTIF(AB$17:AB136,AB136)=1,COUNT(AA$16:AA135)+1) -> FALSE | AE136: =IF($AD136="","",IFERROR(SMALL(IF($AD136=$B$2:$V$22,ROW($B$2:$V$22)+COLUMN($B$2:$V$22)/100),COLUMN(A120)),"")) ->  | AF136: =IF($AD136="","",IFERROR(SMALL(IF($AD136=$B$2:$V$22,ROW($B$2:$V$22)+COLUMN($B$2:$V$22)/100),COLUMN(B120)),"")) ->  | AG136: =IF($AD136="","",IFERROR(SMALL(IF($AD136=$B$2:$V$22,ROW($B$2:$V$22)+COLUMN($B$2:$V$22)/100),COLUMN(C120)),"")) ->  | AH136: =IF($AD136="","",IFERROR(SMALL(IF($AD136=$B$2:$V$22,ROW($B$2:$V$22)+COLUMN($B$2:$V$22)/100),COLUMN(D120)),"")) ->  | AI136: =IF($AD136="","",IFERROR(SMALL(IF($AD136=$B$2:$V$22,ROW($B$2:$V$22)+COLUMN($B$2:$V$22)/100),COLUMN(E120)),"")) ->  | AJ136: =IF($AD136="","",IFERROR(SMALL(IF($AD136=$B$2:$V$22,ROW($B$2:$V$22)+COLUMN($B$2:$V$22)/100),COLUMN(F120)),"")) ->  | AK136: =IF($AD136="","",IFERROR(SMALL(IF($AD136=$B$2:$V$22,ROW($B$2:$V$22)+COLUMN($B$2:$V$22)/100),COLUMN(G120)),"")) -> 
AA137: =IF(COUNTIF(AB$17:AB137,AB137)=1,COUNT(AA$16:AA136)+1) -> FALSE | AE137: =IF($AD137="","",IFERROR(SMALL(IF($AD137=$B$2:$V$22,ROW($B$2:$V$22)+COLUMN($B$2:$V$22)/100),COLUMN(A121)),"")) ->  | AF137: =IF($AD137="","",IFERROR(SMALL(IF($AD137=$B$2:$V$22,ROW($B$2:$V$22)+COLUMN($B$2:$V$22)/100),COLUMN(B121)),"")) ->  | AG137: =IF($AD137="","",IFERROR(SMALL(IF($AD137=$B$2:$V$22,ROW($B$2:$V$22)+COLUMN($B$2:$V$22)/100),COLUMN(C121)),"")) ->  | AH137: =IF($AD137="","",IFERROR(SMALL(IF($AD137=$B$2:$V$22,ROW($B$2:$V$22)+COLUMN($B$2:$V$22)/100),COLUMN(D121)),"")) ->  | AI137: =IF($AD137="","",IFERROR(SMALL(IF($AD137=$B$2:$V$22,ROW($B$2:$V$22)+COLUMN($B$2:$V$22)/100),COLUMN(E121)),"")) ->  | AJ137: =IF($AD137="","",IFERROR(SMALL(IF($AD137=$B$2:$V$22,ROW($B$2:$V$22)+COLUMN($B$2:$V$22)/100),COLUMN(F121)),"")) ->  | AK137: =IF($AD137="","",IFERROR(SMALL(IF($AD137=$B$2:$V$22,ROW($B$2:$V$22)+COLUMN($B$2:$V$22)/100),COLUMN(G121)),"")) -> 
AA138: =IF(COUNTIF(AB$17:AB138,AB138)=1,COUNT(AA$16:AA137)+1) -> FALSE | AE138: =IF($AD138="","",IFERROR(SMALL(IF($AD138=$B$2:$V$22,ROW($B$2:$V$22)+COLUMN($B$2:$V$22)/100),COLUMN(A122)),"")) ->  | AF138: =IF($AD138="","",IFERROR(SMALL(IF($AD138=$B$2:$V$22,ROW($B$2:$V$22)+COLUMN($B$2:$V$22)/100),COLUMN(B122)),"")) ->  | AG138: =IF($AD138="","",IFERROR(SMALL(IF($AD138=$B$2:$V$22,ROW($B$2:$V$22)+COLUMN($B$2:$V$22)/100),COLUMN(C122)),"")) ->  | AH138: =IF($AD138="","",IFERROR(SMALL(IF($AD138=$B$2:$V$22,ROW($B$2:$V$22)+COLUMN($B$2:$V$22)/100),COLUMN(D122)),"")) ->  | AI138: =IF($AD138="","",IFERROR(SMALL(IF($AD138=$B$2:$V$22,ROW($B$2:$V$22)+COLUMN($B$2:$V$22)/100),COLUMN(E122)),"")) ->  | AJ138: =IF($AD138="","",IFERROR(SMALL(IF($AD138=$B$2:$V$22,ROW($B$2:$V$22)+COLUMN($B$2:$V$22)/100),COLUMN(F122)),"")) ->  | AK138: =IF($AD138="","",IFERROR(SMALL(IF($AD138=$B$2:$V$22,ROW($B$2:$V$22)+COLUMN($B$2:$V$22)/100),COLUMN(G122)),"")) -> 
AA139: =IF(COUNTIF(AB$17:AB139,AB139)=1,COUNT(AA$16:AA138)+1) -> FALSE | AE139: =IF($AD139="","",IFERROR(SMALL(IF($AD139=$B$2:$V$22,ROW($B$2:$V$22)+COLUMN($B$2:$V$22)/100),COLUMN(A123)),"")) ->  | AF139: =IF($AD139="","",IFERROR(SMALL(IF($AD139=$B$2:$V$22,ROW($B$2:$V$22)+COLUMN($B$2:$V$22)/100),COLUMN(B123)),"")) ->  | AG139: =IF($AD139="","",IFERROR(SMALL(IF($AD139=$B$2:$V$22,ROW($B$2:$V$22)+COLUMN($B$2:$V$22)/100),COLUMN(C123)),"")) ->  | AH139: =IF($AD139="","",IFERROR(SMALL(IF($AD139=$B$2:$V$22,ROW($B$2:$V$22)+COLUMN($B$2:$V$22)/100),COLUMN(D123)),"")) ->  | AI139: =IF($AD139="","",IFERROR(SMALL(IF($AD139=$B$2:$V$22,ROW($B$2:$V$22)+COLUMN($B$2:$V$22)/100),COLUMN(E123)),"")) ->  | AJ139: =IF($AD139="","",IFERROR(SMALL(IF($AD139=$B$2:$V$22,ROW($B$2:$V$22)+COLUMN($B$2:$V$22)/100),COLUMN(F123)),"")) ->  | AK139: =IF($AD139="","",IFERROR(SMALL(IF($AD139=$B$2:$V$22,ROW($B$2:$V$22)+COLUMN($B$2:$V$22)/100),COLUMN(G123)),"")) -> 
AA140: =IF(COUNTIF(AB$17:AB140,AB140)=1,COUNT(AA$16:AA139)+1) -> FALSE | AE140: =IF($AD140="","",IFERROR(SMALL(IF($AD140=$B$2:$V$22,ROW($B$2:$V$22)+COLUMN($B$2:$V$22)/100),COLUMN(A124)),"")) ->  | AF140: =IF($AD140="","",IFERROR(SMALL(IF($AD140=$B$2:$V$22,ROW($B$2:$V$22)+COLUMN($B$2:$V$22)/100),COLUMN(B124)),"")) ->  | AG140: =IF($AD140="","",IFERROR(SMALL(IF($AD140=$B$2:$V$22,ROW($B$2:$V$22)+COLUMN($B$2:$V$22)/100),COLUMN(C124)),"")) ->  | AH140: =IF($AD140="","",IFERROR(SMALL(IF($AD140=$B$2:$V$22,ROW($B$2:$V$22)+COLUMN($B$2:$V$22)/100),COLUMN(D124)),"")) ->  | AI140: =IF($AD140="","",IFERROR(SMALL(IF($AD140=$B$2:$V$22,ROW($B$2:$V$22)+COLUMN($B$2:$V$22)/100),COLUMN(E124)),"")) ->  | AJ140: =IF($AD140="","",IFERROR(SMALL(IF($AD140=$B$2:$V$22,ROW($B$2:$V$22)+COLUMN($B$2:$V$22)/100),COLUMN(F124)),"")) ->  | AK140: =IF($AD140="","",IFERROR(SMALL(IF($AD140=$B$2:$V$22,ROW($B$2:$V$22)+COLUMN($B$2:$V$22)/100),COLUMN(G124)),"")) -> 
AA141: =IF(COUNTIF(AB$17:AB141,AB141)=1,COUNT(AA$16:AA140)+1) -> FALSE | AE141: =IF($AD141="","",IFERROR(SMALL(IF($AD141=$B$2:$V$22,ROW($B$2:$V$22)+COLUMN($B$2:$V$22)/100),COLUMN(A125)),"")) ->  | AF141: =IF($AD141="","",IFERROR(SMALL(IF($AD141=$B$2:$V$22,ROW($B$2:$V$22)+COLUMN($B$2:$V$22)/100),COLUMN(B125)),"")) ->  | AG141: =IF($AD141="","",IFERROR(SMALL(IF($AD141=$B$2:$V$22,ROW($B$2:$V$22)+COLUMN($B$2:$V$22)/100),COLUMN(C125)),"")) ->  | AH141: =IF($AD141="","",IFERROR(SMALL(IF($AD141=$B$2:$V$22,ROW($B$2:$V$22)+COLUMN($B$2:$V$22)/100),COLUMN(D125)),"")) ->  | AI141: =IF($AD141="","",IFERROR(SMALL(IF($AD141=$B$2:$V$22,ROW($B$2:$V$22)+COLUMN($B$2:$V$22)/100),COLUMN(E125)),"")) ->  | AJ141: =IF($AD141="","",IFERROR(SMALL(IF($AD141=$B$2:$V$22,ROW($B$2:$V$22)+COLUMN($B$2:$V$22)/100),COLUMN(F125)),"")) ->  | AK141: =IF($AD141="","",IFERROR(SMALL(IF($AD141=$B$2:$V$22,ROW($B$2:$V$22)+COLUMN($B$2:$V$22)/100),COLUMN(G125)),"")) -> 
AA142: =IF(COUNTIF(AB$17:AB142,AB142)=1,COUNT(AA$16:AA141)+1) -> FALSE | AE142: =IF($AD142="","",IFERROR(SMALL(IF($AD142=$B$2:$V$22,ROW($B$2:$V$22)+COLUMN($B$2:$V$22)/100),COLUMN(A126)),"")) ->  | AF142: =IF($AD142="","",IFERROR(SMALL(IF($AD142=$B$2:$V$22,ROW($B$2:$V$22)+COLUMN($B$2:$V$22)/100),COLUMN(B126)),"")) ->  | AG142: =IF($AD142="","",IFERROR(SMALL(IF($AD142=$B$2:$V$22,ROW($B$2:$V$22)+COLUMN($B$2:$V$22)/100),COLUMN(C126)),"")) ->  | AH142: =IF($AD142="","",IFERROR(SMALL(IF($AD142=$B$2:$V$22,ROW($B$2:$V$22)+COLUMN($B$2:$V$22)/100),COLUMN(D126)),"")) ->  | AI142: =IF($AD142="","",IFERROR(SMALL(IF($AD142=$B$2:$V$22,ROW($B$2:$V$22)+COLUMN($B$2:$V$22)/100),COLUMN(E126)),"")) ->  | AJ142: =IF($AD142="","",IFERROR(SMALL(IF($AD142=$B$2:$V$22,ROW($B$2:$V$22)+COLUMN($B$2:$V$22)/100),COLUMN(F126)),"")) ->  | AK142: =IF($AD142="","",IFERROR(SMALL(IF($AD142=$B$2:$V$22,ROW($B$2:$V$22)+COLUMN($B$2:$V$22)/100),COLUMN(G126)),"")) -> 
AA143: =IF(COUNTIF(AB$17:AB143,AB143)=1,COUNT(AA$16:AA142)+1) -> FALSE | AE143: =IF($AD143="","",IFERROR(SMALL(IF($AD143=$B$2:$V$22,ROW($B$2:$V$22)+COLUMN($B$2:$V$22)/100),COLUMN(A127)),"")) ->  | AF143: =IF($AD143="","",IFERROR(SMALL(IF($AD143=$B$2:$V$22,ROW($B$2:$V$22)+COLUMN($B$2:$V$22)/100),COLUMN(B127)),"")) ->  | AG143: =IF($AD143="","",IFERROR(SMALL(IF($AD143=$B$2:$V$22,ROW($B$2:$V$22)+COLUMN($B$2:$V$22)/100),COLUMN(C127)),"")) ->  | AH143: =IF($AD143="","",IFERROR(SMALL(IF($AD143=$B$2:$V$22,ROW($B$2:$V$22)+COLUMN($B$2:$V$22)/100),COLUMN(D127)),"")) ->  | AI143: =IF($AD143="","",IFERROR(SMALL(IF($AD143=$B$2:$V$22,ROW($B$2:$V$22)+COLUMN($B$2:$V$22)/100),COLUMN(E127)),"")) ->  | AJ143: =IF($AD143="","",IFERROR(SMALL(IF($AD143=$B$2:$V$22,ROW($B$2:$V$22)+COLUMN($B$2:$V$22)/100),COLUMN(F127)),"")) ->  | AK143: =IF($AD143="","",IFERROR(SMALL(IF($AD143=$B$2:$V$22,ROW($B$2:$V$22)+COLUMN($B$2:$V$22)/100),COLUMN(G127)),"")) -> 
AA144: =IF(COUNTIF(AB$17:AB144,AB144)=1,COUNT(AA$16:AA143)+1) -> FALSE | AE144: =IF($AD144="","",IFERROR(SMALL(IF($AD144=$B$2:$V$22,ROW($B$2:$V$22)+COLUMN($B$2:$V$22)/100),COLUMN(A128)),"")) ->  | AF144: =IF($AD144="","",IFERROR(SMALL(IF($AD144=$B$2:$V$22,ROW($B$2:$V$22)+COLUMN($B$2:$V$22)/100),COLUMN(B128)),"")) ->  | AG144: =IF($AD144="","",IFERROR(SMALL(IF($AD144=$B$2:$V$22,ROW($B$2:$V$22)+COLUMN($B$2:$V$22)/100),COLUMN(C128)),"")) ->  | AH144: =IF($AD144="","",IFERROR(SMALL(IF($AD144=$B$2:$V$22,ROW($B$2:$V$22)+COLUMN($B$2:$V$22)/100),COLUMN(D128)),"")) ->  | AI144: =IF($AD144="","",IFERROR(SMALL(IF($AD144=$B$2:$V$22,ROW($B$2:$V$22)+COLUMN($B$2:$V$22)/100),COLUMN(E128)),"")) ->  | AJ144: =IF($AD144="","",IFERROR(SMALL(IF($AD144=$B$2:$V$22,ROW($B$2:$V$22)+COLUMN($B$2:$V$22)/100),COLUMN(F128)),"")) ->  | AK144: =IF($AD144="","",IFERROR(SMALL(IF($AD144=$B$2:$V$22,ROW($B$2:$V$22)+COLUMN($B$2:$V$22)/100),COLUMN(G128)),"")) -> 
AA145: =IF(COUNTIF(AB$17:AB145,AB145)=1,COUNT(AA$16:AA144)+1) -> FALSE | AE145: =IF($AD145="","",IFERROR(SMALL(IF($AD145=$B$2:$V$22,ROW($B$2:$V$22)+COLUMN($B$2:$V$22)/100),COLUMN(A129)),"")) ->  | AF145: =IF($AD145="","",IFERROR(SMALL(IF($AD145=$B$2:$V$22,ROW($B$2:$V$22)+COLUMN($B$2:$V$22)/100),COLUMN(B129)),"")) ->  | AG145: =IF($AD145="","",IFERROR(SMALL(IF($AD145=$B$2:$V$22,ROW($B$2:$V$22)+COLUMN($B$2:$V$22)/100),COLUMN(C129)),"")) ->  | AH145: =IF($AD145="","",IFERROR(SMALL(IF($AD145=$B$2:$V$22,ROW($B$2:$V$22)+COLUMN($B$2:$V$22)/100),COLUMN(D129)),"")) ->  | AI145: =IF($AD145="","",IFERROR(SMALL(IF($AD145=$B$2:$V$22,ROW($B$2:$V$22)+COLUMN($B$2:$V$22)/100),COLUMN(E129)),"")) ->  | AJ145: =IF($AD145="","",IFERROR(SMALL(IF($AD145=$B$2:$V$22,ROW($B$2:$V$22)+COLUMN($B$2:$V$22)/100),COLUMN(F129)),"")) ->  | AK145: =IF($AD145="","",IFERROR(SMALL(IF($AD145=$B$2:$V$22,ROW($B$2:$V$22)+COLUMN($B$2:$V$22)/100),COLUMN(G129)),"")) -> 
AA146: =IF(COUNTIF(AB$17:AB146,AB146)=1,COUNT(AA$16:AA145)+1) -> FALSE | AB146: =IFERROR(SMALL($B$24:$U$43,COUNTIF($B$24:$U$43,0)+ROW(AB130)),"") ->  | AC146: =IFERROR(VLOOKUP(ROW(AC130),AA$17:AB$216,2,0),"") ->  | AD146: =IFERROR(AC146*$AA$3,"") ->  | AE146: =IF($AD146="","",IFERROR(SMALL(IF($AD146=$B$2:$V$22,ROW($B$2:$V$22)+COLUMN($B$2:$V$22)/100),COLUMN(A130)),"")) ->  | AF146: =IF($AD146="","",IFERROR(SMALL(IF($AD146=$B$2:$V$22,ROW($B$2:$V$22)+COLUMN($B$2:$V$22)/100),COLUMN(B130)),"")) ->  | AG146: =IF($AD146="","",IFERROR(SMALL(IF($AD146=$B$2:$V$22,ROW($B$2:$V$22)+COLUMN($B$2:$V$22)/100),COLUMN(C130)),"")) ->  | AH146: =IF($AD146="","",IFERROR(SMALL(IF($AD146=$B$2:$V$22,ROW($B$2:$V$22)+COLUMN($B$2:$V$22)/100),COLUMN(D130)),"")) ->  | AI146: =IF($AD146="","",IFERROR(SMALL(IF($AD146=$B$2:$V$22,ROW($B$2:$V$22)+COLUMN($B$2:$V$22)/100),COLUMN(E130)),"")) ->  | AJ146: =IF($AD146="","",IFERROR(SMALL(IF($AD146=$B$2:$V$22,ROW($B$2:$V$22)+COLUMN($B$2:$V$22)/100),COLUMN(F130)),"")) ->  | AK146: =IF($AD146="","",IFERROR(SMALL(IF($AD146=$B$2:$V$22,ROW($B$2:$V$22)+COLUMN($B$2:$V$22)/100),COLUMN(G130)),"")) -> 
AA147: =IF(COUNTIF(AB$17:AB147,AB147)=1,COUNT(AA$16:AA146)+1) -> FALSE | AE147: =IF($AD147="","",IFERROR(SMALL(IF($AD147=$B$2:$V$22,ROW($B$2:$V$22)+COLUMN($B$2:$V$22)/100),COLUMN(A131)),"")) ->  | AF147: =IF($AD147="","",IFERROR(SMALL(IF($AD147=$B$2:$V$22,ROW($B$2:$V$22)+COLUMN($B$2:$V$22)/100),COLUMN(B131)),"")) ->  | AG147: =IF($AD147="","",IFERROR(SMALL(IF($AD147=$B$2:$V$22,ROW($B$2:$V$22)+COLUMN($B$2:$V$22)/100),COLUMN(C131)),"")) ->  | AH147: =IF($AD147="","",IFERROR(SMALL(IF($AD147=$B$2:$V$22,ROW($B$2:$V$22)+COLUMN($B$2:$V$22)/100),COLUMN(D131)),"")) ->  | AI147: =IF($AD147="","",IFERROR(SMALL(IF($AD147=$B$2:$V$22,ROW($B$2:$V$22)+COLUMN($B$2:$V$22)/100),COLUMN(E131)),"")) ->  | AJ147: =IF($AD147="","",IFERROR(SMALL(IF($AD147=$B$2:$V$22,ROW($B$2:$V$22)+COLUMN($B$2:$V$22)/100),COLUMN(F131)),"")) ->  | AK147: =IF($AD147="","",IFERROR(SMALL(IF($AD147=$B$2:$V$22,ROW($B$2:$V$22)+COLUMN($B$2:$V$22)/100),COLUMN(G131)),"")) -> 
AA148: =IF(COUNTIF(AB$17:AB148,AB148)=1,COUNT(AA$16:AA147)+1) -> FALSE | AE148: =IF($AD148="","",IFERROR(SMALL(IF($AD148=$B$2:$V$22,ROW($B$2:$V$22)+COLUMN($B$2:$V$22)/100),COLUMN(A132)),"")) ->  | AF148: =IF($AD148="","",IFERROR(SMALL(IF($AD148=$B$2:$V$22,ROW($B$2:$V$22)+COLUMN($B$2:$V$22)/100),COLUMN(B132)),"")) ->  | AG148: =IF($AD148="","",IFERROR(SMALL(IF($AD148=$B$2:$V$22,ROW($B$2:$V$22)+COLUMN($B$2:$V$22)/100),COLUMN(C132)),"")) ->  | AH148: =IF($AD148="","",IFERROR(SMALL(IF($AD148=$B$2:$V$22,ROW($B$2:$V$22)+COLUMN($B$2:$V$22)/100),COLUMN(D132)),"")) ->  | AI148: =IF($AD148="","",IFERROR(SMALL(IF($AD148=$B$2:$V$22,ROW($B$2:$V$22)+COLUMN($B$2:$V$22)/100),COLUMN(E132)),"")) ->  | AJ148: =IF($AD148="","",IFERROR(SMALL(IF($AD148=$B$2:$V$22,ROW($B$2:$V$22)+COLUMN($B$2:$V$22)/100),COLUMN(F132)),"")) ->  | AK148: =IF($AD148="","",IFERROR(SMALL(IF($AD148=$B$2:$V$22,ROW($B$2:$V$22)+COLUMN($B$2:$V$22)/100),COLUMN(G132)),"")) -> 
AA149: =IF(COUNTIF(AB$17:AB149,AB149)=1,COUNT(AA$16:AA148)+1) -> FALSE | AE149: =IF($AD149="","",IFERROR(SMALL(IF($AD149=$B$2:$V$22,ROW($B$2:$V$22)+COLUMN($B$2:$V$22)/100),COLUMN(A133)),"")) ->  | AF149: =IF($AD149="","",IFERROR(SMALL(IF($AD149=$B$2:$V$22,ROW($B$2:$V$22)+COLUMN($B$2:$V$22)/100),COLUMN(B133)),"")) ->  | AG149: =IF($AD149="","",IFERROR(SMALL(IF($AD149=$B$2:$V$22,ROW($B$2:$V$22)+COLUMN($B$2:$V$22)/100),COLUMN(C133)),"")) ->  | AH149: =IF($AD149="","",IFERROR(SMALL(IF($AD149=$B$2:$V$22,ROW($B$2:$V$22)+COLUMN($B$2:$V$22)/100),COLUMN(D133)),"")) ->  | AI149: =IF($AD149="","",IFERROR(SMALL(IF($AD149=$B$2:$V$22,ROW($B$2:$V$22)+COLUMN($B$2:$V$22)/100),COLUMN(E133)),"")) ->  | AJ149: =IF($AD149="","",IFERROR(SMALL(IF($AD149=$B$2:$V$22,ROW($B$2:$V$22)+COLUMN($B$2:$V$22)/100),COLUMN(F133)),"")) ->  | AK149: =IF($AD149="","",IFERROR(SMALL(IF($AD149=$B$2:$V$22,ROW($B$2:$V$22)+COLUMN($B$2:$V$22)/100),COLUMN(G133)),"")) -> 
AA150: =IF(COUNTIF(AB$17:AB150,AB150)=1,COUNT(AA$16:AA149)+1) -> FALSE | AE150: =IF($AD150="","",IFERROR(SMALL(IF($AD150=$B$2:$V$22,ROW($B$2:$V$22)+COLUMN($B$2:$V$22)/100),COLUMN(A134)),"")) ->  | AF150: =IF($AD150="","",IFERROR(SMALL(IF($AD150=$B$2:$V$22,ROW($B$2:$V$22)+COLUMN($B$2:$V$22)/100),COLUMN(B134)),"")) ->  | AG150: =IF($AD150="","",IFERROR(SMALL(IF($AD150=$B$2:$V$22,ROW($B$2:$V$22)+COLUMN($B$2:$V$22)/100),COLUMN(C134)),"")) ->  | AH150: =IF($AD150="","",IFERROR(SMALL(IF($AD150=$B$2:$V$22,ROW($B$2:$V$22)+COLUMN($B$2:$V$22)/100),COLUMN(D134)),"")) ->  | AI150: =IF($AD150="","",IFERROR(SMALL(IF($AD150=$B$2:$V$22,ROW($B$2:$V$22)+COLUMN($B$2:$V$22)/100),COLUMN(E134)),"")) ->  | AJ150: =IF($AD150="","",IFERROR(SMALL(IF($AD150=$B$2:$V$22,ROW($B$2:$V$22)+COLUMN($B$2:$V$22)/100),COLUMN(F134)),"")) ->  | AK150: =IF($AD150="","",IFERROR(SMALL(IF($AD150=$B$2:$V$22,ROW($B$2:$V$22)+COLUMN($B$2:$V$22)/100),COLUMN(G134)),"")) -> 
AA151: =IF(COUNTIF(AB$17:AB151,AB151)=1,COUNT(AA$16:AA150)+1) -> FALSE | AE151: =IF($AD151="","",IFERROR(SMALL(IF($AD151=$B$2:$V$22,ROW($B$2:$V$22)+COLUMN($B$2:$V$22)/100),COLUMN(A135)),"")) ->  | AF151: =IF($AD151="","",IFERROR(SMALL(IF($AD151=$B$2:$V$22,ROW($B$2:$V$22)+COLUMN($B$2:$V$22)/100),COLUMN(B135)),"")) ->  | AG151: =IF($AD151="","",IFERROR(SMALL(IF($AD151=$B$2:$V$22,ROW($B$2:$V$22)+COLUMN($B$2:$V$22)/100),COLUMN(C135)),"")) ->  | AH151: =IF($AD151="","",IFERROR(SMALL(IF($AD151=$B$2:$V$22,ROW($B$2:$V$22)+COLUMN($B$2:$V$22)/100),COLUMN(D135)),"")) ->  | AI151: =IF($AD151="","",IFERROR(SMALL(IF($AD151=$B$2:$V$22,ROW($B$2:$V$22)+COLUMN($B$2:$V$22)/100),COLUMN(E135)),"")) ->  | AJ151: =IF($AD151="","",IFERROR(SMALL(IF($AD151=$B$2:$V$22,ROW($B$2:$V$22)+COLUMN($B$2:$V$22)/100),COLUMN(F135)),"")) ->  | AK151: =IF($AD151="","",IFERROR(SMALL(IF($AD151=$B$2:$V$22,ROW($B$2:$V$22)+COLUMN($B$2:$V$22)/100),COLUMN(G135)),"")) -> 
AA152: =IF(COUNTIF(AB$17:AB152,AB152)=1,COUNT(AA$16:AA151)+1) -> FALSE | AE152: =IF($AD152="","",IFERROR(SMALL(IF($AD152=$B$2:$V$22,ROW($B$2:$V$22)+COLUMN($B$2:$V$22)/100),COLUMN(A136)),"")) ->  | AF152: =IF($AD152="","",IFERROR(SMALL(IF($AD152=$B$2:$V$22,ROW($B$2:$V$22)+COLUMN($B$2:$V$22)/100),COLUMN(B136)),"")) ->  | AG152: =IF($AD152="","",IFERROR(SMALL(IF($AD152=$B$2:$V$22,ROW($B$2:$V$22)+COLUMN($B$2:$V$22)/100),COLUMN(C136)),"")) ->  | AH152: =IF($AD152="","",IFERROR(SMALL(IF($AD152=$B$2:$V$22,ROW($B$2:$V$22)+COLUMN($B$2:$V$22)/100),COLUMN(D136)),"")) ->  | AI152: =IF($AD152="","",IFERROR(SMALL(IF($AD152=$B$2:$V$22,ROW($B$2:$V$22)+COLUMN($B$2:$V$22)/100),COLUMN(E136)),"")) ->  | AJ152: =IF($AD152="","",IFERROR(SMALL(IF($AD152=$B$2:$V$22,ROW($B$2:$V$22)+COLUMN($B$2:$V$22)/100),COLUMN(F136)),"")) ->  | AK152: =IF($AD152="","",IFERROR(SMALL(IF($AD152=$B$2:$V$22,ROW($B$2:$V$22)+COLUMN($B$2:$V$22)/100),COLUMN(G136)),"")) -> 
AA153: =IF(COUNTIF(AB$17:AB153,AB153)=1,COUNT(AA$16:AA152)+1) -> FALSE | AE153: =IF($AD153="","",IFERROR(SMALL(IF($AD153=$B$2:$V$22,ROW($B$2:$V$22)+COLUMN($B$2:$V$22)/100),COLUMN(A137)),"")) ->  | AF153: =IF($AD153="","",IFERROR(SMALL(IF($AD153=$B$2:$V$22,ROW($B$2:$V$22)+COLUMN($B$2:$V$22)/100),COLUMN(B137)),"")) ->  | AG153: =IF($AD153="","",IFERROR(SMALL(IF($AD153=$B$2:$V$22,ROW($B$2:$V$22)+COLUMN($B$2:$V$22)/100),COLUMN(C137)),"")) ->  | AH153: =IF($AD153="","",IFERROR(SMALL(IF($AD153=$B$2:$V$22,ROW($B$2:$V$22)+COLUMN($B$2:$V$22)/100),COLUMN(D137)),"")) ->  | AI153: =IF($AD153="","",IFERROR(SMALL(IF($AD153=$B$2:$V$22,ROW($B$2:$V$22)+COLUMN($B$2:$V$22)/100),COLUMN(E137)),"")) ->  | AJ153: =IF($AD153="","",IFERROR(SMALL(IF($AD153=$B$2:$V$22,ROW($B$2:$V$22)+COLUMN($B$2:$V$22)/100),COLUMN(F137)),"")) ->  | AK153: =IF($AD153="","",IFERROR(SMALL(IF($AD153=$B$2:$V$22,ROW($B$2:$V$22)+COLUMN($B$2:$V$22)/100),COLUMN(G137)),"")) -> 
AA154: =IF(COUNTIF(AB$17:AB154,AB154)=1,COUNT(AA$16:AA153)+1) -> FALSE | AE154: =IF($AD154="","",IFERROR(SMALL(IF($AD154=$B$2:$V$22,ROW($B$2:$V$22)+COLUMN($B$2:$V$22)/100),COLUMN(A138)),"")) ->  | AF154: =IF($AD154="","",IFERROR(SMALL(IF($AD154=$B$2:$V$22,ROW($B$2:$V$22)+COLUMN($B$2:$V$22)/100),COLUMN(B138)),"")) ->  | AG154: =IF($AD154="","",IFERROR(SMALL(IF($AD154=$B$2:$V$22,ROW($B$2:$V$22)+COLUMN($B$2:$V$22)/100),COLUMN(C138)),"")) ->  | AH154: =IF($AD154="","",IFERROR(SMALL(IF($AD154=$B$2:$V$22,ROW($B$2:$V$22)+COLUMN($B$2:$V$22)/100),COLUMN(D138)),"")) ->  | AI154: =IF($AD154="","",IFERROR(SMALL(IF($AD154=$B$2:$V$22,ROW($B$2:$V$22)+COLUMN($B$2:$V$22)/100),COLUMN(E138)),"")) ->  | AJ154: =IF($AD154="","",IFERROR(SMALL(IF($AD154=$B$2:$V$22,ROW($B$2:$V$22)+COLUMN($B$2:$V$22)/100),COLUMN(F138)),"")) ->  | AK154: =IF($AD154="","",IFERROR(SMALL(IF($AD154=$B$2:$V$22,ROW($B$2:$V$22)+COLUMN($B$2:$V$22)/100),COLUMN(G138)),"")) -> 
AA155: =IF(COUNTIF(AB$17:AB155,AB155)=1,COUNT(AA$16:AA154)+1) -> FALSE | AE155: =IF($AD155="","",IFERROR(SMALL(IF($AD155=$B$2:$V$22,ROW($B$2:$V$22)+COLUMN($B$2:$V$22)/100),COLUMN(A139)),"")) ->  | AF155: =IF($AD155="","",IFERROR(SMALL(IF($AD155=$B$2:$V$22,ROW($B$2:$V$22)+COLUMN($B$2:$V$22)/100),COLUMN(B139)),"")) ->  | AG155: =IF($AD155="","",IFERROR(SMALL(IF($AD155=$B$2:$V$22,ROW($B$2:$V$22)+COLUMN($B$2:$V$22)/100),COLUMN(C139)),"")) ->  | AH155: =IF($AD155="","",IFERROR(SMALL(IF($AD155=$B$2:$V$22,ROW($B$2:$V$22)+COLUMN($B$2:$V$22)/100),COLUMN(D139)),"")) ->  | AI155: =IF($AD155="","",IFERROR(SMALL(IF($AD155=$B$2:$V$22,ROW($B$2:$V$22)+COLUMN($B$2:$V$22)/100),COLUMN(E139)),"")) ->  | AJ155: =IF($AD155="","",IFERROR(SMALL(IF($AD155=$B$2:$V$22,ROW($B$2:$V$22)+COLUMN($B$2:$V$22)/100),COLUMN(F139)),"")) ->  | AK155: =IF($AD155="","",IFERROR(SMALL(IF($AD155=$B$2:$V$22,ROW($B$2:$V$22)+COLUMN($B$2:$V$22)/100),COLUMN(G139)),"")) -> 
AA156: =IF(COUNTIF(AB$17:AB156,AB156)=1,COUNT(AA$16:AA155)+1) -> FALSE | AE156: =IF($AD156="","",IFERROR(SMALL(IF($AD156=$B$2:$V$22,ROW($B$2:$V$22)+COLUMN($B$2:$V$22)/100),COLUMN(A140)),"")) ->  | AF156: =IF($AD156="","",IFERROR(SMALL(IF($AD156=$B$2:$V$22,ROW($B$2:$V$22)+COLUMN($B$2:$V$22)/100),COLUMN(B140)),"")) ->  | AG156: =IF($AD156="","",IFERROR(SMALL(IF($AD156=$B$2:$V$22,ROW($B$2:$V$22)+COLUMN($B$2:$V$22)/100),COLUMN(C140)),"")) ->  | AH156: =IF($AD156="","",IFERROR(SMALL(IF($AD156=$B$2:$V$22,ROW($B$2:$V$22)+COLUMN($B$2:$V$22)/100),COLUMN(D140)),"")) ->  | AI156: =IF($AD156="","",IFERROR(SMALL(IF($AD156=$B$2:$V$22,ROW($B$2:$V$22)+COLUMN($B$2:$V$22)/100),COLUMN(E140)),"")) ->  | AJ156: =IF($AD156="","",IFERROR(SMALL(IF($AD156=$B$2:$V$22,ROW($B$2:$V$22)+COLUMN($B$2:$V$22)/100),COLUMN(F140)),"")) ->  | AK156: =IF($AD156="","",IFERROR(SMALL(IF($AD156=$B$2:$V$22,ROW($B$2:$V$22)+COLUMN($B$2:$V$22)/100),COLUMN(G140)),"")) -> 
AA157: =IF(COUNTIF(AB$17:AB157,AB157)=1,COUNT(AA$16:AA156)+1) -> FALSE | AE157: =IF($AD157="","",IFERROR(SMALL(IF($AD157=$B$2:$V$22,ROW($B$2:$V$22)+COLUMN($B$2:$V$22)/100),COLUMN(A141)),"")) ->  | AF157: =IF($AD157="","",IFERROR(SMALL(IF($AD157=$B$2:$V$22,ROW($B$2:$V$22)+COLUMN($B$2:$V$22)/100),COLUMN(B141)),"")) ->  | AG157: =IF($AD157="","",IFERROR(SMALL(IF($AD157=$B$2:$V$22,ROW($B$2:$V$22)+COLUMN($B$2:$V$22)/100),COLUMN(C141)),"")) ->  | AH157: =IF($AD157="","",IFERROR(SMALL(IF($AD157=$B$2:$V$22,ROW($B$2:$V$22)+COLUMN($B$2:$V$22)/100),COLUMN(D141)),"")) ->  | AI157: =IF($AD157="","",IFERROR(SMALL(IF($AD157=$B$2:$V$22,ROW($B$2:$V$22)+COLUMN($B$2:$V$22)/100),COLUMN(E141)),"")) ->  | AJ157: =IF($AD157="","",IFERROR(SMALL(IF($AD157=$B$2:$V$22,ROW($B$2:$V$22)+COLUMN($B$2:$V$22)/100),COLUMN(F141)),"")) ->  | AK157: =IF($AD157="","",IFERROR(SMALL(IF($AD157=$B$2:$V$22,ROW($B$2:$V$22)+COLUMN($B$2:$V$22)/100),COLUMN(G141)),"")) -> 
AA158: =IF(COUNTIF(AB$17:AB158,AB158)=1,COUNT(AA$16:AA157)+1) -> FALSE | AE158: =IF($AD158="","",IFERROR(SMALL(IF($AD158=$B$2:$V$22,ROW($B$2:$V$22)+COLUMN($B$2:$V$22)/100),COLUMN(A142)),"")) ->  | AF158: =IF($AD158="","",IFERROR(SMALL(IF($AD158=$B$2:$V$22,ROW($B$2:$V$22)+COLUMN($B$2:$V$22)/100),COLUMN(B142)),"")) ->  | AG158: =IF($AD158="","",IFERROR(SMALL(IF($AD158=$B$2:$V$22,ROW($B$2:$V$22)+COLUMN($B$2:$V$22)/100),COLUMN(C142)),"")) ->  | AH158: =IF($AD158="","",IFERROR(SMALL(IF($AD158=$B$2:$V$22,ROW($B$2:$V$22)+COLUMN($B$2:$V$22)/100),COLUMN(D142)),"")) ->  | AI158: =IF($AD158="","",IFERROR(SMALL(IF($AD158=$B$2:$V$22,ROW($B$2:$V$22)+COLUMN($B$2:$V$22)/100),COLUMN(E142)),"")) ->  | AJ158: =IF($AD158="","",IFERROR(SMALL(IF($AD158=$B$2:$V$22,ROW($B$2:$V$22)+COLUMN($B$2:$V$22)/100),COLUMN(F142)),"")) ->  | AK158: =IF($AD158="","",IFERROR(SMALL(IF($AD158=$B$2:$V$22,ROW($B$2:$V$22)+COLUMN($B$2:$V$22)/100),COLUMN(G142)),"")) -> 
AA159: =IF(COUNTIF(AB$17:AB159,AB159)=1,COUNT(AA$16:AA158)+1) -> FALSE | AE159: =IF($AD159="","",IFERROR(SMALL(IF($AD159=$B$2:$V$22,ROW($B$2:$V$22)+COLUMN($B$2:$V$22)/100),COLUMN(A143)),"")) ->  | AF159: =IF($AD159="","",IFERROR(SMALL(IF($AD159=$B$2:$V$22,ROW($B$2:$V$22)+COLUMN($B$2:$V$22)/100),COLUMN(B143)),"")) ->  | AG159: =IF($AD159="","",IFERROR(SMALL(IF($AD159=$B$2:$V$22,ROW($B$2:$V$22)+COLUMN($B$2:$V$22)/100),COLUMN(C143)),"")) ->  | AH159: =IF($AD159="","",IFERROR(SMALL(IF($AD159=$B$2:$V$22,ROW($B$2:$V$22)+COLUMN($B$2:$V$22)/100),COLUMN(D143)),"")) ->  | AI159: =IF($AD159="","",IFERROR(SMALL(IF($AD159=$B$2:$V$22,ROW($B$2:$V$22)+COLUMN($B$2:$V$22)/100),COLUMN(E143)),"")) ->  | AJ159: =IF($AD159="","",IFERROR(SMALL(IF($AD159=$B$2:$V$22,ROW($B$2:$V$22)+COLUMN($B$2:$V$22)/100),COLUMN(F143)),"")) ->  | AK159: =IF($AD159="","",IFERROR(SMALL(IF($AD159=$B$2:$V$22,ROW($B$2:$V$22)+COLUMN($B$2:$V$22)/100),COLUMN(G143)),"")) -> 
AA160: =IF(COUNTIF(AB$17:AB160,AB160)=1,COUNT(AA$16:AA159)+1) -> FALSE | AE160: =IF($AD160="","",IFERROR(SMALL(IF($AD160=$B$2:$V$22,ROW($B$2:$V$22)+COLUMN($B$2:$V$22)/100),COLUMN(A144)),"")) ->  | AF160: =IF($AD160="","",IFERROR(SMALL(IF($AD160=$B$2:$V$22,ROW($B$2:$V$22)+COLUMN($B$2:$V$22)/100),COLUMN(B144)),"")) ->  | AG160: =IF($AD160="","",IFERROR(SMALL(IF($AD160=$B$2:$V$22,ROW($B$2:$V$22)+COLUMN($B$2:$V$22)/100),COLUMN(C144)),"")) ->  | AH160: =IF($AD160="","",IFERROR(SMALL(IF($AD160=$B$2:$V$22,ROW($B$2:$V$22)+COLUMN($B$2:$V$22)/100),COLUMN(D144)),"")) ->  | AI160: =IF($AD160="","",IFERROR(SMALL(IF($AD160=$B$2:$V$22,ROW($B$2:$V$22)+COLUMN($B$2:$V$22)/100),COLUMN(E144)),"")) ->  | AJ160: =IF($AD160="","",IFERROR(SMALL(IF($AD160=$B$2:$V$22,ROW($B$2:$V$22)+COLUMN($B$2:$V$22)/100),COLUMN(F144)),"")) ->  | AK160: =IF($AD160="","",IFERROR(SMALL(IF($AD160=$B$2:$V$22,ROW($B$2:$V$22)+COLUMN($B$2:$V$22)/100),COLUMN(G144)),"")) -> 
AA161: =IF(COUNTIF(AB$17:AB161,AB161)=1,COUNT(AA$16:AA160)+1) -> FALSE | AE161: =IF($AD161="","",IFERROR(SMALL(IF($AD161=$B$2:$V$22,ROW($B$2:$V$22)+COLUMN($B$2:$V$22)/100),COLUMN(A145)),"")) ->  | AF161: =IF($AD161="","",IFERROR(SMALL(IF($AD161=$B$2:$V$22,ROW($B$2:$V$22)+COLUMN($B$2:$V$22)/100),COLUMN(B145)),"")) ->  | AG161: =IF($AD161="","",IFERROR(SMALL(IF($AD161=$B$2:$V$22,ROW($B$2:$V$22)+COLUMN($B$2:$V$22)/100),COLUMN(C145)),"")) ->  | AH161: =IF($AD161="","",IFERROR(SMALL(IF($AD161=$B$2:$V$22,ROW($B$2:$V$22)+COLUMN($B$2:$V$22)/100),COLUMN(D145)),"")) ->  | AI161: =IF($AD161="","",IFERROR(SMALL(IF($AD161=$B$2:$V$22,ROW($B$2:$V$22)+COLUMN($B$2:$V$22)/100),COLUMN(E145)),"")) ->  | AJ161: =IF($AD161="","",IFERROR(SMALL(IF($AD161=$B$2:$V$22,ROW($B$2:$V$22)+COLUMN($B$2:$V$22)/100),COLUMN(F145)),"")) ->  | AK161: =IF($AD161="","",IFERROR(SMALL(IF($AD161=$B$2:$V$22,ROW($B$2:$V$22)+COLUMN($B$2:$V$22)/100),COLUMN(G145)),"")) -> 
AA162: =IF(COUNTIF(AB$17:AB162,AB162)=1,COUNT(AA$16:AA161)+1) -> FALSE | AE162: =IF($AD162="","",IFERROR(SMALL(IF($AD162=$B$2:$V$22,ROW($B$2:$V$22)+COLUMN($B$2:$V$22)/100),COLUMN(A146)),"")) ->  | AF162: =IF($AD162="","",IFERROR(SMALL(IF($AD162=$B$2:$V$22,ROW($B$2:$V$22)+COLUMN($B$2:$V$22)/100),COLUMN(B146)),"")) ->  | AG162: =IF($AD162="","",IFERROR(SMALL(IF($AD162=$B$2:$V$22,ROW($B$2:$V$22)+COLUMN($B$2:$V$22)/100),COLUMN(C146)),"")) ->  | AH162: =IF($AD162="","",IFERROR(SMALL(IF($AD162=$B$2:$V$22,ROW($B$2:$V$22)+COLUMN($B$2:$V$22)/100),COLUMN(D146)),"")) ->  | AI162: =IF($AD162="","",IFERROR(SMALL(IF($AD162=$B$2:$V$22,ROW($B$2:$V$22)+COLUMN($B$2:$V$22)/100),COLUMN(E146)),"")) ->  | AJ162: =IF($AD162="","",IFERROR(SMALL(IF($AD162=$B$2:$V$22,ROW($B$2:$V$22)+COLUMN($B$2:$V$22)/100),COLUMN(F146)),"")) ->  | AK162: =IF($AD162="","",IFERROR(SMALL(IF($AD162=$B$2:$V$22,ROW($B$2:$V$22)+COLUMN($B$2:$V$22)/100),COLUMN(G146)),"")) -> 
AA163: =IF(COUNTIF(AB$17:AB163,AB163)=1,COUNT(AA$16:AA162)+1) -> FALSE | AE163: =IF($AD163="","",IFERROR(SMALL(IF($AD163=$B$2:$V$22,ROW($B$2:$V$22)+COLUMN($B$2:$V$22)/100),COLUMN(A147)),"")) ->  | AF163: =IF($AD163="","",IFERROR(SMALL(IF($AD163=$B$2:$V$22,ROW($B$2:$V$22)+COLUMN($B$2:$V$22)/100),COLUMN(B147)),"")) ->  | AG163: =IF($AD163="","",IFERROR(SMALL(IF($AD163=$B$2:$V$22,ROW($B$2:$V$22)+COLUMN($B$2:$V$22)/100),COLUMN(C147)),"")) ->  | AH163: =IF($AD163="","",IFERROR(SMALL(IF($AD163=$B$2:$V$22,ROW($B$2:$V$22)+COLUMN($B$2:$V$22)/100),COLUMN(D147)),"")) ->  | AI163: =IF($AD163="","",IFERROR(SMALL(IF($AD163=$B$2:$V$22,ROW($B$2:$V$22)+COLUMN($B$2:$V$22)/100),COLUMN(E147)),"")) ->  | AJ163: =IF($AD163="","",IFERROR(SMALL(IF($AD163=$B$2:$V$22,ROW($B$2:$V$22)+COLUMN($B$2:$V$22)/100),COLUMN(F147)),"")) ->  | AK163: =IF($AD163="","",IFERROR(SMALL(IF($AD163=$B$2:$V$22,ROW($B$2:$V$22)+COLUMN($B$2:$V$22)/100),COLUMN(G147)),"")) -> 
AA164: =IF(COUNTIF(AB$17:AB164,AB164)=1,COUNT(AA$16:AA163)+1) -> FALSE | AE164: =IF($AD164="","",IFERROR(SMALL(IF($AD164=$B$2:$V$22,ROW($B$2:$V$22)+COLUMN($B$2:$V$22)/100),COLUMN(A148)),"")) ->  | AF164: =IF($AD164="","",IFERROR(SMALL(IF($AD164=$B$2:$V$22,ROW($B$2:$V$22)+COLUMN($B$2:$V$22)/100),COLUMN(B148)),"")) ->  | AG164: =IF($AD164="","",IFERROR(SMALL(IF($AD164=$B$2:$V$22,ROW($B$2:$V$22)+COLUMN($B$2:$V$22)/100),COLUMN(C148)),"")) ->  | AH164: =IF($AD164="","",IFERROR(SMALL(IF($AD164=$B$2:$V$22,ROW($B$2:$V$22)+COLUMN($B$2:$V$22)/100),COLUMN(D148)),"")) ->  | AI164: =IF($AD164="","",IFERROR(SMALL(IF($AD164=$B$2:$V$22,ROW($B$2:$V$22)+COLUMN($B$2:$V$22)/100),COLUMN(E148)),"")) ->  | AJ164: =IF($AD164="","",IFERROR(SMALL(IF($AD164=$B$2:$V$22,ROW($B$2:$V$22)+COLUMN($B$2:$V$22)/100),COLUMN(F148)),"")) ->  | AK164: =IF($AD164="","",IFERROR(SMALL(IF($AD164=$B$2:$V$22,ROW($B$2:$V$22)+COLUMN($B$2:$V$22)/100),COLUMN(G148)),"")) -> 
AA165: =IF(COUNTIF(AB$17:AB165,AB165)=1,COUNT(AA$16:AA164)+1) -> FALSE | AE165: =IF($AD165="","",IFERROR(SMALL(IF($AD165=$B$2:$V$22,ROW($B$2:$V$22)+COLUMN($B$2:$V$22)/100),COLUMN(A149)),"")) ->  | AF165: =IF($AD165="","",IFERROR(SMALL(IF($AD165=$B$2:$V$22,ROW($B$2:$V$22)+COLUMN($B$2:$V$22)/100),COLUMN(B149)),"")) ->  | AG165: =IF($AD165="","",IFERROR(SMALL(IF($AD165=$B$2:$V$22,ROW($B$2:$V$22)+COLUMN($B$2:$V$22)/100),COLUMN(C149)),"")) ->  | AH165: =IF($AD165="","",IFERROR(SMALL(IF($AD165=$B$2:$V$22,ROW($B$2:$V$22)+COLUMN($B$2:$V$22)/100),COLUMN(D149)),"")) ->  | AI165: =IF($AD165="","",IFERROR(SMALL(IF($AD165=$B$2:$V$22,ROW($B$2:$V$22)+COLUMN($B$2:$V$22)/100),COLUMN(E149)),"")) ->  | AJ165: =IF($AD165="","",IFERROR(SMALL(IF($AD165=$B$2:$V$22,ROW($B$2:$V$22)+COLUMN($B$2:$V$22)/100),COLUMN(F149)),"")) ->  | AK165: =IF($AD165="","",IFERROR(SMALL(IF($AD165=$B$2:$V$22,ROW($B$2:$V$22)+COLUMN($B$2:$V$22)/100),COLUMN(G149)),"")) -> 
AA166: =IF(COUNTIF(AB$17:AB166,AB166)=1,COUNT(AA$16:AA165)+1) -> FALSE | AE166: =IF($AD166="","",IFERROR(SMALL(IF($AD166=$B$2:$V$22,ROW($B$2:$V$22)+COLUMN($B$2:$V$22)/100),COLUMN(A150)),"")) ->  | AF166: =IF($AD166="","",IFERROR(SMALL(IF($AD166=$B$2:$V$22,ROW($B$2:$V$22)+COLUMN($B$2:$V$22)/100),COLUMN(B150)),"")) ->  | AG166: =IF($AD166="","",IFERROR(SMALL(IF($AD166=$B$2:$V$22,ROW($B$2:$V$22)+COLUMN($B$2:$V$22)/100),COLUMN(C150)),"")) ->  | AH166: =IF($AD166="","",IFERROR(SMALL(IF($AD166=$B$2:$V$22,ROW($B$2:$V$22)+COLUMN($B$2:$V$22)/100),COLUMN(D150)),"")) ->  | AI166: =IF($AD166="","",IFERROR(SMALL(IF($AD166=$B$2:$V$22,ROW($B$2:$V$22)+COLUMN($B$2:$V$22)/100),COLUMN(E150)),"")) ->  | AJ166: =IF($AD166="","",IFERROR(SMALL(IF($AD166=$B$2:$V$22,ROW($B$2:$V$22)+COLUMN($B$2:$V$22)/100),COLUMN(F150)),"")) ->  | AK166: =IF($AD166="","",IFERROR(SMALL(IF($AD166=$B$2:$V$22,ROW($B$2:$V$22)+COLUMN($B$2:$V$22)/100),COLUMN(G150)),"")) -> 
AA167: =IF(COUNTIF(AB$17:AB167,AB167)=1,COUNT(AA$16:AA166)+1) -> FALSE | AE167: =IF($AD167="","",IFERROR(SMALL(IF($AD167=$B$2:$V$22,ROW($B$2:$V$22)+COLUMN($B$2:$V$22)/100),COLUMN(A151)),"")) ->  | AF167: =IF($AD167="","",IFERROR(SMALL(IF($AD167=$B$2:$V$22,ROW($B$2:$V$22)+COLUMN($B$2:$V$22)/100),COLUMN(B151)),"")) ->  | AG167: =IF($AD167="","",IFERROR(SMALL(IF($AD167=$B$2:$V$22,ROW($B$2:$V$22)+COLUMN($B$2:$V$22)/100),COLUMN(C151)),"")) ->  | AH167: =IF($AD167="","",IFERROR(SMALL(IF($AD167=$B$2:$V$22,ROW($B$2:$V$22)+COLUMN($B$2:$V$22)/100),COLUMN(D151)),"")) ->  | AI167: =IF($AD167="","",IFERROR(SMALL(IF($AD167=$B$2:$V$22,ROW($B$2:$V$22)+COLUMN($B$2:$V$22)/100),COLUMN(E151)),"")) ->  | AJ167: =IF($AD167="","",IFERROR(SMALL(IF($AD167=$B$2:$V$22,ROW($B$2:$V$22)+COLUMN($B$2:$V$22)/100),COLUMN(F151)),"")) ->  | AK167: =IF($AD167="","",IFERROR(SMALL(IF($AD167=$B$2:$V$22,ROW($B$2:$V$22)+COLUMN($B$2:$V$22)/100),COLUMN(G151)),"")) -> 
AA168: =IF(COUNTIF(AB$17:AB168,AB168)=1,COUNT(AA$16:AA167)+1) -> FALSE | AE168: =IF($AD168="","",IFERROR(SMALL(IF($AD168=$B$2:$V$22,ROW($B$2:$V$22)+COLUMN($B$2:$V$22)/100),COLUMN(A152)),"")) ->  | AF168: =IF($AD168="","",IFERROR(SMALL(IF($AD168=$B$2:$V$22,ROW($B$2:$V$22)+COLUMN($B$2:$V$22)/100),COLUMN(B152)),"")) ->  | AG168: =IF($AD168="","",IFERROR(SMALL(IF($AD168=$B$2:$V$22,ROW($B$2:$V$22)+COLUMN($B$2:$V$22)/100),COLUMN(C152)),"")) ->  | AH168: =IF($AD168="","",IFERROR(SMALL(IF($AD168=$B$2:$V$22,ROW($B$2:$V$22)+COLUMN($B$2:$V$22)/100),COLUMN(D152)),"")) ->  | AI168: =IF($AD168="","",IFERROR(SMALL(IF($AD168=$B$2:$V$22,ROW($B$2:$V$22)+COLUMN($B$2:$V$22)/100),COLUMN(E152)),"")) ->  | AJ168: =IF($AD168="","",IFERROR(SMALL(IF($AD168=$B$2:$V$22,ROW($B$2:$V$22)+COLUMN($B$2:$V$22)/100),COLUMN(F152)),"")) ->  | AK168: =IF($AD168="","",IFERROR(SMALL(IF($AD168=$B$2:$V$22,ROW($B$2:$V$22)+COLUMN($B$2:$V$22)/100),COLUMN(G152)),"")) -> 
AA169: =IF(COUNTIF(AB$17:AB169,AB169)=1,COUNT(AA$16:AA168)+1) -> FALSE | AE169: =IF($AD169="","",IFERROR(SMALL(IF($AD169=$B$2:$V$22,ROW($B$2:$V$22)+COLUMN($B$2:$V$22)/100),COLUMN(A153)),"")) ->  | AF169: =IF($AD169="","",IFERROR(SMALL(IF($AD169=$B$2:$V$22,ROW($B$2:$V$22)+COLUMN($B$2:$V$22)/100),COLUMN(B153)),"")) ->  | AG169: =IF($AD169="","",IFERROR(SMALL(IF($AD169=$B$2:$V$22,ROW($B$2:$V$22)+COLUMN($B$2:$V$22)/100),COLUMN(C153)),"")) ->  | AH169: =IF($AD169="","",IFERROR(SMALL(IF($AD169=$B$2:$V$22,ROW($B$2:$V$22)+COLUMN($B$2:$V$22)/100),COLUMN(D153)),"")) ->  | AI169: =IF($AD169="","",IFERROR(SMALL(IF($AD169=$B$2:$V$22,ROW($B$2:$V$22)+COLUMN($B$2:$V$22)/100),COLUMN(E153)),"")) ->  | AJ169: =IF($AD169="","",IFERROR(SMALL(IF($AD169=$B$2:$V$22,ROW($B$2:$V$22)+COLUMN($B$2:$V$22)/100),COLUMN(F153)),"")) ->  | AK169: =IF($AD169="","",IFERROR(SMALL(IF($AD169=$B$2:$V$22,ROW($B$2:$V$22)+COLUMN($B$2:$V$22)/100),COLUMN(G153)),"")) -> 
AA170: =IF(COUNTIF(AB$17:AB170,AB170)=1,COUNT(AA$16:AA169)+1) -> FALSE | AE170: =IF($AD170="","",IFERROR(SMALL(IF($AD170=$B$2:$V$22,ROW($B$2:$V$22)+COLUMN($B$2:$V$22)/100),COLUMN(A154)),"")) ->  | AF170: =IF($AD170="","",IFERROR(SMALL(IF($AD170=$B$2:$V$22,ROW($B$2:$V$22)+COLUMN($B$2:$V$22)/100),COLUMN(B154)),"")) ->  | AG170: =IF($AD170="","",IFERROR(SMALL(IF($AD170=$B$2:$V$22,ROW($B$2:$V$22)+COLUMN($B$2:$V$22)/100),COLUMN(C154)),"")) ->  | AH170: =IF($AD170="","",IFERROR(SMALL(IF($AD170=$B$2:$V$22,ROW($B$2:$V$22)+COLUMN($B$2:$V$22)/100),COLUMN(D154)),"")) ->  | AI170: =IF($AD170="","",IFERROR(SMALL(IF($AD170=$B$2:$V$22,ROW($B$2:$V$22)+COLUMN($B$2:$V$22)/100),COLUMN(E154)),"")) ->  | AJ170: =IF($AD170="","",IFERROR(SMALL(IF($AD170=$B$2:$V$22,ROW($B$2:$V$22)+COLUMN($B$2:$V$22)/100),COLUMN(F154)),"")) ->  | AK170: =IF($AD170="","",IFERROR(SMALL(IF($AD170=$B$2:$V$22,ROW($B$2:$V$22)+COLUMN($B$2:$V$22)/100),COLUMN(G154)),"")) -> 
AA171: =IF(COUNTIF(AB$17:AB171,AB171)=1,COUNT(AA$16:AA170)+1) -> FALSE | AE171: =IF($AD171="","",IFERROR(SMALL(IF($AD171=$B$2:$V$22,ROW($B$2:$V$22)+COLUMN($B$2:$V$22)/100),COLUMN(A155)),"")) ->  | AF171: =IF($AD171="","",IFERROR(SMALL(IF($AD171=$B$2:$V$22,ROW($B$2:$V$22)+COLUMN($B$2:$V$22)/100),COLUMN(B155)),"")) ->  | AG171: =IF($AD171="","",IFERROR(SMALL(IF($AD171=$B$2:$V$22,ROW($B$2:$V$22)+COLUMN($B$2:$V$22)/100),COLUMN(C155)),"")) ->  | AH171: =IF($AD171="","",IFERROR(SMALL(IF($AD171=$B$2:$V$22,ROW($B$2:$V$22)+COLUMN($B$2:$V$22)/100),COLUMN(D155)),"")) ->  | AI171: =IF($AD171="","",IFERROR(SMALL(IF($AD171=$B$2:$V$22,ROW($B$2:$V$22)+COLUMN($B$2:$V$22)/100),COLUMN(E155)),"")) ->  | AJ171: =IF($AD171="","",IFERROR(SMALL(IF($AD171=$B$2:$V$22,ROW($B$2:$V$22)+COLUMN($B$2:$V$22)/100),COLUMN(F155)),"")) ->  | AK171: =IF($AD171="","",IFERROR(SMALL(IF($AD171=$B$2:$V$22,ROW($B$2:$V$22)+COLUMN($B$2:$V$22)/100),COLUMN(G155)),"")) -> 
AA172: =IF(COUNTIF(AB$17:AB172,AB172)=1,COUNT(AA$16:AA171)+1) -> FALSE | AE172: =IF($AD172="","",IFERROR(SMALL(IF($AD172=$B$2:$V$22,ROW($B$2:$V$22)+COLUMN($B$2:$V$22)/100),COLUMN(A156)),"")) ->  | AF172: =IF($AD172="","",IFERROR(SMALL(IF($AD172=$B$2:$V$22,ROW($B$2:$V$22)+COLUMN($B$2:$V$22)/100),COLUMN(B156)),"")) ->  | AG172: =IF($AD172="","",IFERROR(SMALL(IF($AD172=$B$2:$V$22,ROW($B$2:$V$22)+COLUMN($B$2:$V$22)/100),COLUMN(C156)),"")) ->  | AH172: =IF($AD172="","",IFERROR(SMALL(IF($AD172=$B$2:$V$22,ROW($B$2:$V$22)+COLUMN($B$2:$V$22)/100),COLUMN(D156)),"")) ->  | AI172: =IF($AD172="","",IFERROR(SMALL(IF($AD172=$B$2:$V$22,ROW($B$2:$V$22)+COLUMN($B$2:$V$22)/100),COLUMN(E156)),"")) ->  | AJ172: =IF($AD172="","",IFERROR(SMALL(IF($AD172=$B$2:$V$22,ROW($B$2:$V$22)+COLUMN($B$2:$V$22)/100),COLUMN(F156)),"")) ->  | AK172: =IF($AD172="","",IFERROR(SMALL(IF($AD172=$B$2:$V$22,ROW($B$2:$V$22)+COLUMN($B$2:$V$22)/100),COLUMN(G156)),"")) -> 
AA173: =IF(COUNTIF(AB$17:AB173,AB173)=1,COUNT(AA$16:AA172)+1) -> FALSE | AE173: =IF($AD173="","",IFERROR(SMALL(IF($AD173=$B$2:$V$22,ROW($B$2:$V$22)+COLUMN($B$2:$V$22)/100),COLUMN(A157)),"")) ->  | AF173: =IF($AD173="","",IFERROR(SMALL(IF($AD173=$B$2:$V$22,ROW($B$2:$V$22)+COLUMN($B$2:$V$22)/100),COLUMN(B157)),"")) ->  | AG173: =IF($AD173="","",IFERROR(SMALL(IF($AD173=$B$2:$V$22,ROW($B$2:$V$22)+COLUMN($B$2:$V$22)/100),COLUMN(C157)),"")) ->  | AH173: =IF($AD173="","",IFERROR(SMALL(IF($AD173=$B$2:$V$22,ROW($B$2:$V$22)+COLUMN($B$2:$V$22)/100),COLUMN(D157)),"")) ->  | AI173: =IF($AD173="","",IFERROR(SMALL(IF($AD173=$B$2:$V$22,ROW($B$2:$V$22)+COLUMN($B$2:$V$22)/100),COLUMN(E157)),"")) ->  | AJ173: =IF($AD173="","",IFERROR(SMALL(IF($AD173=$B$2:$V$22,ROW($B$2:$V$22)+COLUMN($B$2:$V$22)/100),COLUMN(F157)),"")) ->  | AK173: =IF($AD173="","",IFERROR(SMALL(IF($AD173=$B$2:$V$22,ROW($B$2:$V$22)+COLUMN($B$2:$V$22)/100),COLUMN(G157)),"")) -> 
AA174: =IF(COUNTIF(AB$17:AB174,AB174)=1,COUNT(AA$16:AA173)+1) -> FALSE | AE174: =IF($AD174="","",IFERROR(SMALL(IF($AD174=$B$2:$V$22,ROW($B$2:$V$22)+COLUMN($B$2:$V$22)/100),COLUMN(A158)),"")) ->  | AF174: =IF($AD174="","",IFERROR(SMALL(IF($AD174=$B$2:$V$22,ROW($B$2:$V$22)+COLUMN($B$2:$V$22)/100),COLUMN(B158)),"")) ->  | AG174: =IF($AD174="","",IFERROR(SMALL(IF($AD174=$B$2:$V$22,ROW($B$2:$V$22)+COLUMN($B$2:$V$22)/100),COLUMN(C158)),"")) ->  | AH174: =IF($AD174="","",IFERROR(SMALL(IF($AD174=$B$2:$V$22,ROW($B$2:$V$22)+COLUMN($B$2:$V$22)/100),COLUMN(D158)),"")) ->  | AI174: =IF($AD174="","",IFERROR(SMALL(IF($AD174=$B$2:$V$22,ROW($B$2:$V$22)+COLUMN($B$2:$V$22)/100),COLUMN(E158)),"")) ->  | AJ174: =IF($AD174="","",IFERROR(SMALL(IF($AD174=$B$2:$V$22,ROW($B$2:$V$22)+COLUMN($B$2:$V$22)/100),COLUMN(F158)),"")) ->  | AK174: =IF($AD174="","",IFERROR(SMALL(IF($AD174=$B$2:$V$22,ROW($B$2:$V$22)+COLUMN($B$2:$V$22)/100),COLUMN(G158)),"")) -> 
AA175: =IF(COUNTIF(AB$17:AB175,AB175)=1,COUNT(AA$16:AA174)+1) -> FALSE | AE175: =IF($AD175="","",IFERROR(SMALL(IF($AD175=$B$2:$V$22,ROW($B$2:$V$22)+COLUMN($B$2:$V$22)/100),COLUMN(A159)),"")) ->  | AF175: =IF($AD175="","",IFERROR(SMALL(IF($AD175=$B$2:$V$22,ROW($B$2:$V$22)+COLUMN($B$2:$V$22)/100),COLUMN(B159)),"")) ->  | AG175: =IF($AD175="","",IFERROR(SMALL(IF($AD175=$B$2:$V$22,ROW($B$2:$V$22)+COLUMN($B$2:$V$22)/100),COLUMN(C159)),"")) ->  | AH175: =IF($AD175="","",IFERROR(SMALL(IF($AD175=$B$2:$V$22,ROW($B$2:$V$22)+COLUMN($B$2:$V$22)/100),COLUMN(D159)),"")) ->  | AI175: =IF($AD175="","",IFERROR(SMALL(IF($AD175=$B$2:$V$22,ROW($B$2:$V$22)+COLUMN($B$2:$V$22)/100),COLUMN(E159)),"")) ->  | AJ175: =IF($AD175="","",IFERROR(SMALL(IF($AD175=$B$2:$V$22,ROW($B$2:$V$22)+COLUMN($B$2:$V$22)/100),COLUMN(F159)),"")) ->  | AK175: =IF($AD175="","",IFERROR(SMALL(IF($AD175=$B$2:$V$22,ROW($B$2:$V$22)+COLUMN($B$2:$V$22)/100),COLUMN(G159)),"")) -> 
AA176: =IF(COUNTIF(AB$17:AB176,AB176)=1,COUNT(AA$16:AA175)+1) -> FALSE | AE176: =IF($AD176="","",IFERROR(SMALL(IF($AD176=$B$2:$V$22,ROW($B$2:$V$22)+COLUMN($B$2:$V$22)/100),COLUMN(A160)),"")) ->  | AF176: =IF($AD176="","",IFERROR(SMALL(IF($AD176=$B$2:$V$22,ROW($B$2:$V$22)+COLUMN($B$2:$V$22)/100),COLUMN(B160)),"")) ->  | AG176: =IF($AD176="","",IFERROR(SMALL(IF($AD176=$B$2:$V$22,ROW($B$2:$V$22)+COLUMN($B$2:$V$22)/100),COLUMN(C160)),"")) ->  | AH176: =IF($AD176="","",IFERROR(SMALL(IF($AD176=$B$2:$V$22,ROW($B$2:$V$22)+COLUMN($B$2:$V$22)/100),COLUMN(D160)),"")) ->  | AI176: =IF($AD176="","",IFERROR(SMALL(IF($AD176=$B$2:$V$22,ROW($B$2:$V$22)+COLUMN($B$2:$V$22)/100),COLUMN(E160)),"")) ->  | AJ176: =IF($AD176="","",IFERROR(SMALL(IF($AD176=$B$2:$V$22,ROW($B$2:$V$22)+COLUMN($B$2:$V$22)/100),COLUMN(F160)),"")) ->  | AK176: =IF($AD176="","",IFERROR(SMALL(IF($AD176=$B$2:$V$22,ROW($B$2:$V$22)+COLUMN($B$2:$V$22)/100),COLUMN(G160)),"")) -> 
AA177: =IF(COUNTIF(AB$17:AB177,AB177)=1,COUNT(AA$16:AA176)+1) -> FALSE | AE177: =IF($AD177="","",IFERROR(SMALL(IF($AD177=$B$2:$V$22,ROW($B$2:$V$22)+COLUMN($B$2:$V$22)/100),COLUMN(A161)),"")) ->  | AF177: =IF($AD177="","",IFERROR(SMALL(IF($AD177=$B$2:$V$22,ROW($B$2:$V$22)+COLUMN($B$2:$V$22)/100),COLUMN(B161)),"")) ->  | AG177: =IF($AD177="","",IFERROR(SMALL(IF($AD177=$B$2:$V$22,ROW($B$2:$V$22)+COLUMN($B$2:$V$22)/100),COLUMN(C161)),"")) ->  | AH177: =IF($AD177="","",IFERROR(SMALL(IF($AD177=$B$2:$V$22,ROW($B$2:$V$22)+COLUMN($B$2:$V$22)/100),COLUMN(D161)),"")) ->  | AI177: =IF($AD177="","",IFERROR(SMALL(IF($AD177=$B$2:$V$22,ROW($B$2:$V$22)+COLUMN($B$2:$V$22)/100),COLUMN(E161)),"")) ->  | AJ177: =IF($AD177="","",IFERROR(SMALL(IF($AD177=$B$2:$V$22,ROW($B$2:$V$22)+COLUMN($B$2:$V$22)/100),COLUMN(F161)),"")) ->  | AK177: =IF($AD177="","",IFERROR(SMALL(IF($AD177=$B$2:$V$22,ROW($B$2:$V$22)+COLUMN($B$2:$V$22)/100),COLUMN(G161)),"")) -> 
AA178: =IF(COUNTIF(AB$17:AB178,AB178)=1,COUNT(AA$16:AA177)+1) -> FALSE | AE178: =IF($AD178="","",IFERROR(SMALL(IF($AD178=$B$2:$V$22,ROW($B$2:$V$22)+COLUMN($B$2:$V$22)/100),COLUMN(A162)),"")) ->  | AF178: =IF($AD178="","",IFERROR(SMALL(IF($AD178=$B$2:$V$22,ROW($B$2:$V$22)+COLUMN($B$2:$V$22)/100),COLUMN(B162)),"")) ->  | AG178: =IF($AD178="","",IFERROR(SMALL(IF($AD178=$B$2:$V$22,ROW($B$2:$V$22)+COLUMN($B$2:$V$22)/100),COLUMN(C162)),"")) ->  | AH178: =IF($AD178="","",IFERROR(SMALL(IF($AD178=$B$2:$V$22,ROW($B$2:$V$22)+COLUMN($B$2:$V$22)/100),COLUMN(D162)),"")) ->  | AI178: =IF($AD178="","",IFERROR(SMALL(IF($AD178=$B$2:$V$22,ROW($B$2:$V$22)+COLUMN($B$2:$V$22)/100),COLUMN(E162)),"")) ->  | AJ178: =IF($AD178="","",IFERROR(SMALL(IF($AD178=$B$2:$V$22,ROW($B$2:$V$22)+COLUMN($B$2:$V$22)/100),COLUMN(F162)),"")) ->  | AK178: =IF($AD178="","",IFERROR(SMALL(IF($AD178=$B$2:$V$22,ROW($B$2:$V$22)+COLUMN($B$2:$V$22)/100),COLUMN(G162)),"")) -> 
AA179: =IF(COUNTIF(AB$17:AB179,AB179)=1,COUNT(AA$16:AA178)+1) -> FALSE | AE179: =IF($AD179="","",IFERROR(SMALL(IF($AD179=$B$2:$V$22,ROW($B$2:$V$22)+COLUMN($B$2:$V$22)/100),COLUMN(A163)),"")) ->  | AF179: =IF($AD179="","",IFERROR(SMALL(IF($AD179=$B$2:$V$22,ROW($B$2:$V$22)+COLUMN($B$2:$V$22)/100),COLUMN(B163)),"")) ->  | AG179: =IF($AD179="","",IFERROR(SMALL(IF($AD179=$B$2:$V$22,ROW($B$2:$V$22)+COLUMN($B$2:$V$22)/100),COLUMN(C163)),"")) ->  | AH179: =IF($AD179="","",IFERROR(SMALL(IF($AD179=$B$2:$V$22,ROW($B$2:$V$22)+COLUMN($B$2:$V$22)/100),COLUMN(D163)),"")) ->  | AI179: =IF($AD179="","",IFERROR(SMALL(IF($AD179=$B$2:$V$22,ROW($B$2:$V$22)+COLUMN($B$2:$V$22)/100),COLUMN(E163)),"")) ->  | AJ179: =IF($AD179="","",IFERROR(SMALL(IF($AD179=$B$2:$V$22,ROW($B$2:$V$22)+COLUMN($B$2:$V$22)/100),COLUMN(F163)),"")) ->  | AK179: =IF($AD179="","",IFERROR(SMALL(IF($AD179=$B$2:$V$22,ROW($B$2:$V$22)+COLUMN($B$2:$V$22)/100),COLUMN(G163)),"")) -> 
AA180: =IF(COUNTIF(AB$17:AB180,AB180)=1,COUNT(AA$16:AA179)+1) -> FALSE | AE180: =IF($AD180="","",IFERROR(SMALL(IF($AD180=$B$2:$V$22,ROW($B$2:$V$22)+COLUMN($B$2:$V$22)/100),COLUMN(A164)),"")) ->  | AF180: =IF($AD180="","",IFERROR(SMALL(IF($AD180=$B$2:$V$22,ROW($B$2:$V$22)+COLUMN($B$2:$V$22)/100),COLUMN(B164)),"")) ->  | AG180: =IF($AD180="","",IFERROR(SMALL(IF($AD180=$B$2:$V$22,ROW($B$2:$V$22)+COLUMN($B$2:$V$22)/100),COLUMN(C164)),"")) ->  | AH180: =IF($AD180="","",IFERROR(SMALL(IF($AD180=$B$2:$V$22,ROW($B$2:$V$22)+COLUMN($B$2:$V$22)/100),COLUMN(D164)),"")) ->  | AI180: =IF($AD180="","",IFERROR(SMALL(IF($AD180=$B$2:$V$22,ROW($B$2:$V$22)+COLUMN($B$2:$V$22)/100),COLUMN(E164)),"")) ->  | AJ180: =IF($AD180="","",IFERROR(SMALL(IF($AD180=$B$2:$V$22,ROW($B$2:$V$22)+COLUMN($B$2:$V$22)/100),COLUMN(F164)),"")) ->  | AK180: =IF($AD180="","",IFERROR(SMALL(IF($AD180=$B$2:$V$22,ROW($B$2:$V$22)+COLUMN($B$2:$V$22)/100),COLUMN(G164)),"")) -> 
AA181: =IF(COUNTIF(AB$17:AB181,AB181)=1,COUNT(AA$16:AA180)+1) -> FALSE | AE181: =IF($AD181="","",IFERROR(SMALL(IF($AD181=$B$2:$V$22,ROW($B$2:$V$22)+COLUMN($B$2:$V$22)/100),COLUMN(A165)),"")) ->  | AF181: =IF($AD181="","",IFERROR(SMALL(IF($AD181=$B$2:$V$22,ROW($B$2:$V$22)+COLUMN($B$2:$V$22)/100),COLUMN(B165)),"")) ->  | AG181: =IF($AD181="","",IFERROR(SMALL(IF($AD181=$B$2:$V$22,ROW($B$2:$V$22)+COLUMN($B$2:$V$22)/100),COLUMN(C165)),"")) ->  | AH181: =IF($AD181="","",IFERROR(SMALL(IF($AD181=$B$2:$V$22,ROW($B$2:$V$22)+COLUMN($B$2:$V$22)/100),COLUMN(D165)),"")) ->  | AI181: =IF($AD181="","",IFERROR(SMALL(IF($AD181=$B$2:$V$22,ROW($B$2:$V$22)+COLUMN($B$2:$V$22)/100),COLUMN(E165)),"")) ->  | AJ181: =IF($AD181="","",IFERROR(SMALL(IF($AD181=$B$2:$V$22,ROW($B$2:$V$22)+COLUMN($B$2:$V$22)/100),COLUMN(F165)),"")) ->  | AK181: =IF($AD181="","",IFERROR(SMALL(IF($AD181=$B$2:$V$22,ROW($B$2:$V$22)+COLUMN($B$2:$V$22)/100),COLUMN(G165)),"")) -> 
AA182: =IF(COUNTIF(AB$17:AB182,AB182)=1,COUNT(AA$16:AA181)+1) -> FALSE | AE182: =IF($AD182="","",IFERROR(SMALL(IF($AD182=$B$2:$V$22,ROW($B$2:$V$22)+COLUMN($B$2:$V$22)/100),COLUMN(A166)),"")) ->  | AF182: =IF($AD182="","",IFERROR(SMALL(IF($AD182=$B$2:$V$22,ROW($B$2:$V$22)+COLUMN($B$2:$V$22)/100),COLUMN(B166)),"")) ->  | AG182: =IF($AD182="","",IFERROR(SMALL(IF($AD182=$B$2:$V$22,ROW($B$2:$V$22)+COLUMN($B$2:$V$22)/100),COLUMN(C166)),"")) ->  | AH182: =IF($AD182="","",IFERROR(SMALL(IF($AD182=$B$2:$V$22,ROW($B$2:$V$22)+COLUMN($B$2:$V$22)/100),COLUMN(D166)),"")) ->  | AI182: =IF($AD182="","",IFERROR(SMALL(IF($AD182=$B$2:$V$22,ROW($B$2:$V$22)+COLUMN($B$2:$V$22)/100),COLUMN(E166)),"")) ->  | AJ182: =IF($AD182="","",IFERROR(SMALL(IF($AD182=$B$2:$V$22,ROW($B$2:$V$22)+COLUMN($B$2:$V$22)/100),COLUMN(F166)),"")) ->  | AK182: =IF($AD182="","",IFERROR(SMALL(IF($AD182=$B$2:$V$22,ROW($B$2:$V$22)+COLUMN($B$2:$V$22)/100),COLUMN(G166)),"")) -> 
AA183: =IF(COUNTIF(AB$17:AB183,AB183)=1,COUNT(AA$16:AA182)+1) -> FALSE | AE183: =IF($AD183="","",IFERROR(SMALL(IF($AD183=$B$2:$V$22,ROW($B$2:$V$22)+COLUMN($B$2:$V$22)/100),COLUMN(A167)),"")) ->  | AF183: =IF($AD183="","",IFERROR(SMALL(IF($AD183=$B$2:$V$22,ROW($B$2:$V$22)+COLUMN($B$2:$V$22)/100),COLUMN(B167)),"")) ->  | AG183: =IF($AD183="","",IFERROR(SMALL(IF($AD183=$B$2:$V$22,ROW($B$2:$V$22)+COLUMN($B$2:$V$22)/100),COLUMN(C167)),"")) ->  | AH183: =IF($AD183="","",IFERROR(SMALL(IF($AD183=$B$2:$V$22,ROW($B$2:$V$22)+COLUMN($B$2:$V$22)/100),COLUMN(D167)),"")) ->  | AI183: =IF($AD183="","",IFERROR(SMALL(IF($AD183=$B$2:$V$22,ROW($B$2:$V$22)+COLUMN($B$2:$V$22)/100),COLUMN(E167)),"")) ->  | AJ183: =IF($AD183="","",IFERROR(SMALL(IF($AD183=$B$2:$V$22,ROW($B$2:$V$22)+COLUMN($B$2:$V$22)/100),COLUMN(F167)),"")) ->  | AK183: =IF($AD183="","",IFERROR(SMALL(IF($AD183=$B$2:$V$22,ROW($B$2:$V$22)+COLUMN($B$2:$V$22)/100),COLUMN(G167)),"")) -> 
AA184: =IF(COUNTIF(AB$17:AB184,AB184)=1,COUNT(AA$16:AA183)+1) -> FALSE | AE184: =IF($AD184="","",IFERROR(SMALL(IF($AD184=$B$2:$V$22,ROW($B$2:$V$22)+COLUMN($B$2:$V$22)/100),COLUMN(A168)),"")) ->  | AF184: =IF($AD184="","",IFERROR(SMALL(IF($AD184=$B$2:$V$22,ROW($B$2:$V$22)+COLUMN($B$2:$V$22)/100),COLUMN(B168)),"")) ->  | AG184: =IF($AD184="","",IFERROR(SMALL(IF($AD184=$B$2:$V$22,ROW($B$2:$V$22)+COLUMN($B$2:$V$22)/100),COLUMN(C168)),"")) ->  | AH184: =IF($AD184="","",IFERROR(SMALL(IF($AD184=$B$2:$V$22,ROW($B$2:$V$22)+COLUMN($B$2:$V$22)/100),COLUMN(D168)),"")) ->  | AI184: =IF($AD184="","",IFERROR(SMALL(IF($AD184=$B$2:$V$22,ROW($B$2:$V$22)+COLUMN($B$2:$V$22)/100),COLUMN(E168)),"")) ->  | AJ184: =IF($AD184="","",IFERROR(SMALL(IF($AD184=$B$2:$V$22,ROW($B$2:$V$22)+COLUMN($B$2:$V$22)/100),COLUMN(F168)),"")) ->  | AK184: =IF($AD184="","",IFERROR(SMALL(IF($AD184=$B$2:$V$22,ROW($B$2:$V$22)+COLUMN($B$2:$V$22)/100),COLUMN(G168)),"")) -> 
AA185: =IF(COUNTIF(AB$17:AB185,AB185)=1,COUNT(AA$16:AA184)+1) -> FALSE | AE185: =IF($AD185="","",IFERROR(SMALL(IF($AD185=$B$2:$V$22,ROW($B$2:$V$22)+COLUMN($B$2:$V$22)/100),COLUMN(A169)),"")) ->  | AF185: =IF($AD185="","",IFERROR(SMALL(IF($AD185=$B$2:$V$22,ROW($B$2:$V$22)+COLUMN($B$2:$V$22)/100),COLUMN(B169)),"")) ->  | AG185: =IF($AD185="","",IFERROR(SMALL(IF($AD185=$B$2:$V$22,ROW($B$2:$V$22)+COLUMN($B$2:$V$22)/100),COLUMN(C169)),"")) ->  | AH185: =IF($AD185="","",IFERROR(SMALL(IF($AD185=$B$2:$V$22,ROW($B$2:$V$22)+COLUMN($B$2:$V$22)/100),COLUMN(D169)),"")) ->  | AI185: =IF($AD185="","",IFERROR(SMALL(IF($AD185=$B$2:$V$22,ROW($B$2:$V$22)+COLUMN($B$2:$V$22)/100),COLUMN(E169)),"")) ->  | AJ185: =IF($AD185="","",IFERROR(SMALL(IF($AD185=$B$2:$V$22,ROW($B$2:$V$22)+COLUMN($B$2:$V$22)/100),COLUMN(F169)),"")) ->  | AK185: =IF($AD185="","",IFERROR(SMALL(IF($AD185=$B$2:$V$22,ROW($B$2:$V$22)+COLUMN($B$2:$V$22)/100),COLUMN(G169)),"")) -> 
AA186: =IF(COUNTIF(AB$17:AB186,AB186)=1,COUNT(AA$16:AA185)+1) -> FALSE | AE186: =IF($AD186="","",IFERROR(SMALL(IF($AD186=$B$2:$V$22,ROW($B$2:$V$22)+COLUMN($B$2:$V$22)/100),COLUMN(A170)),"")) ->  | AF186: =IF($AD186="","",IFERROR(SMALL(IF($AD186=$B$2:$V$22,ROW($B$2:$V$22)+COLUMN($B$2:$V$22)/100),COLUMN(B170)),"")) ->  | AG186: =IF($AD186="","",IFERROR(SMALL(IF($AD186=$B$2:$V$22,ROW($B$2:$V$22)+COLUMN($B$2:$V$22)/100),COLUMN(C170)),"")) ->  | AH186: =IF($AD186="","",IFERROR(SMALL(IF($AD186=$B$2:$V$22,ROW($B$2:$V$22)+COLUMN($B$2:$V$22)/100),COLUMN(D170)),"")) ->  | AI186: =IF($AD186="","",IFERROR(SMALL(IF($AD186=$B$2:$V$22,ROW($B$2:$V$22)+COLUMN($B$2:$V$22)/100),COLUMN(E170)),"")) ->  | AJ186: =IF($AD186="","",IFERROR(SMALL(IF($AD186=$B$2:$V$22,ROW($B$2:$V$22)+COLUMN($B$2:$V$22)/100),COLUMN(F170)),"")) ->  | AK186: =IF($AD186="","",IFERROR(SMALL(IF($AD186=$B$2:$V$22,ROW($B$2:$V$22)+COLUMN($B$2:$V$22)/100),COLUMN(G170)),"")) -> 
AA187: =IF(COUNTIF(AB$17:AB187,AB187)=1,COUNT(AA$16:AA186)+1) -> FALSE | AE187: =IF($AD187="","",IFERROR(SMALL(IF($AD187=$B$2:$V$22,ROW($B$2:$V$22)+COLUMN($B$2:$V$22)/100),COLUMN(A171)),"")) ->  | AF187: =IF($AD187="","",IFERROR(SMALL(IF($AD187=$B$2:$V$22,ROW($B$2:$V$22)+COLUMN($B$2:$V$22)/100),COLUMN(B171)),"")) ->  | AG187: =IF($AD187="","",IFERROR(SMALL(IF($AD187=$B$2:$V$22,ROW($B$2:$V$22)+COLUMN($B$2:$V$22)/100),COLUMN(C171)),"")) ->  | AH187: =IF($AD187="","",IFERROR(SMALL(IF($AD187=$B$2:$V$22,ROW($B$2:$V$22)+COLUMN($B$2:$V$22)/100),COLUMN(D171)),"")) ->  | AI187: =IF($AD187="","",IFERROR(SMALL(IF($AD187=$B$2:$V$22,ROW($B$2:$V$22)+COLUMN($B$2:$V$22)/100),COLUMN(E171)),"")) ->  | AJ187: =IF($AD187="","",IFERROR(SMALL(IF($AD187=$B$2:$V$22,ROW($B$2:$V$22)+COLUMN($B$2:$V$22)/100),COLUMN(F171)),"")) ->  | AK187: =IF($AD187="","",IFERROR(SMALL(IF($AD187=$B$2:$V$22,ROW($B$2:$V$22)+COLUMN($B$2:$V$22)/100),COLUMN(G171)),"")) -> 
AA188: =IF(COUNTIF(AB$17:AB188,AB188)=1,COUNT(AA$16:AA187)+1) -> FALSE | AE188: =IF($AD188="","",IFERROR(SMALL(IF($AD188=$B$2:$V$22,ROW($B$2:$V$22)+COLUMN($B$2:$V$22)/100),COLUMN(A172)),"")) ->  | AF188: =IF($AD188="","",IFERROR(SMALL(IF($AD188=$B$2:$V$22,ROW($B$2:$V$22)+COLUMN($B$2:$V$22)/100),COLUMN(B172)),"")) ->  | AG188: =IF($AD188="","",IFERROR(SMALL(IF($AD188=$B$2:$V$22,ROW($B$2:$V$22)+COLUMN($B$2:$V$22)/100),COLUMN(C172)),"")) ->  | AH188: =IF($AD188="","",IFERROR(SMALL(IF($AD188=$B$2:$V$22,ROW($B$2:$V$22)+COLUMN($B$2:$V$22)/100),COLUMN(D172)),"")) ->  | AI188: =IF($AD188="","",IFERROR(SMALL(IF($AD188=$B$2:$V$22,ROW($B$2:$V$22)+COLUMN($B$2:$V$22)/100),COLUMN(E172)),"")) ->  | AJ188: =IF($AD188="","",IFERROR(SMALL(IF($AD188=$B$2:$V$22,ROW($B$2:$V$22)+COLUMN($B$2:$V$22)/100),COLUMN(F172)),"")) ->  | AK188: =IF($AD188="","",IFERROR(SMALL(IF($AD188=$B$2:$V$22,ROW($B$2:$V$22)+COLUMN($B$2:$V$22)/100),COLUMN(G172)),"")) -> 
AA189: =IF(COUNTIF(AB$17:AB189,AB189)=1,COUNT(AA$16:AA188)+1) -> FALSE | AE189: =IF($AD189="","",IFERROR(SMALL(IF($AD189=$B$2:$V$22,ROW($B$2:$V$22)+COLUMN($B$2:$V$22)/100),COLUMN(A173)),"")) ->  | AF189: =IF($AD189="","",IFERROR(SMALL(IF($AD189=$B$2:$V$22,ROW($B$2:$V$22)+COLUMN($B$2:$V$22)/100),COLUMN(B173)),"")) ->  | AG189: =IF($AD189="","",IFERROR(SMALL(IF($AD189=$B$2:$V$22,ROW($B$2:$V$22)+COLUMN($B$2:$V$22)/100),COLUMN(C173)),"")) ->  | AH189: =IF($AD189="","",IFERROR(SMALL(IF($AD189=$B$2:$V$22,ROW($B$2:$V$22)+COLUMN($B$2:$V$22)/100),COLUMN(D173)),"")) ->  | AI189: =IF($AD189="","",IFERROR(SMALL(IF($AD189=$B$2:$V$22,ROW($B$2:$V$22)+COLUMN($B$2:$V$22)/100),COLUMN(E173)),"")) ->  | AJ189: =IF($AD189="","",IFERROR(SMALL(IF($AD189=$B$2:$V$22,ROW($B$2:$V$22)+COLUMN($B$2:$V$22)/100),COLUMN(F173)),"")) ->  | AK189: =IF($AD189="","",IFERROR(SMALL(IF($AD189=$B$2:$V$22,ROW($B$2:$V$22)+COLUMN($B$2:$V$22)/100),COLUMN(G173)),"")) -> 
AA190: =IF(COUNTIF(AB$17:AB190,AB190)=1,COUNT(AA$16:AA189)+1) -> FALSE | AE190: =IF($AD190="","",IFERROR(SMALL(IF($AD190=$B$2:$V$22,ROW($B$2:$V$22)+COLUMN($B$2:$V$22)/100),COLUMN(A174)),"")) ->  | AF190: =IF($AD190="","",IFERROR(SMALL(IF($AD190=$B$2:$V$22,ROW($B$2:$V$22)+COLUMN($B$2:$V$22)/100),COLUMN(B174)),"")) ->  | AG190: =IF($AD190="","",IFERROR(SMALL(IF($AD190=$B$2:$V$22,ROW($B$2:$V$22)+COLUMN($B$2:$V$22)/100),COLUMN(C174)),"")) ->  | AH190: =IF($AD190="","",IFERROR(SMALL(IF($AD190=$B$2:$V$22,ROW($B$2:$V$22)+COLUMN($B$2:$V$22)/100),COLUMN(D174)),"")) ->  | AI190: =IF($AD190="","",IFERROR(SMALL(IF($AD190=$B$2:$V$22,ROW($B$2:$V$22)+COLUMN($B$2:$V$22)/100),COLUMN(E174)),"")) ->  | AJ190: =IF($AD190="","",IFERROR(SMALL(IF($AD190=$B$2:$V$22,ROW($B$2:$V$22)+COLUMN($B$2:$V$22)/100),COLUMN(F174)),"")) ->  | AK190: =IF($AD190="","",IFERROR(SMALL(IF($AD190=$B$2:$V$22,ROW($B$2:$V$22)+COLUMN($B$2:$V$22)/100),COLUMN(G174)),"")) -> 
AA191: =IF(COUNTIF(AB$17:AB191,AB191)=1,COUNT(AA$16:AA190)+1) -> FALSE | AE191: =IF($AD191="","",IFERROR(SMALL(IF($AD191=$B$2:$V$22,ROW($B$2:$V$22)+COLUMN($B$2:$V$22)/100),COLUMN(A175)),"")) ->  | AF191: =IF($AD191="","",IFERROR(SMALL(IF($AD191=$B$2:$V$22,ROW($B$2:$V$22)+COLUMN($B$2:$V$22)/100),COLUMN(B175)),"")) ->  | AG191: =IF($AD191="","",IFERROR(SMALL(IF($AD191=$B$2:$V$22,ROW($B$2:$V$22)+COLUMN($B$2:$V$22)/100),COLUMN(C175)),"")) ->  | AH191: =IF($AD191="","",IFERROR(SMALL(IF($AD191=$B$2:$V$22,ROW($B$2:$V$22)+COLUMN($B$2:$V$22)/100),COLUMN(D175)),"")) ->  | AI191: =IF($AD191="","",IFERROR(SMALL(IF($AD191=$B$2:$V$22,ROW($B$2:$V$22)+COLUMN($B$2:$V$22)/100),COLUMN(E175)),"")) ->  | AJ191: =IF($AD191="","",IFERROR(SMALL(IF($AD191=$B$2:$V$22,ROW($B$2:$V$22)+COLUMN($B$2:$V$22)/100),COLUMN(F175)),"")) ->  | AK191: =IF($AD191="","",IFERROR(SMALL(IF($AD191=$B$2:$V$22,ROW($B$2:$V$22)+COLUMN($B$2:$V$22)/100),COLUMN(G175)),"")) -> 
AA192: =IF(COUNTIF(AB$17:AB192,AB192)=1,COUNT(AA$16:AA191)+1) -> FALSE | AE192: =IF($AD192="","",IFERROR(SMALL(IF($AD192=$B$2:$V$22,ROW($B$2:$V$22)+COLUMN($B$2:$V$22)/100),COLUMN(A176)),"")) ->  | AF192: =IF($AD192="","",IFERROR(SMALL(IF($AD192=$B$2:$V$22,ROW($B$2:$V$22)+COLUMN($B$2:$V$22)/100),COLUMN(B176)),"")) ->  | AG192: =IF($AD192="","",IFERROR(SMALL(IF($AD192=$B$2:$V$22,ROW($B$2:$V$22)+COLUMN($B$2:$V$22)/100),COLUMN(C176)),"")) ->  | AH192: =IF($AD192="","",IFERROR(SMALL(IF($AD192=$B$2:$V$22,ROW($B$2:$V$22)+COLUMN($B$2:$V$22)/100),COLUMN(D176)),"")) ->  | AI192: =IF($AD192="","",IFERROR(SMALL(IF($AD192=$B$2:$V$22,ROW($B$2:$V$22)+COLUMN($B$2:$V$22)/100),COLUMN(E176)),"")) ->  | AJ192: =IF($AD192="","",IFERROR(SMALL(IF($AD192=$B$2:$V$22,ROW($B$2:$V$22)+COLUMN($B$2:$V$22)/100),COLUMN(F176)),"")) ->  | AK192: =IF($AD192="","",IFERROR(SMALL(IF($AD192=$B$2:$V$22,ROW($B$2:$V$22)+COLUMN($B$2:$V$22)/100),COLUMN(G176)),"")) -> 
AA193: =IF(COUNTIF(AB$17:AB193,AB193)=1,COUNT(AA$16:AA192)+1) -> FALSE | AE193: =IF($AD193="","",IFERROR(SMALL(IF($AD193=$B$2:$V$22,ROW($B$2:$V$22)+COLUMN($B$2:$V$22)/100),COLUMN(A177)),"")) ->  | AF193: =IF($AD193="","",IFERROR(SMALL(IF($AD193=$B$2:$V$22,ROW($B$2:$V$22)+COLUMN($B$2:$V$22)/100),COLUMN(B177)),"")) ->  | AG193: =IF($AD193="","",IFERROR(SMALL(IF($AD193=$B$2:$V$22,ROW($B$2:$V$22)+COLUMN($B$2:$V$22)/100),COLUMN(C177)),"")) ->  | AH193: =IF($AD193="","",IFERROR(SMALL(IF($AD193=$B$2:$V$22,ROW($B$2:$V$22)+COLUMN($B$2:$V$22)/100),COLUMN(D177)),"")) ->  | AI193: =IF($AD193="","",IFERROR(SMALL(IF($AD193=$B$2:$V$22,ROW($B$2:$V$22)+COLUMN($B$2:$V$22)/100),COLUMN(E177)),"")) ->  | AJ193: =IF($AD193="","",IFERROR(SMALL(IF($AD193=$B$2:$V$22,ROW($B$2:$V$22)+COLUMN($B$2:$V$22)/100),COLUMN(F177)),"")) ->  | AK193: =IF($AD193="","",IFERROR(SMALL(IF($AD193=$B$2:$V$22,ROW($B$2:$V$22)+COLUMN($B$2:$V$22)/100),COLUMN(G177)),"")) -> 
AA194: =IF(COUNTIF(AB$17:AB194,AB194)=1,COUNT(AA$16:AA193)+1) -> FALSE | AE194: =IF($AD194="","",IFERROR(SMALL(IF($AD194=$B$2:$V$22,ROW($B$2:$V$22)+COLUMN($B$2:$V$22)/100),COLUMN(A178)),"")) ->  | AF194: =IF($AD194="","",IFERROR(SMALL(IF($AD194=$B$2:$V$22,ROW($B$2:$V$22)+COLUMN($B$2:$V$22)/100),COLUMN(B178)),"")) ->  | AG194: =IF($AD194="","",IFERROR(SMALL(IF($AD194=$B$2:$V$22,ROW($B$2:$V$22)+COLUMN($B$2:$V$22)/100),COLUMN(C178)),"")) ->  | AH194: =IF($AD194="","",IFERROR(SMALL(IF($AD194=$B$2:$V$22,ROW($B$2:$V$22)+COLUMN($B$2:$V$22)/100),COLUMN(D178)),"")) ->  | AI194: =IF($AD194="","",IFERROR(SMALL(IF($AD194=$B$2:$V$22,ROW($B$2:$V$22)+COLUMN($B$2:$V$22)/100),COLUMN(E178)),"")) ->  | AJ194: =IF($AD194="","",IFERROR(SMALL(IF($AD194=$B$2:$V$22,ROW($B$2:$V$22)+COLUMN($B$2:$V$22)/100),COLUMN(F178)),"")) ->  | AK194: =IF($AD194="","",IFERROR(SMALL(IF($AD194=$B$2:$V$22,ROW($B$2:$V$22)+COLUMN($B$2:$V$22)/100),COLUMN(G178)),"")) -> 
AA195: =IF(COUNTIF(AB$17:AB195,AB195)=1,COUNT(AA$16:AA194)+1) -> FALSE | AE195: =IF($AD195="","",IFERROR(SMALL(IF($AD195=$B$2:$V$22,ROW($B$2:$V$22)+COLUMN($B$2:$V$22)/100),COLUMN(A179)),"")) ->  | AF195: =IF($AD195="","",IFERROR(SMALL(IF($AD195=$B$2:$V$22,ROW($B$2:$V$22)+COLUMN($B$2:$V$22)/100),COLUMN(B179)),"")) ->  | AG195: =IF($AD195="","",IFERROR(SMALL(IF($AD195=$B$2:$V$22,ROW($B$2:$V$22)+COLUMN($B$2:$V$22)/100),COLUMN(C179)),"")) ->  | AH195: =IF($AD195="","",IFERROR(SMALL(IF($AD195=$B$2:$V$22,ROW($B$2:$V$22)+COLUMN($B$2:$V$22)/100),COLUMN(D179)),"")) ->  | AI195: =IF($AD195="","",IFERROR(SMALL(IF($AD195=$B$2:$V$22,ROW($B$2:$V$22)+COLUMN($B$2:$V$22)/100),COLUMN(E179)),"")) ->  | AJ195: =IF($AD195="","",IFERROR(SMALL(IF($AD195=$B$2:$V$22,ROW($B$2:$V$22)+COLUMN($B$2:$V$22)/100),COLUMN(F179)),"")) ->  | AK195: =IF($AD195="","",IFERROR(SMALL(IF($AD195=$B$2:$V$22,ROW($B$2:$V$22)+COLUMN($B$2:$V$22)/100),COLUMN(G179)),"")) -> 
AA196: =IF(COUNTIF(AB$17:AB196,AB196)=1,COUNT(AA$16:AA195)+1) -> FALSE | AE196: =IF($AD196="","",IFERROR(SMALL(IF($AD196=$B$2:$V$22,ROW($B$2:$V$22)+COLUMN($B$2:$V$22)/100),COLUMN(A180)),"")) ->  | AF196: =IF($AD196="","",IFERROR(SMALL(IF($AD196=$B$2:$V$22,ROW($B$2:$V$22)+COLUMN($B$2:$V$22)/100),COLUMN(B180)),"")) ->  | AG196: =IF($AD196="","",IFERROR(SMALL(IF($AD196=$B$2:$V$22,ROW($B$2:$V$22)+COLUMN($B$2:$V$22)/100),COLUMN(C180)),"")) ->  | AH196: =IF($AD196="","",IFERROR(SMALL(IF($AD196=$B$2:$V$22,ROW($B$2:$V$22)+COLUMN($B$2:$V$22)/100),COLUMN(D180)),"")) ->  | AI196: =IF($AD196="","",IFERROR(SMALL(IF($AD196=$B$2:$V$22,ROW($B$2:$V$22)+COLUMN($B$2:$V$22)/100),COLUMN(E180)),"")) ->  | AJ196: =IF($AD196="","",IFERROR(SMALL(IF($AD196=$B$2:$V$22,ROW($B$2:$V$22)+COLUMN($B$2:$V$22)/100),COLUMN(F180)),"")) ->  | AK196: =IF($AD196="","",IFERROR(SMALL(IF($AD196=$B$2:$V$22,ROW($B$2:$V$22)+COLUMN($B$2:$V$22)/100),COLUMN(G180)),"")) -> 
AA197: =IF(COUNTIF(AB$17:AB197,AB197)=1,COUNT(AA$16:AA196)+1) -> FALSE | AE197: =IF($AD197="","",IFERROR(SMALL(IF($AD197=$B$2:$V$22,ROW($B$2:$V$22)+COLUMN($B$2:$V$22)/100),COLUMN(A181)),"")) ->  | AF197: =IF($AD197="","",IFERROR(SMALL(IF($AD197=$B$2:$V$22,ROW($B$2:$V$22)+COLUMN($B$2:$V$22)/100),COLUMN(B181)),"")) ->  | AG197: =IF($AD197="","",IFERROR(SMALL(IF($AD197=$B$2:$V$22,ROW($B$2:$V$22)+COLUMN($B$2:$V$22)/100),COLUMN(C181)),"")) ->  | AH197: =IF($AD197="","",IFERROR(SMALL(IF($AD197=$B$2:$V$22,ROW($B$2:$V$22)+COLUMN($B$2:$V$22)/100),COLUMN(D181)),"")) ->  | AI197: =IF($AD197="","",IFERROR(SMALL(IF($AD197=$B$2:$V$22,ROW($B$2:$V$22)+COLUMN($B$2:$V$22)/100),COLUMN(E181)),"")) ->  | AJ197: =IF($AD197="","",IFERROR(SMALL(IF($AD197=$B$2:$V$22,ROW($B$2:$V$22)+COLUMN($B$2:$V$22)/100),COLUMN(F181)),"")) ->  | AK197: =IF($AD197="","",IFERROR(SMALL(IF($AD197=$B$2:$V$22,ROW($B$2:$V$22)+COLUMN($B$2:$V$22)/100),COLUMN(G181)),"")) -> 
AA198: =IF(COUNTIF(AB$17:AB198,AB198)=1,COUNT(AA$16:AA197)+1) -> FALSE | AE198: =IF($AD198="","",IFERROR(SMALL(IF($AD198=$B$2:$V$22,ROW($B$2:$V$22)+COLUMN($B$2:$V$22)/100),COLUMN(A182)),"")) ->  | AF198: =IF($AD198="","",IFERROR(SMALL(IF($AD198=$B$2:$V$22,ROW($B$2:$V$22)+COLUMN($B$2:$V$22)/100),COLUMN(B182)),"")) ->  | AG198: =IF($AD198="","",IFERROR(SMALL(IF($AD198=$B$2:$V$22,ROW($B$2:$V$22)+COLUMN($B$2:$V$22)/100),COLUMN(C182)),"")) ->  | AH198: =IF($AD198="","",IFERROR(SMALL(IF($AD198=$B$2:$V$22,ROW($B$2:$V$22)+COLUMN($B$2:$V$22)/100),COLUMN(D182)),"")) ->  | AI198: =IF($AD198="","",IFERROR(SMALL(IF($AD198=$B$2:$V$22,ROW($B$2:$V$22)+COLUMN($B$2:$V$22)/100),COLUMN(E182)),"")) ->  | AJ198: =IF($AD198="","",IFERROR(SMALL(IF($AD198=$B$2:$V$22,ROW($B$2:$V$22)+COLUMN($B$2:$V$22)/100),COLUMN(F182)),"")) ->  | AK198: =IF($AD198="","",IFERROR(SMALL(IF($AD198=$B$2:$V$22,ROW($B$2:$V$22)+COLUMN($B$2:$V$22)/100),COLUMN(G182)),"")) -> 
AA199: =IF(COUNTIF(AB$17:AB199,AB199)=1,COUNT(AA$16:AA198)+1) -> FALSE | AE199: =IF($AD199="","",IFERROR(SMALL(IF($AD199=$B$2:$V$22,ROW($B$2:$V$22)+COLUMN($B$2:$V$22)/100),COLUMN(A183)),"")) ->  | AF199: =IF($AD199="","",IFERROR(SMALL(IF($AD199=$B$2:$V$22,ROW($B$2:$V$22)+COLUMN($B$2:$V$22)/100),COLUMN(B183)),"")) ->  | AG199: =IF($AD199="","",IFERROR(SMALL(IF($AD199=$B$2:$V$22,ROW($B$2:$V$22)+COLUMN($B$2:$V$22)/100),COLUMN(C183)),"")) ->  | AH199: =IF($AD199="","",IFERROR(SMALL(IF($AD199=$B$2:$V$22,ROW($B$2:$V$22)+COLUMN($B$2:$V$22)/100),COLUMN(D183)),"")) ->  | AI199: =IF($AD199="","",IFERROR(SMALL(IF($AD199=$B$2:$V$22,ROW($B$2:$V$22)+COLUMN($B$2:$V$22)/100),COLUMN(E183)),"")) ->  | AJ199: =IF($AD199="","",IFERROR(SMALL(IF($AD199=$B$2:$V$22,ROW($B$2:$V$22)+COLUMN($B$2:$V$22)/100),COLUMN(F183)),"")) ->  | AK199: =IF($AD199="","",IFERROR(SMALL(IF($AD199=$B$2:$V$22,ROW($B$2:$V$22)+COLUMN($B$2:$V$22)/100),COLUMN(G183)),"")) -> 
AA200: =IF(COUNTIF(AB$17:AB200,AB200)=1,COUNT(AA$16:AA199)+1) -> FALSE | AE200: =IF($AD200="","",IFERROR(SMALL(IF($AD200=$B$2:$V$22,ROW($B$2:$V$22)+COLUMN($B$2:$V$22)/100),COLUMN(A184)),"")) ->  | AF200: =IF($AD200="","",IFERROR(SMALL(IF($AD200=$B$2:$V$22,ROW($B$2:$V$22)+COLUMN($B$2:$V$22)/100),COLUMN(B184)),"")) ->  | AG200: =IF($AD200="","",IFERROR(SMALL(IF($AD200=$B$2:$V$22,ROW($B$2:$V$22)+COLUMN($B$2:$V$22)/100),COLUMN(C184)),"")) ->  | AH200: =IF($AD200="","",IFERROR(SMALL(IF($AD200=$B$2:$V$22,ROW($B$2:$V$22)+COLUMN($B$2:$V$22)/100),COLUMN(D184)),"")) ->  | AI200: =IF($AD200="","",IFERROR(SMALL(IF($AD200=$B$2:$V$22,ROW($B$2:$V$22)+COLUMN($B$2:$V$22)/100),COLUMN(E184)),"")) ->  | AJ200: =IF($AD200="","",IFERROR(SMALL(IF($AD200=$B$2:$V$22,ROW($B$2:$V$22)+COLUMN($B$2:$V$22)/100),COLUMN(F184)),"")) ->  | AK200: =IF($AD200="","",IFERROR(SMALL(IF($AD200=$B$2:$V$22,ROW($B$2:$V$22)+COLUMN($B$2:$V$22)/100),COLUMN(G184)),"")) -> 
... 16 more rows

Sheet Лист2
A1: зубьев | C1: искомый результат | D1: 0.326
A2: 30 | C2: доп отклонение (±) | D2: 0.001
A3: 36
A4: 40 | C4: шестерни | D4: значение
A5: 41 | C5: 54*96 / 125*127 | D5: 0.3265511811
A6: 48 | C6: 36*41 / 40*113 | D6: 0.3265486726
A7: 50 | C7: 41*90 / 100*113 | D7: 0.3265486726
A8: 54 | C8: 30*96 / 84*105 | D8: 0.3265306122
A9: 70 | C9: 40*48 / 70*84 | D9: 0.3265306122
A10: 71 | C10: 40*72 / 84*105 | D10: 0.3265306122
A11: 72 | C11: 48*50 / 70*105 | D11: 0.3265306122
A12: 75 | C12: 48*96 / 113*125 | D12: 0.3262300885
A13: 84 | C13: 41*84 / 96*110 | D13: 0.3261363636
A14: 90 | C14: 41*105 / 110*120 | D14: 0.3261363636
A15: 96 | C15: 70*71 / 120*127 | D15: 0.3261154856
A16: 100 | C16: 30*54 / 70*71 | D16: 0.3259557344
A17: 105 | C17: 36*54 / 71*84 | D17: 0.3259557344
A18: 110 | C18: 54*75 / 110*113 | D18: 0.3258246179
A19: 113 | C19: 30*50 / 48*96 | D19: 0.3255208333
A20: 120 | C20: 30*75 / 72*96 | D20: 0.3255208333
A21: 125 | C21: 30*125 / 96*120 | D21: 0.3255208333
A22: 127 | C22: 50*75 / 96*120 | D22: 0.3255208333
C23: 36*113 / 100*125 | D23: 0.32544
C24: 30*41 / 36*105 | D24: 0.3253968254
C25: 30*41 / 54*70 | D25: 0.3253968254
C26: 36*41 / 54*84 | D26: 0.3253968254
C27: 40*41 / 48*105 | D27: 0.3253968254
C28: 40*41 / 70*72 | D28: 0.3253968254
C29: 41*48 / 72*84 | D29: 0.3253968254
C30: 41*50 / 70*90 | D30: 0.3253968254
C31: 41*50 / 75*84 | D31: 0.3253968254
C32: 41*70 / 84*105 | D32: 0.3253968254
C33: 41*75 / 90*105 | D33: 0.3253968254
C34: 41*100 / 105*120 | D34: 0.3253968254
C35: 30*40 / 41*90 | D35: 0.325203252

Sheet Лист3
